Workbook

Sheet Main
B10: 2020-01-24
B12: Sheet No. | C12: Template Name | D12: Summary
B13: 1 | C13: Future Intra | D13: For Intraday trading in F&O segment
B14: 2 | C14: Cash Intra | D14: For Intraday trading in cash market segment
B15: 3 | C15: Mid-cap Intra | D15: For Intraday trading in Mid-cap stocks
B16: 4 | C16: Bulk Deals | D16: Reveals Bulk Deals carried on NSE & BSE
B17: 5 | C17: Call Tracker
K27: `

Sheet Future Intra
M5: Back to Main Page
A6: FOR INTRA DAY TRADING | L6: =Main!B10 -> 2020-01-24
A9: Sr.no | B9: Sector | C9: Scrip | D9: CLOSE RATE | E9: Pivot Point | F9: Supports | I9: Resistances
B10: Sector | D10: Point | E10: Point | F10: S1 | G10: S2 | H10: S3 | I10: R1 | J10: R2 | K10: R3 | L10: HIGH | M10: LOW | N10: OI | O10: % Change in OI
A11: 1 | B11: Index | C11: BANKNIFTY | D11: 31090.10 | E11: 30980.03 | F11: 30790.07 | G11: 30490.03 | H11: 30300.07 | I11: 31280.07 | J11: 31470.03 | K11: 31770.07 | L11: 31170 | M11: 30680 | N11: 1585540 | O11: -10.20%
A12: 2 | B12: Index | C12: NIFTY | D12: 12201.00 | E12: 12177.05 | F12: 12134.10 | G12: 12067.20 | H12: 12024.25 | I12: 12243.95 | J12: 12286.90 | K12: 12353.80 | L12: 12220 | M12: 12110.15 | N12: 14802825 | O12: -0.23%
A13: 3 | B13: Index | C13: NIFTYIT | D13: 16403.00 | E13: 16378.00 | F13: 16337.00 | G13: 16271.00 | H13: 16230.00 | I13: 16444.00 | J13: 16485.00 | K13: 16551.00 | L13: 16419 | M13: 16312 | N13: 7850 | O13: 17.16%
A14: 4 | B14: Cement | C14: ACC | D14: 1553.30 | E14: 1546.42 | F14: 1533.13 | G14: 1512.97 | H14: 1499.68 | I14: 1566.58 | J14: 1579.87 | K14: 1600.03 | L14: 1559.7 | M14: 1526.25 | N14: 4248400 | O14: 2.85%
A15: 5 | B15: Others | C15: ADANIENT | D15: 230.15 | E15: 229.27 | F15: 226.88 | G15: 223.62 | H15: 221.23 | I15: 232.53 | J15: 234.92 | K15: 238.18 | L15: 231.65 | M15: 226 | N15: 29872000 | O15: 0.66%
A16: 6 | B16: Others | C16: ADANIPORTS | D16: 386.15 | E16: 385.22 | F16: 382.93 | G16: 379.72 | H16: 377.43 | I16: 388.43 | J16: 390.72 | K16: 393.93 | L16: 387.5 | M16: 382 | N16: 29270000 | O16: -0.03%
A17: 7 | B17: Power | C17: ADANIPOWER | D17: 63.50 | E17: 63.28 | F17: 62.67 | G17: 61.83 | H17: 61.22 | I17: 64.12 | J17: 64.73 | K17: 65.57 | L17: 63.9 | M17: 62.45 | N17: 85470000 | O17: 11.90%
A18: 8 | B18: Automobile | C18: AMARAJABAT | D18: 792.45 | E18: 794.70 | F18: 785.20 | G18: 777.95 | H18: 768.45 | I18: 801.95 | J18: 811.45 | K18: 818.70 | L18: 804.2 | M18: 787.45 | N18: 1586400 | O18: 0.66%
A19: 9 | B19: Cement | C19: AMBUJACEM | D19: 214.45 | E19: 213.38 | F19: 211.22 | G19: 207.98 | H19: 205.82 | I19: 216.62 | J19: 218.78 | K19: 222.02 | L19: 215.55 | M19: 210.15 | N19: 19757500 | O19: 1.48%
A20: 10 | B20: Others | C20: APOLLOHOSP | D20: 1685.20 | E20: 1671.75 | F20: 1650.50 | G20: 1615.80 | H20: 1594.55 | I20: 1706.45 | J20: 1727.70 | K20: 1762.40 | L20: 1693 | M20: 1637.05 | N20: 1935000 | O20: 3.50%
A21: 11 | B21: Automobile | C21: APOLLOTYRE | D21: 175.85 | E21: 176.30 | F21: 174.90 | G21: 173.95 | H21: 172.55 | I21: 177.25 | J21: 178.65 | K21: 179.60 | L21: 177.7 | M21: 175.35 | N21: 10683000 | O21: 3.01%
A22: 12 | B22: Automobile | C22: ASHOKLEY | D22: 86.90 | E22: 86.55 | F22: 85.95 | G22: 85.00 | H22: 84.40 | I22: 87.50 | J22: 88.10 | K22: 89.05 | L22: 87.15 | M22: 85.6 | N22: 66872000 | O22: -2.15%
A23: 13 | B23: FMCG | C23: ASIANPAINT | D23: 1780.95 | E23: 1778.57 | F23: 1764.48 | G23: 1748.02 | H23: 1733.93 | I23: 1795.03 | J23: 1809.12 | K23: 1825.58 | L23: 1792.65 | M23: 1762.1 | N23: 7713600 | O23: -1.72%
A24: 14 | B24: Pharma | C24: AUROPHARMA | D24: 490.10 | E24: 492.75 | F24: 485.00 | G24: 479.90 | H24: 472.15 | I24: 497.85 | J24: 505.60 | K24: 510.70 | L24: 500.5 | M24: 487.65 | N24: 16685000 | O24: -0.92%
A25: 15 | B25: Banking | C25: AXISBANK | D25: 725.05 | E25: 728.37 | F25: 717.93 | G25: 710.82 | H25: 700.38 | I25: 735.48 | J25: 745.92 | K25: 753.03 | L25: 738.8 | M25: 721.25 | N25: 52912800 | O25: -4.47%
A26: 16 | B26: Automobile | C26: BAJAJ-AUTO | D26: 3074.85 | E26: 3078.33 | F26: 3056.67 | G26: 3038.48 | H26: 3016.82 | I26: 3096.52 | J26: 3118.18 | K26: 3136.37 | L26: 3100 | M26: 3060.15 | N26: 2126000 | O26: -0.36%
A27: 17 | B27: Finance | C27: BAJAJFINSV | D27: 9552.60 | E27: 9556.27 | F27: 9501.83 | G27: 9451.07 | H27: 9396.63 | I27: 9607.03 | J27: 9661.47 | K27: 9712.23 | L27: 9610.7 | M27: 9505.5 | N27: 1277000 | O27: -1.07%
A28: 18 | B28: Finance | C28: BAJFINANCE | D28: 4127.50 | E28: 4131.30 | F28: 4084.70 | G28: 4041.90 | H28: 3995.30 | I28: 4174.10 | J28: 4220.70 | K28: 4263.50 | L28: 4177.9 | M28: 4088.5 | N28: 7402750 | O28: -0.31%
A29: 19 | B29: Automobile | C29: BALKRISIND | D29: 1115.45 | E29: 1119.15 | F29: 1099.30 | G29: 1083.15 | H29: 1063.30 | I29: 1135.30 | J29: 1155.15 | K29: 1171.30 | L29: 1139 | M29: 1103 | N29: 1948000 | O29: -3.49%
A30: 20 | B30: Banking | C30: BANKBARODA | D30: 95.15 | E30: 95.25 | F30: 93.95 | G30: 92.75 | H30: 91.45 | I30: 96.45 | J30: 97.75 | K30: 98.95 | L30: 96.55 | M30: 94.05 | N30: 87021000 | O30: -2.12%
A31: 21 | B31: FMCG | C31: BATAINDIA | D31: 1806.30 | E31: 1798.35 | F31: 1782.75 | G31: 1759.20 | H31: 1743.60 | I31: 1821.90 | J31: 1837.50 | K31: 1861.05 | L31: 1813.95 | M31: 1774.8 | N31: 2283050 | O31: 4.30%
A32: 22 | B32: Capital_Goods | C32: BEL | D32: 101.30 | E32: 101.95 | F32: 99.75 | G32: 98.20 | H32: 96.00 | I32: 103.50 | J32: 105.70 | K32: 107.25 | L32: 104.15 | M32: 100.4 | N32: 40872000 | O32: 8.20%
A33: 23 | B33: FMCG | C33: BERGEPAINT | D33: 553.45 | E33: 549.82 | F33: 543.73 | G33: 534.02 | H33: 527.93 | I33: 559.53 | J33: 565.62 | K33: 575.33 | L33: 555.9 | M33: 540.1 | N33: 9015600 | O33: -0.75%
A34: 24 | B34: Automobile | C34: BHARATFORG | D34: 516.95 | E34: 512.72 | F34: 507.53 | G34: 498.12 | H34: 492.93 | I34: 522.13 | J34: 527.32 | K34: 536.73 | L34: 517.9 | M34: 503.3 | N34: 8281000 | O34: -2.91%
A35: 25 | B35: Telecom | C35: BHARTIARTL | D35: 525.50 | E35: 522.18 | F35: 516.87 | G35: 508.23 | H35: 502.92 | I35: 530.82 | J35: 536.13 | K35: 544.77 | L35: 527.5 | M35: 513.55 | N35: 57986277 | O35: 2.90%
A36: 26 | B36: Capital_Goods | C36: BHEL | D36: 43.65 | E36: 43.75 | F36: 43.35 | G36: 43.05 | H36: 42.65 | I36: 44.05 | J36: 44.45 | K36: 44.75 | L36: 44.15 | M36: 43.45 | N36: 91582400 | O36: 7.53%
A37: 27 | B37: Pharma | C37: BIOCON | D37: 293.95 | E37: 293.88 | F37: 290.82 | G37: 287.68 | H37: 284.62 | I37: 297.02 | J37: 300.08 | K37: 303.22 | L37: 296.95 | M37: 290.75 | N37: 13818400 | O37: -2.36%
A38: 28 | B38: Automobile | C38: BOSCHLTD | D38: 14996.25 | E38: 14965.37 | F38: 14730.88 | G38: 14465.52 | H38: 14231.03 | I38: 15230.73 | J38: 15465.22 | K38: 15730.58 | L38: 15199.85 | M38: 14700 | N38: 135760 | O38: -0.91%
A39: 29 | B39: Oil_Gas | C39: BPCL | D39: 470.60 | E39: 467.37 | F39: 461.33 | G39: 452.07 | H39: 446.03 | I39: 476.63 | J39: 482.67 | K39: 491.93 | L39: 473.4 | M39: 458.1 | N39: 33157800 | O39: 1.67%
A40: 30 | B40: FMCG | C40: BRITANNIA | D40: 3115.60 | E40: 3105.18 | F40: 3088.37 | G40: 3061.13 | H40: 3044.32 | I40: 3132.42 | J40: 3149.23 | K40: 3176.47 | L40: 3122 | M40: 3077.95 | N40: 2243800 | O40: -0.82%
A41: 31 | B41: Pharma | C41: CADILAHC | D41: 270.45 | E41: 270.55 | F41: 268.45 | G41: 266.45 | H41: 264.35 | I41: 272.55 | J41: 274.65 | K41: 276.65 | L41: 272.65 | M41: 268.55 | N41: 9070600 | O41: 2.82%
A42: 32 | B42: Banking | C42: CANBK | D42: 221.50 | E42: 222.22 | F42: 216.83 | G42: 212.17 | H42: 206.78 | I42: 226.88 | J42: 232.27 | K42: 236.93 | L42: 227.6 | M42: 217.55 | N42: 15925000 | O42: 3.15%
A43: 33 | B43: Oil_Gas | C43: CASTROLIND | D43: 130.95 | E43: 130.88 | F43: 129.32 | G43: 127.68 | H43: 126.12 | I43: 132.52 | J43: 134.08 | K43: 135.72 | L43: 132.45 | M43: 129.25 | N43: 6736300 | O43: -1.56%
A44: 34 | B44: Textile | C44: CENTURYTEX | D44: 588.25 | E44: 582.03 | F44: 570.22 | G44: 552.18 | H44: 540.37 | I44: 600.07 | J44: 611.88 | K44: 629.92 | L44: 593.85 | M44: 564 | N44: 3468600 | O44: 0.52%
A45: 35 | B45: Power | C45: CESC | D45: 742.40 | E45: 747.37 | F45: 735.08 | G45: 727.77 | H45: 715.48 | I45: 754.68 | J45: 766.97 | K45: 774.28 | L45: 759.65 | M45: 740.05 | N45: 1692800 | O45: 14.07%
A46: 36 | B46: Finance | C46: CHOLAFIN | D46: 323.80 | E46: 321.12 | F46: 316.73 | G46: 309.67 | H46: 305.28 | I46: 328.18 | J46: 332.57 | K46: 339.63 | L46: 325.5 | M46: 314.05 | N46: 3917500 | O46: -3.21%
A47: 37 | B47: Pharma | C47: CIPLA | D47: 466.70 | E47: 467.83 | F47: 459.02 | G47: 451.33 | H47: 442.52 | I47: 475.52 | J47: 484.33 | K47: 492.02 | L47: 476.65 | M47: 460.15 | N47: 15237500 | O47: 0.30%
A48: 38 | B48: Others | C48: COALINDIA | D48: 191.25 | E48: 192.28 | F48: 189.42 | G48: 187.58 | H48: 184.72 | I48: 194.12 | J48: 196.98 | K48: 198.82 | L48: 195.15 | M48: 190.45 | N48: 34622100 | O48: 17.06%
A49: 39 | B49: FMCG | C49: COLPAL | D49: 1492.25 | E49: 1489.30 | F49: 1482.95 | G49: 1473.65 | H49: 1467.30 | I49: 1498.60 | J49: 1504.95 | K49: 1514.25 | L49: 1495.65 | M49: 1480 | N49: 3371900 | O49: -0.33%
A50: 40 | B50: Others | C50: CONCOR | D50: 554.65 | E50: 553.83 | F50: 550.22 | G50: 545.78 | H50: 542.17 | I50: 558.27 | J50: 561.88 | K50: 566.32 | L50: 557.45 | M50: 549.4 | N50: 7075701 | O50: 6.42%
A51: 41 | B51: Capital_Goods | C51: CUMMINSIND | D51: 569.95 | E51: 575.98 | F51: 563.12 | G51: 556.28 | H51: 543.42 | I51: 582.82 | J51: 595.68 | K51: 602.52 | L51: 588.85 | M51: 569.15 | N51: 1847700 | O51: 7.09%
A52: 42 | B52: FMCG | C52: DABUR | D52: 490.80 | E52: 489.12 | F52: 485.83 | G52: 480.87 | H52: 477.58 | I52: 494.08 | J52: 497.37 | K52: 502.33 | L52: 492.4 | M52: 484.15 | N52: 12423750 | O52: -0.08%
A53: 43 | B53: Media | C53: DISHTV | D53: 14.10 | E53: 14.07 | F53: 13.78 | G53: 13.47 | H53: 13.18 | I53: 14.38 | J53: 14.67 | K53: 14.98 | L53: 14.35 | M53: 13.75 | N53: 83786400 | O53: -2.43%
A54: 44 | B54: Pharma | C54: DIVISLAB | D54: 1897.95 | E54: 1884.82 | F54: 1866.33 | G54: 1834.72 | H54: 1816.23 | I54: 1916.43 | J54: 1934.92 | K54: 1966.53 | L54: 1903.3 | M54: 1853.2 | N54: 2188000 | O54: -2.58%
A55: 45 | B55: Realty | C55: DLF | D55: 261.50 | E55: 260.50 | F55: 258.50 | G55: 255.50 | H55: 253.50 | I55: 263.50 | J55: 265.50 | K55: 268.50 | L55: 262.5 | M55: 257.5 | N55: 34626900 | O55: 1.04%
A56: 46 | B56: Pharma | C56: DRREDDY | D56: 3038.95 | E56: 3047.80 | F56: 3016.25 | G56: 2993.55 | H56: 2962.00 | I56: 3070.50 | J56: 3102.05 | K56: 3124.75 | L56: 3079.35 | M56: 3025.1 | N56: 3292500 | O56: 0.51%
A57: 47 | B57: Automobile | C57: EICHERMOT | D57: 20972.60 | E57: 20980.88 | F57: 20791.72 | G57: 20610.83 | H57: 20421.67 | I57: 21161.77 | J57: 21350.93 | K57: 21531.82 | L57: 21170.05 | M57: 20800 | N57: 340050 | O57: 1.34%
A58: 48 | B58: Finance | C58: EQUITAS | D58: 106.05 | E58: 105.48 | F58: 104.07 | G58: 102.08 | H58: 100.67 | I58: 107.47 | J58: 108.88 | K58: 110.87 | L58: 106.9 | M58: 103.5 | N58: 20859300 | O58: 3.73%
A59: 49 | B59: Automobile | C59: ESCORTS | D59: 711.40 | E59: 708.70 | F59: 701.25 | G59: 691.10 | H59: 683.65 | I59: 718.85 | J59: 726.30 | K59: 736.45 | L59: 716.15 | M59: 698.55 | N59: 4763000 | O59: 0.12%
A60: 50 | B60: Automobile | C60: EXIDEIND | D60: 199.35 | E60: 199.07 | F60: 197.13 | G60: 194.92 | H60: 192.98 | I60: 201.28 | J60: 203.22 | K60: 205.43 | L60: 201 | M60: 196.85 | N60: 11829100 | O60: -0.17%
A61: 51 | B61: Banking | C61: FEDERALBNK | D61: 94.70 | E61: 94.68 | F61: 93.37 | G61: 92.03 | H61: 90.72 | I61: 96.02 | J61: 97.33 | K61: 98.67 | L61: 96 | M61: 93.35 | N61: 61985000 | O61: -1.24%
A62: 52 | B62: Oil_Gas | C62: GAIL | D62: 130.05 | E62: 128.95 | F62: 126.70 | G62: 123.35 | H62: 121.10 | I62: 132.30 | J62: 134.55 | K62: 137.90 | L62: 131.2 | M62: 125.6 | N62: 50054256 | O62: 2.95%
A63: 53 | B63: Pharma | C63: GLENMARK | D63: 352.10 | E63: 351.85 | F63: 349.20 | G63: 346.30 | H63: 343.65 | I63: 354.75 | J63: 357.40 | K63: 360.30 | L63: 354.5 | M63: 348.95 | N63: 8458800 | O63: -2.83%
A64: 54 | B64: Infrastructure | C64: GMRINFRA | D64: 24.00 | E64: 23.73 | F64: 23.37 | G64: 22.73 | H64: 22.37 | I64: 24.37 | J64: 24.73 | K64: 25.37 | L64: 24.1 | M64: 23.1 | N64: 202860000 | O64: 0.47%
A65: 55 | B65: FMCG | C65: GODREJCP | D65: 742.25 | E65: 737.27 | F65: 730.78 | G65: 719.32 | H65: 712.83 | I65: 748.73 | J65: 755.22 | K65: 766.68 | L65: 743.75 | M65: 725.8 | N65: 4186400 | O65: 0.08%
A66: 56 | B66: Cement | C66: GRASIM | D66: 809.85 | E66: 801.87 | F66: 791.53 | G66: 773.22 | H66: 762.88 | I66: 820.18 | J66: 830.52 | K66: 848.83 | L66: 812.2 | M66: 783.55 | N66: 23493000 | O66: 1.16%
A67: 57 | B67: Others | C67: HAVELLS | D67: 619.40 | E67: 614.08 | F67: 607.67 | G67: 595.93 | H67: 589.52 | I67: 625.82 | J67: 632.23 | K67: 643.97 | L67: 620.5 | M67: 602.35 | N67: 7512000 | O67: -6.86%
A68: 58 | B68: Technology | C68: HCLTECH | D68: 597.50 | E68: 595.28 | F68: 592.17 | G68: 586.83 | H68: 583.72 | I68: 600.62 | J68: 603.73 | K68: 609.07 | L68: 598.4 | M68: 589.95 | N68: 25474400 | O68: -2.43%
A69: 59 | B69: Finance | C69: HDFC | D69: 2429.80 | E69: 2426.48 | F69: 2413.32 | G69: 2396.83 | H69: 2383.67 | I69: 2442.97 | J69: 2456.13 | K69: 2472.62 | L69: 2439.65 | M69: 2410 | N69: 31368500 | O69: 0.81%
A70: 60 | B70: Banking | C70: HDFCBANK | D70: 1245.85 | E70: 1242.43 | F70: 1236.27 | G70: 1226.68 | H70: 1220.52 | I70: 1252.02 | J70: 1258.18 | K70: 1267.77 | L70: 1248.6 | M70: 1232.85 | N70: 34413000 | O70: -1.70%
A71: 61 | B71: Automobile | C71: HEROMOTOCO | D71: 2433.95 | E71: 2419.42 | F71: 2399.33 | G71: 2364.72 | H71: 2344.63 | I71: 2454.03 | J71: 2474.12 | K71: 2508.73 | L71: 2439.5 | M71: 2384.8 | N71: 4119600 | O71: -0.40%
A72: 62 | B72: Metals | C72: HINDALCO | D72: 205.05 | E72: 204.73 | F72: 203.57 | G72: 202.08 | H72: 200.92 | I72: 206.22 | J72: 207.38 | K72: 208.87 | L72: 205.9 | M72: 203.25 | N72: 45815000 | O72: -2.06%
A73: 63 | B73: Oil_Gas | C73: HINDPETRO | D73: 247.65 | E73: 248.07 | F73: 244.03 | G73: 240.42 | H73: 236.38 | I73: 251.68 | J73: 255.72 | K73: 259.33 | L73: 252.1 | M73: 244.45 | N73: 19826100 | O73: 2.91%
A74: 64 | B74: FMCG | C74: HINDUNILVR | D74: 2060.65 | E74: 2054.92 | F74: 2045.88 | G74: 2031.12 | H74: 2022.08 | I74: 2069.68 | J74: 2078.72 | K74: 2093.48 | L74: 2063.95 | M74: 2040.15 | N74: 9302400 | O74: -0.85%
A75: 65 | B75: Finance | C75: IBULHSGFIN | D75: 312.60 | E75: 309.18 | F75: 300.07 | G75: 287.53 | H75: 278.42 | I75: 321.72 | J75: 330.83 | K75: 343.37 | L75: 318.3 | M75: 296.65 | N75: 24516000 | O75: -4.83%
A76: 66 | B76: Banking | C76: ICICIBANK | D76: 529.15 | E76: 526.50 | F76: 521.30 | G76: 513.45 | H76: 508.25 | I76: 534.35 | J76: 539.55 | K76: 547.40 | L76: 531.7 | M76: 518.65 | N76: 109165375 | O76: 1.72%
A77: 67 | B77: Finance | C77: ICICIPRULI | D77: 509.50 | E77: 510.80 | F77: 505.75 | G77: 502.00 | H77: 496.95 | I77: 514.55 | J77: 519.60 | K77: 523.35 | L77: 515.85 | M77: 507.05 | N77: 11529000 | O77: 8.62%
A78: 68 | B78: Telecom | C78: IDEA | D78: 5.95 | E78: 5.88 | F78: 5.67 | G78: 5.38 | H78: 5.17 | I78: 6.17 | J78: 6.38 | K78: 6.67 | L78: 6.1 | M78: 5.6 | N78: 558012000 | O78: 10.54%
A79: 69 | B79: Banking | C79: IDFCFIRSTB | D79: 43.85 | E79: 43.77 | F79: 43.28 | G79: 42.72 | H79: 42.23 | I79: 44.33 | J79: 44.82 | K79: 45.38 | L79: 44.25 | M79: 43.2 | N79: 246816000 | O79: 2.02%
A80: 70 | B80: Oil_Gas | C80: IGL | D80: 491.20 | E80: 486.27 | F80: 478.03 | G80: 464.87 | H80: 456.63 | I80: 499.43 | J80: 507.67 | K80: 520.83 | L80: 494.5 | M80: 473.1 | N80: 9787250 | O80: 4.49%
A81: 71 | B81: Others | C81: INDIGO | D81: 1469.50 | E81: 1469.83 | F81: 1454.97 | G81: 1440.43 | H81: 1425.57 | I81: 1484.37 | J81: 1499.23 | K81: 1513.77 | L81: 1484.7 | M81: 1455.3 | N81: 4282800 | O81: 5.33%
A82: 72 | B82: Banking | C82: INDUSINDBK | D82: 1335.75 | E82: 1334.27 | F82: 1324.98 | G82: 1314.22 | H82: 1304.93 | I82: 1345.03 | J82: 1354.32 | K82: 1365.08 | L82: 1343.55 | M82: 1323.5 | N82: 17479200 | O82: -1.41%
A83: 73 | B83: Telecom | C83: INFRATEL | D83: 242.60 | E83: 240.92 | F83: 237.83 | G83: 233.07 | H83: 229.98 | I83: 245.68 | J83: 248.77 | K83: 253.53 | L83: 244 | M83: 236.15 | N83: 13934000 | O83: -2.52%
A84: 74 | B84: Technology | C84: INFY | D84: 786.30 | E84: 784.25 | F84: 780.85 | G84: 775.40 | H84: 772.00 | I84: 789.70 | J84: 793.10 | K84: 798.55 | L84: 787.65 | M84: 778.8 | N84: 28946400 | O84: 3.85%
A85: 75 | B85: Oil_Gas | C85: IOC | D85: 119.05 | E85: 118.27 | F85: 115.53 | G85: 112.02 | H85: 109.28 | I85: 121.78 | J85: 124.52 | K85: 128.03 | L85: 121 | M85: 114.75 | N85: 118576000 | O85: 1.18%
A86: 76 | B86: FMCG | C86: ITC | D86: 238.15 | E86: 238.18 | F86: 237.12 | G86: 236.08 | H86: 235.02 | I86: 239.22 | J86: 240.28 | K86: 241.32 | L86: 239.25 | M86: 237.15 | N86: 131215200 | O86: 1.66%
A87: 77 | B87: Metals | C87: JINDALSTEL | D87: 180.30 | E87: 179.87 | F87: 178.08 | G87: 175.87 | H87: 174.08 | I87: 182.08 | J87: 183.87 | K87: 186.08 | L87: 181.65 | M87: 177.65 | N87: 30390000 | O87: -0.51%
A88: 78 | B88: Metals | C88: JSWSTEEL | D88: 267.25 | E88: 267.13 | F88: 264.77 | G88: 262.28 | H88: 259.92 | I88: 269.62 | J88: 271.98 | K88: 274.47 | L88: 269.5 | M88: 264.65 | N88: 55400100 | O88: 0.80%
A89: 79 | B89: Others | C89: JUBLFOOD | D89: 1799.50 | E89: 1790.45 | F89: 1776.85 | G89: 1754.20 | H89: 1740.60 | I89: 1813.10 | J89: 1826.70 | K89: 1849.35 | L89: 1804.05 | M89: 1767.8 | N89: 2834000 | O89: 4.59%
A90: 80 | B90: Others | C90: JUSTDIAL | D90: 617.40 | E90: 610.40 | F90: 601.10 | G90: 584.80 | H90: 575.50 | I90: 626.70 | J90: 636.00 | K90: 652.30 | L90: 619.7 | M90: 594.1 | N90: 2689400 | O90: 3.00%
A91: 81 | B91: Banking | C91: KOTAKBANK | D91: 1609.15 | E91: 1601.87 | F91: 1591.83 | G91: 1574.52 | H91: 1564.48 | I91: 1619.18 | J91: 1629.22 | K91: 1646.53 | L91: 1611.9 | M91: 1584.55 | N91: 9318000 | O91: -3.68%
A92: 82 | B92: Finance | C92: L&TFH | D92: 119.30 | E92: 118.75 | F92: 117.45 | G92: 115.60 | H92: 114.30 | I92: 120.60 | J92: 121.90 | K92: 123.75 | L92: 120.05 | M92: 116.9 | N92: 43943200 | O92: 2.00%
A93: 83 | B93: Finance | C93: LICHSGFIN | D93: 477.70 | E93: 478.38 | F93: 472.77 | G93: 467.83 | H93: 462.22 | I93: 483.32 | J93: 488.93 | K93: 493.87 | L93: 484 | M93: 473.45 | N93: 10332400 | O93: 0.49%
A94: 84 | B94: Capital_Goods | C94: LT | D94: 1336.15 | E94: 1329.63 | F94: 1316.42 | G94: 1296.68 | H94: 1283.47 | I94: 1349.37 | J94: 1362.58 | K94: 1382.32 | L94: 1342.85 | M94: 1309.9 | N94: 19384500 | O94: -8.59%
A95: 85 | B95: Pharma | C95: LUPIN | D95: 739.60 | E95: 741.07 | F95: 736.68 | G95: 733.77 | H95: 729.38 | I95: 743.98 | J95: 748.37 | K95: 751.28 | L95: 745.45 | M95: 738.15 | N95: 8886500 | O95: -0.27%
A96: 86 | B96: Automobile | C96: M&M | D96: 567.30 | E96: 562.17 | F96: 555.78 | G96: 544.27 | H96: 537.88 | I96: 573.68 | J96: 580.07 | K96: 591.58 | L96: 568.55 | M96: 550.65 | N96: 21814000 | O96: 0.45%
A97: 87 | B97: Finance | C97: M&MFIN | D97: 364.75 | E97: 360.07 | F97: 353.98 | G97: 343.22 | H97: 337.13 | I97: 370.83 | J97: 376.92 | K97: 387.68 | L97: 366.15 | M97: 349.3 | N97: 16164800 | O97: -1.82%
A98: 88 | B98: Finance | C98: MANAPPURAM | D98: 184.25 | E98: 182.77 | F98: 180.88 | G98: 177.52 | H98: 175.63 | I98: 186.13 | J98: 188.02 | K98: 191.38 | L98: 184.65 | M98: 179.4 | N98: 18510000 | O98: 2.15%
A99: 89 | B99: FMCG | C99: MARICO | D99: 334.40 | E99: 334.80 | F99: 332.60 | G99: 330.80 | H99: 328.60 | I99: 336.60 | J99: 338.80 | K99: 340.60 | L99: 337 | M99: 333 | N99: 13926900 | O99: 1.82%
A100: 90 | B100: Automobile | C100: MARUTI | D100: 7166.50 | E100: 7181.68 | F100: 7125.37 | G100: 7084.23 | H100: 7027.92 | I100: 7222.82 | J100: 7279.13 | K100: 7320.27 | L100: 7238 | M100: 7140.55 | N100: 2921900 | O100: -0.47%
A101: 91 | B101: FMCG | C101: MCDOWELL-N | D101: 583.25 | E101: 585.12 | F101: 579.23 | G101: 575.22 | H101: 569.33 | I101: 589.13 | J101: 595.02 | K101: 599.03 | L101: 591 | M101: 581.1 | N101: 12571250 | O101: -1.27%
A102: 92 | B102: Finance | C102: MFSL | D102: 520.00 | E102: 520.85 | F102: 516.80 | G102: 513.60 | H102: 509.55 | I102: 524.05 | J102: 528.10 | K102: 531.30 | L102: 524.9 | M102: 517.65 | N102: 9643400 | O102: -2.41%
A103: 93 | B103: Oil_Gas | C103: MGL | D103: 1180.85 | E103: 1168.12 | F103: 1151.43 | G103: 1122.02 | H103: 1105.33 | I103: 1197.53 | J103: 1214.22 | K103: 1243.63 | L103: 1184.8 | M103: 1138.7 | N103: 2470800 | O103: -2.05%
A104: 94 | B104: Technology | C104: MINDTREE | D104: 903.40 | E104: 905.15 | F104: 893.30 | G104: 883.20 | H104: 871.35 | I104: 915.25 | J104: 927.10 | K104: 937.20 | L104: 917 | M104: 895.05 | N104: 1588800 | O104: -3.07%
A105: 95 | B105: Automobile | C105: MOTHERSUMI | D105: 140.95 | E105: 140.25 | F105: 138.95 | G105: 136.95 | H105: 135.65 | I105: 142.25 | J105: 143.55 | K105: 145.55 | L105: 141.55 | M105: 138.25 | N105: 30895000 | O105: -0.42%
A106: 96 | B106: Automobile | C106: MRF | D106: 69921.25 | E106: 69413.85 | F106: 68727.70 | G106: 67534.15 | H106: 66848.00 | I106: 70607.40 | J106: 71293.55 | K106: 72487.10 | L106: 70100 | M106: 68220.3 | N106: 20370 | O106: 1.34%
A107: 97 | B107: Finance | C107: MUTHOOTFIN | D107: 763.50 | E107: 762.35 | F107: 758.00 | G107: 752.50 | H107: 748.15 | I107: 767.85 | J107: 772.20 | K107: 777.70 | L107: 766.7 | M107: 756.85 | N107: 4795500 | O107: 9.49%
A108: 98 | B108: Metals | C108: NATIONALUM | D108: 45.95 | E108: 45.78 | F108: 45.37 | G108: 44.78 | H108: 44.37 | I108: 46.37 | J108: 46.78 | K108: 47.37 | L108: 46.2 | M108: 45.2 | N108: 51316200 | O108: 1.72%
A109: 99 | B109: Infrastructure | C109: NBCC | D109: 36.55 | E109: 36.37 | F109: 35.83 | G109: 35.12 | H109: 34.58 | I109: 37.08 | J109: 37.62 | K109: 38.33 | L109: 36.9 | M109: 35.65 | N109: 29872700 | O109: -7.40%
A110: 100 | B110: Infrastructure | C110: NCC | D110: 58.45 | E110: 58.08 | F110: 57.27 | G110: 56.08 | H110: 55.27 | I110: 59.27 | J110: 60.08 | K110: 61.27 | L110: 58.9 | M110: 56.9 | N110: 49005000 | O110: 2.22%
A111: 101 | B111: FMCG | C111: NESTLEIND | D111: 15567.90 | E111: 15568.05 | F111: 15486.00 | G111: 15404.10 | H111: 15322.05 | I111: 15649.95 | J111: 15732.00 | K111: 15813.90 | L111: 15650.1 | M111: 15486.15 | N111: 464800 | O111: -0.55%
A112: 102 | B112: Technology | C112: NIITTECH | D112: 1900.25 | E112: 1886.83 | F112: 1848.67 | G112: 1797.08 | H112: 1758.92 | I112: 1938.42 | J112: 1976.58 | K112: 2028.17 | L112: 1925 | M112: 1835.25 | N112: 1066125 | O112: 12.82%
A113: 103 | B113: Metals | C113: NMDC | D113: 128.75 | E113: 128.78 | F113: 125.27 | G113: 121.78 | H113: 118.27 | I113: 132.27 | J113: 135.78 | K113: 139.27 | L113: 132.3 | M113: 125.3 | N113: 35472000 | O113: 40.49%
A114: 104 | B114: Power | C114: NTPC | D114: 113.80 | E114: 113.47 | F114: 112.38 | G114: 110.97 | H114: 109.88 | I114: 114.88 | J114: 115.97 | K114: 117.38 | L114: 114.55 | M114: 112.05 | N114: 87321600 | O114: 9.29%
A115: 105 | B115: Oil_Gas | C115: OIL | D115: 138.60 | E115: 138.90 | F115: 135.20 | G115: 131.80 | H115: 128.10 | I115: 142.30 | J115: 146.00 | K115: 149.40 | L115: 142.6 | M115: 135.5 | N115: 9989661 | O115: 14.22%
A116: 106 | B116: Oil_Gas | C116: ONGC | D116: 117.80 | E116: 117.42 | F116: 116.38 | G116: 114.97 | H116: 113.93 | I116: 118.83 | J116: 119.87 | K116: 121.28 | L116: 118.45 | M116: 116 | N116: 54960500 | O116: 7.24%
A117: 107 | B117: Textile | C117: PAGEIND | D117: 25947.90 | E117: 25809.22 | F117: 25538.68 | G117: 25129.47 | H117: 24858.93 | I117: 26218.43 | J117: 26488.97 | K117: 26898.18 | L117: 26079.75 | M117: 25400 | N117: 150375 | O117: 1.18%
A118: 108 | B118: Pharma | C118: PEL | D118: 1692.85 | E118: 1666.92 | F118: 1626.58 | G118: 1560.32 | H118: 1519.98 | I118: 1733.18 | J118: 1773.52 | K118: 1839.78 | L118: 1707.25 | M118: 1600.65 | N118: 5741529 | O118: 3.23%
A119: 109 | B119: Oil_Gas | C119: PETRONET | D119: 277.55 | E119: 275.75 | F119: 273.55 | G119: 269.55 | H119: 267.35 | I119: 279.75 | J119: 281.95 | K119: 285.95 | L119: 277.95 | M119: 271.75 | N119: 18006000 | O119: -3.64%
A120: 110 | B120: Finance | C120: PFC | D120: 113.90 | E120: 112.80 | F120: 109.10 | G120: 104.30 | H120: 100.60 | I120: 117.60 | J120: 121.30 | K120: 126.10 | L120: 116.5 | M120: 108 | N120: 55533400 | O120: 1.17%
A121: 111 | B121: FMCG | C121: PIDILITIND | D121: 1447.80 | E121: 1440.20 | F121: 1429.70 | G121: 1411.60 | H121: 1401.10 | I121: 1458.30 | J121: 1468.80 | K121: 1486.90 | L121: 1450.7 | M121: 1422.1 | N121: 3246500 | O121: 4.10%
A122: 112 | B122: Banking | C122: PNB | D122: 62.00 | E122: 61.90 | F122: 61.20 | G122: 60.40 | H122: 59.70 | I122: 62.70 | J122: 63.40 | K122: 64.20 | L122: 62.6 | M122: 61.1 | N122: 125155700 | O122: -2.10%
A123: 113 | B123: Power | C123: POWERGRID | D123: 198.05 | E123: 197.73 | F123: 193.47 | G123: 188.88 | H123: 184.62 | I123: 202.32 | J123: 206.58 | K123: 211.17 | L123: 202 | M123: 193.15 | N123: 55536000 | O123: 87.39%
A124: 114 | B124: Media | C124: PVR | D124: 1899.20 | E124: 1912.47 | F124: 1872.93 | G124: 1846.67 | H124: 1807.13 | I124: 1938.73 | J124: 1978.27 | K124: 2004.53 | L124: 1952 | M124: 1886.2 | N124: 1321600 | O124: -7.53%
A125: 115 | B125: Cement | C125: RAMCOCEM | D125: 860.15 | E125: 853.43 | F125: 835.77 | G125: 811.38 | H125: 793.72 | I125: 877.82 | J125: 895.48 | K125: 919.87 | L125: 871.1 | M125: 829.05 | N125: 1884800 | O125: 6.95%
A126: 116 | B126: Banking | C126: RBLBANK | D126: 339.30 | E126: 336.52 | F126: 327.78 | G126: 316.27 | H126: 307.53 | I126: 348.03 | J126: 356.77 | K126: 368.28 | L126: 345.25 | M126: 325 | N126: 20227500 | O126: -6.43%
A127: 117 | B127: Power | C127: RECLTD | D127: 139.10 | E127: 138.08 | F127: 136.27 | G127: 133.43 | H127: 131.62 | I127: 140.92 | J127: 142.73 | K127: 145.57 | L127: 139.9 | M127: 135.25 | N127: 25014000 | O127: 2.01%
A128: 118 | B128: Oil_Gas | C128: RELIANCE | D128: 1529.30 | E128: 1532.52 | F128: 1520.08 | G128: 1510.87 | H128: 1498.43 | I128: 1541.73 | J128: 1554.17 | K128: 1563.38 | L128: 1544.95 | M128: 1523.3 | N128: 53828500 | O128: -0.14%
A129: 119 | B129: Metals | C129: SAIL | D129: 50.50 | E129: 50.33 | F129: 49.72 | G129: 48.93 | H129: 48.32 | I129: 51.12 | J129: 51.73 | K129: 52.52 | L129: 50.95 | M129: 49.55 | N129: 101563300 | O129: 1.22%
A130: 120 | B130: Banking | C130: SBIN | D130: 324.15 | E130: 321.63 | F130: 317.57 | G130: 310.98 | H130: 306.92 | I130: 328.22 | J130: 332.28 | K130: 338.87 | L130: 325.7 | M130: 315.05 | N130: 125076000 | O130: -0.99%
A131: 121 | B131: Cement | C131: SHREECEM | D131: 23153.80 | E131: 23138.47 | F131: 23015.33 | G131: 22876.87 | H131: 22753.73 | I131: 23276.93 | J131: 23400.07 | K131: 23538.53 | L131: 23261.6 | M131: 23000 | N131: 154000 | O131: 0.06%
A132: 122 | B132: Capital_Goods | C132: SIEMENS | D132: 1587.10 | E132: 1586.53 | F132: 1574.07 | G132: 1561.03 | H132: 1548.57 | I132: 1599.57 | J132: 1612.03 | K132: 1625.07 | L132: 1599 | M132: 1573.5 | N132: 2283600 | O132: 0.58%
A133: 123 | B133: Textile | C133: SRF | D133: 3650.45 | E133: 3643.37 | F133: 3619.33 | G133: 3588.22 | H133: 3564.18 | I133: 3674.48 | J133: 3698.52 | K133: 3729.63 | L133: 3667.4 | M133: 3612.25 | N133: 863000 | O133: 2.68%
A134: 124 | B134: Finance | C134: SRTRANSFIN | D134: 1087.55 | E134: 1084.98 | F134: 1077.97 | G134: 1068.38 | H134: 1061.37 | I134: 1094.57 | J134: 1101.58 | K134: 1111.17 | L134: 1092 | M134: 1075.4 | N134: 4235400 | O134: -1.27%
A135: 125 | B135: Pharma | C135: SUNPHARMA | D135: 450.55 | E135: 449.73 | F135: 446.72 | G135: 442.88 | H135: 439.87 | I135: 453.57 | J135: 456.58 | K135: 460.42 | L135: 452.75 | M135: 445.9 | N135: 64413750 | O135: -0.38%
A136: 126 | B136: Media | C136: SUNTV | D136: 497.35 | E136: 495.17 | F136: 490.38 | G136: 483.42 | H136: 478.63 | I136: 502.13 | J136: 506.92 | K136: 513.88 | L136: 499.95 | M136: 488.2 | N136: 7316400 | O136: 0.84%
A137: 127 | B137: Fertilisers | C137: TATACHEM | D137: 760.15 | E137: 757.28 | F137: 752.87 | G137: 745.58 | H137: 741.17 | I137: 764.57 | J137: 768.98 | K137: 776.27 | L137: 761.7 | M137: 750 | N137: 3148200 | O137: 3.28%
A138: 128 | B138: FMCG | C138: TATAGLOBAL | D138: 394.65 | E138: 393.03 | F138: 386.22 | G138: 377.78 | H138: 370.97 | I138: 401.47 | J138: 408.28 | K138: 416.72 | L138: 399.85 | M138: 384.6 | N138: 14150700 | O138: 2.42%
A139: 129 | B139: Automobile | C139: TATAMOTORS | D139: 188.85 | E139: 188.02 | F139: 185.08 | G139: 181.32 | H139: 178.38 | I139: 191.78 | J139: 194.72 | K139: 198.48 | L139: 190.95 | M139: 184.25 | N139: 73710600 | O139: 1.21%
A140: 130 | B140: Automobile | C140: TATAMTRDVR | D140: 79.00 | E140: 78.92 | F140: 77.43 | G140: 75.87 | H140: 74.38 | I140: 80.48 | J140: 81.97 | K140: 83.53 | L140: 80.4 | M140: 77.35 | N140: 29955200 | O140: -3.30%
A141: 131 | B141: Power | C141: TATAPOWER | D141: 60.30 | E141: 59.98 | F141: 59.57 | G141: 58.83 | H141: 58.42 | I141: 60.72 | J141: 61.13 | K141: 61.87 | L141: 60.4 | M141: 59.25 | N141: 75465000 | O141: 0.22%
A142: 132 | B142: Metals | C142: TATASTEEL | D142: 481.45 | E142: 479.58 | F142: 476.02 | G142: 470.58 | H142: 467.02 | I142: 485.02 | J142: 488.58 | K142: 494.02 | L142: 483.15 | M142: 474.15 | N142: 22834500 | O142: -1.69%
A143: 133 | B143: Technology | C143: TCS | D143: 2198.15 | E143: 2204.57 | F143: 2186.28 | G143: 2174.42 | H143: 2156.13 | I143: 2216.43 | J143: 2234.72 | K143: 2246.58 | L143: 2222.85 | M143: 2192.7 | N143: 15981500 | O143: -0.31%
A144: 134 | B144: Technology | C144: TECHM | D144: 771.10 | E144: 774.27 | F144: 766.33 | G144: 761.57 | H144: 753.63 | I144: 779.03 | J144: 786.97 | K144: 791.73 | L144: 782.2 | M144: 769.5 | N144: 15524400 | O144: -0.39%
A145: 135 | B145: FMCG | C145: TITAN | D145: 1206.05 | E145: 1197.33 | F145: 1185.77 | G145: 1165.48 | H145: 1153.92 | I145: 1217.62 | J145: 1229.18 | K145: 1249.47 | L145: 1208.9 | M145: 1177.05 | N145: 11634750 | O145: -1.25%
A146: 136 | B146: Pharma | C146: TORNTPHARM | D146: 2027.50 | E146: 2024.43 | F146: 2009.27 | G146: 1991.03 | H146: 1975.87 | I146: 2042.67 | J146: 2057.83 | K146: 2076.07 | L146: 2039.6 | M146: 2006.2 | N146: 388000 | O146: -4.90%
A147: 137 | B147: Power | C147: TORNTPOWER | D147: 320.30 | E147: 319.75 | F147: 317.70 | G147: 315.10 | H147: 313.05 | I147: 322.35 | J147: 324.40 | K147: 327.00 | L147: 321.8 | M147: 317.15 | N147: 3801000 | O147: -2.31%
A148: 138 | B148: Automobile | C148: TVSMOTOR | D148: 465.30 | E148: 465.25 | F148: 460.05 | G148: 454.80 | H148: 449.60 | I148: 470.50 | J148: 475.70 | K148: 480.95 | L148: 470.45 | M148: 460 | N148: 7122600 | O148: -2.02%
A149: 139 | B149: FMCG | C149: UBL | D149: 1262.05 | E149: 1263.75 | F149: 1255.30 | G149: 1248.55 | H149: 1240.10 | I149: 1270.50 | J149: 1278.95 | K149: 1285.70 | L149: 1272.2 | M149: 1257 | N149: 1705200 | O149: 2.27%
A150: 140 | B150: Finance | C150: UJJIVAN | D150: 346.85 | E150: 344.22 | F150: 339.03 | G150: 331.22 | H150: 326.03 | I150: 352.03 | J150: 357.22 | K150: 365.03 | L150: 349.4 | M150: 336.4 | N150: 7561600 | O150: 1.95%
A151: 141 | B151: Cement | C151: ULTRACEMCO | D151: 4539.55 | E151: 4516.52 | F151: 4483.03 | G151: 4426.52 | H151: 4393.03 | I151: 4573.03 | J151: 4606.52 | K151: 4663.03 | L151: 4550 | M151: 4460 | N151: 2590000 | O151: 2.62%
A152: 142 | B152: Fertilisers | C152: UPL | D152: 543.90 | E152: 550.68 | F152: 535.42 | G152: 526.93 | H152: 511.67 | I152: 559.17 | J152: 574.43 | K152: 582.92 | L152: 565.95 | M152: 542.2 | N152: 14589000 | O152: 1.36%
A153: 143 | B153: Metals | C153: VEDL | D153: 154.45 | E153: 154.18 | F153: 152.77 | G153: 151.08 | H153: 149.67 | I153: 155.87 | J153: 157.28 | K153: 158.97 | L153: 155.6 | M153: 152.5 | N153: 76384000 | O153: -0.56%
A154: 144 | B154: Capital_Goods | C154: VOLTAS | D154: 714.80 | E154: 710.98 | F154: 702.17 | G154: 689.53 | H154: 680.72 | I154: 723.62 | J154: 732.43 | K154: 745.07 | L154: 719.8 | M154: 698.35 | N154: 4371000 | O154: 3.77%
A155: 145 | B155: Technology | C155: WIPRO | D155: 248.60 | E155: 247.60 | F155: 246.30 | G155: 244.00 | H155: 242.70 | I155: 249.90 | J155: 251.20 | K155: 253.50 | L155: 248.9 | M155: 245.3 | N155: 25728000 | O155: -0.54%
A156: 146 | B156: Banking | C156: YESBANK | D156: 40.80 | E156: 40.02 | F156: 38.73 | G156: 36.67 | H156: 35.38 | I156: 42.08 | J156: 43.37 | K156: 45.43 | L156: 41.3 | M156: 37.95 | N156: 289238400 | O156: -3.36%
A157: 147 | B157: Media | C157: ZEEL | D157: 280.20 | E157: 285.32 | F157: 273.28 | G157: 266.37 | H157: 254.33 | I157: 292.23 | J157: 304.27 | K157: 311.18 | L157: 297.35 | M157: 278.4 | N157: 31614900 | O157: 4.11%
A175: Pivot Point: This is trigger point for intra day buy/sell based on the price range of the previous day
A176: As per the tool,the trader should take BUY position just above Pivot and keep the stop loss of pivot point and the first target would be Resistance 1(R1)
A177: If R1 is crossed then R2 becomes the next target with stop loss of at R1
A178: Similarly if price goes below pivot point then the trader should sell and keep a stop loss of pivot point and the first target would be S1
A179: If S1 is crossed then S2 becomes the next target with stop loss of at S1
A181: Disclaimer:
A182: This document has been prepared by the Retail Research Desk of Asit C Mehta
A183: Investment Intermediates Ltd. and is meant for use of the recipient only
A184: and is not for circulation. This document is not to be reported or
A185: copied or made available to others. It should not be considered to be
A186: taken as an offer to sell or a solicitation to buy any security. The
A187: information contained herein is from sources believed reliable. We do
A188: not represent that it is accurate or complete and it should not be
A189: relied upon as such. We may from time to time have positions in and buy
A190: and sell securities referred to herein

Sheet Cash Intra
M5: Back to Main Page
A6: FOR INTRA DAY TRADING | K6: =Main!B10 -> 2020-01-24
A8: Sr.no | B8: Scrip | C8: CLOSE RATE | D8: Pivot Point | E8: Supports | H8: Resistances
C9: Point | E9: S1 | F9: S2 | G9: S3 | H9: R1 | I9: R2 | J9: R3 | K9: HIGH | L9: LOW | M9: Total Trade Quanity in Lakhs
A10: 1 | B10: Nifty 50 | C10: 12180.35 | D10: 12154.48 | E10: 12119.97 | F10: 12059.58 | G10: 12025.07 | H10: 12214.87 | I10: 12249.38 | J10: 12309.77 | K10: 12189 | L10: 12094.1
A11: 2 | B11: Nifty Bank | C11: 31004.05 | D11: 30904.22 | E11: 30721.18 | F11: 30438.32 | G11: 30255.28 | H11: 31187.08 | I11: 31370.12 | J11: 31652.98 | K11: 31087.25 | L11: 30621.35
A12: 3 | B12: Nifty CPSE | C12: 1814.3 | D12: 1815.25 | E12: 1795.80 | F12: 1777.30 | G12: 1757.85 | H12: 1833.75 | I12: 1853.20 | J12: 1871.70 | K12: 1834.7 | L12: 1796.75
A13: 4 | B13: Nifty Infra | C13: 3366.9 | D13: 3355.50 | E13: 3338.30 | F13: 3309.70 | G13: 3292.50 | H13: 3384.10 | I13: 3401.30 | J13: 3429.90 | K13: 3372.7 | L13: 3326.9
A14: 5 | B14: Nifty IT | C14: 16474.4 | D14: 16447.78 | E14: 16394.37 | F14: 16314.33 | G14: 16260.92 | H14: 16527.82 | I14: 16581.23 | J14: 16661.27 | K14: 16501.2 | L14: 16367.75
A15: 6 | B15: Nifty PSE | C15: 3151.85 | D15: 3141.83 | E15: 3117.02 | F15: 3082.18 | G15: 3057.37 | H15: 3176.67 | I15: 3201.48 | J15: 3236.32 | K15: 3166.65 | L15: 3107
A16: 7 | B16: Nifty Midcap 50 | C16: 4994.3 | D16: 4972.45 | E16: 4938.75 | F16: 4883.20 | G16: 4849.50 | H16: 5028.00 | I16: 5061.70 | J16: 5117.25 | K16: 5006.15 | L16: 4916.9
A17: 8 | B17: ACC | C17: 1548.35 | D17: 1542.75 | E17: 1530.60 | F17: 1512.85 | G17: 1500.70 | H17: 1560.50 | I17: 1572.65 | J17: 1590.40 | K17: 1554.9 | L17: 1525 | M17: 11.00769
A18: 9 | B18: AUBANK | C18: 974.55 | D18: 964.52 | E18: 921.03 | F18: 867.52 | G18: 824.03 | H18: 1018.03 | I18: 1061.52 | J18: 1115.03 | K18: 1008 | L18: 911 | M18: 49.78519
A19: 10 | B19: ADANIPORTS | C19: 385.85 | D19: 384.45 | E19: 382.15 | F19: 378.45 | G19: 376.15 | H19: 388.15 | I19: 390.45 | J19: 394.15 | K19: 386.75 | L19: 380.75 | M19: 12.02104
A20: 11 | B20: ADANIPOWER | C20: 63.35 | D20: 63.12 | E20: 62.53 | F20: 61.72 | G20: 61.13 | H20: 63.93 | I20: 64.52 | J20: 65.33 | K20: 63.7 | L20: 62.3 | M20: 44.73067
A21: 12 | B21: ABCAPITAL | C21: 106 | D21: 106.67 | E21: 104.93 | F21: 103.87 | G21: 102.13 | H21: 107.73 | I21: 109.47 | J21: 110.53 | K21: 108.4 | L21: 105.6 | M21: 16.7755
A22: 13 | B22: ABFRL | C22: 233.8 | D22: 235.58 | E22: 230.17 | F22: 226.53 | G22: 221.12 | H22: 239.22 | I22: 244.63 | J22: 248.27 | K22: 241 | L22: 231.95 | M22: 3.44297
A23: 14 | B23: AJANTPHARM | C23: 1182.85 | D23: 1181.88 | E23: 1171.77 | F23: 1160.68 | G23: 1150.57 | H23: 1192.97 | I23: 1203.08 | J23: 1214.17 | K23: 1192 | L23: 1170.8 | M23: 0.62642
A24: 15 | B24: ALKEM | C24: 2329.7 | D24: 2334.90 | E24: 2304.80 | F24: 2279.90 | G24: 2249.80 | H24: 2359.80 | I24: 2389.90 | J24: 2414.80 | K24: 2365 | L24: 2310 | M24: 0.57972
A25: 16 | B25: AMARAJABAT | C25: 790.8 | D25: 792.92 | E25: 782.88 | F25: 774.97 | G25: 764.93 | H25: 800.83 | I25: 810.87 | J25: 818.78 | K25: 802.95 | L25: 785 | M25: 9.64018
A26: 17 | B26: AMBUJACEM | C26: 213.65 | D26: 212.68 | E26: 210.42 | F26: 207.18 | G26: 204.92 | H26: 215.92 | I26: 218.18 | J26: 221.42 | K26: 214.95 | L26: 209.45 | M26: 46.56562
A27: 18 | B27: APOLLOHOSP | C27: 1686.9 | D27: 1672.68 | E27: 1645.47 | F27: 1604.03 | G27: 1576.82 | H27: 1714.12 | I27: 1741.33 | J27: 1782.77 | K27: 1699.9 | L27: 1631.25 | M27: 7.6459
A28: 19 | B28: APOLLOTYRE | C28: 175.15 | D28: 175.68 | E28: 174.17 | F28: 173.18 | G28: 171.67 | H28: 176.67 | I28: 178.18 | J28: 179.17 | K28: 177.2 | L28: 174.7 | M28: 23.18536
A29: 20 | B29: ASHOKLEY | C29: 86.6 | D29: 86.40 | E29: 85.80 | F29: 85.00 | G29: 84.40 | H29: 87.20 | I29: 87.80 | J29: 88.60 | K29: 87 | L29: 85.6 | M29: 86.6937
A30: 21 | B30: ASIANPAINT | C30: 1776.1 | D30: 1774.07 | E30: 1759.13 | F30: 1742.17 | G30: 1727.23 | H30: 1791.03 | I30: 1805.97 | J30: 1822.93 | K30: 1789 | L30: 1757.1 | M30: 18.85275
A31: 22 | B31: AUROPHARMA | C31: 490.05 | D31: 492.33 | E31: 485.07 | F31: 480.08 | G31: 472.82 | H31: 497.32 | I31: 504.58 | J31: 509.57 | K31: 499.6 | L31: 487.35 | M31: 37.59332
A32: 23 | B32: DMART | C32: 1924.7 | D32: 1921.28 | E32: 1913.52 | F32: 1902.33 | G32: 1894.57 | H32: 1932.47 | I32: 1940.23 | J32: 1951.42 | K32: 1929.05 | L32: 1910.1 | M32: 2.03734
A33: 24 | B33: AXISBANK | C33: 723 | D33: 726.65 | E33: 715.75 | F33: 708.50 | G33: 697.60 | H33: 733.90 | I33: 744.80 | J33: 752.05 | K33: 737.55 | L33: 719.4 | M33: 206.43257
A34: 25 | B34: BAJAJ-AUTO | C34: 3065.2 | D34: 3068.75 | E34: 3047.55 | F34: 3029.90 | G34: 3008.70 | H34: 3086.40 | I34: 3107.60 | J34: 3125.25 | K34: 3089.95 | L34: 3051.1 | M34: 2.56329
A35: 26 | B35: BAJFINANCE | C35: 4125.8 | D35: 4124.88 | E35: 4085.92 | F35: 4046.03 | G35: 4007.07 | H35: 4164.77 | I35: 4203.73 | J35: 4243.62 | K35: 4163.85 | L35: 4085 | M35: 11.54522
A36: 27 | B36: BAJAJFINSV | C36: 9534.2 | D36: 9538.12 | E36: 9480.23 | F36: 9426.27 | G36: 9368.38 | H36: 9592.08 | I36: 9649.97 | J36: 9703.93 | K36: 9596 | L36: 9484.15 | M36: 1.8128
A37: 28 | B37: BAJAJHLDNG | C37: 3346.4 | D37: 3350.78 | E37: 3328.67 | F37: 3310.93 | G37: 3288.82 | H37: 3368.52 | I37: 3390.63 | J37: 3408.37 | K37: 3372.9 | L37: 3333.05 | M37: 0.41158
A38: 29 | B38: BALKRISIND | C38: 1111 | D38: 1116.60 | E38: 1095.40 | F38: 1079.80 | G38: 1058.60 | H38: 1132.20 | I38: 1153.40 | J38: 1169.00 | K38: 1137.8 | L38: 1101 | M38: 11.92256
A39: 30 | B39: BANDHANBNK | C39: 475.1 | D39: 476.47 | E39: 472.63 | F39: 470.17 | G39: 466.33 | H39: 478.93 | I39: 482.77 | J39: 485.23 | K39: 480.3 | L39: 474 | M39: 12.65094
A40: 31 | B40: BANKBARODA | C40: 94.9 | D40: 95.05 | E40: 93.85 | F40: 92.80 | G40: 91.60 | H40: 96.10 | I40: 97.30 | J40: 98.35 | K40: 96.25 | L40: 94 | M40: 177.90397
A41: 32 | B41: BANKINDIA | C41: 67.55 | D41: 67.60 | E41: 67.00 | F41: 66.45 | G41: 65.85 | H41: 68.15 | I41: 68.75 | J41: 69.30 | K41: 68.2 | L41: 67.05 | M41: 14.65295
A42: 33 | B42: BATAINDIA | C42: 1800.6 | D42: 1792.68 | E42: 1777.37 | F42: 1754.13 | G42: 1738.82 | H42: 1815.92 | I42: 1831.23 | J42: 1854.47 | K42: 1808 | L42: 1769.45 | M42: 3.48369
A43: 34 | B43: BERGEPAINT | C43: 552.55 | D43: 548.85 | E43: 542.20 | F43: 531.85 | G43: 525.20 | H43: 559.20 | I43: 565.85 | J43: 576.20 | K43: 555.5 | L43: 538.5 | M43: 8.04567
A44: 35 | B44: BEL | C44: 101.15 | D44: 101.95 | E44: 99.35 | F44: 97.55 | G44: 94.95 | H44: 103.75 | I44: 106.35 | J44: 108.15 | K44: 104.55 | L44: 100.15 | M44: 216.58446
A45: 36 | B45: BHARATFORG | C45: 515.25 | D45: 511.20 | E45: 506.20 | F45: 497.15 | G45: 492.15 | H45: 520.25 | I45: 525.25 | J45: 534.30 | K45: 516.2 | L45: 502.15 | M45: 14.185
A46: 37 | B46: BHEL | C46: 43.45 | D46: 43.58 | E46: 43.17 | F46: 42.88 | G46: 42.47 | H46: 43.87 | I46: 44.28 | J46: 44.57 | K46: 44 | L46: 43.3 | M46: 148.71754
A47: 38 | B47: BPCL | C47: 469 | D47: 465.93 | E47: 460.07 | F47: 451.13 | G47: 445.27 | H47: 474.87 | I47: 480.73 | J47: 489.67 | K47: 471.8 | L47: 457 | M47: 55.65676
A48: 39 | B48: BHARTIARTL | C48: 523.65 | D48: 520.67 | E48: 515.33 | F48: 507.02 | G48: 501.68 | H48: 528.98 | I48: 534.32 | J48: 542.63 | K48: 526 | L48: 512.35 | M48: 154.82185
A49: 40 | B49: INFRATEL | C49: 242.2 | D49: 240.47 | E49: 237.18 | F49: 232.17 | G49: 228.88 | H49: 245.48 | I49: 248.77 | J49: 253.78 | K49: 243.75 | L49: 235.45 | M49: 44.66738
A50: 41 | B50: BIOCON | C50: 294.3 | D50: 294.12 | E50: 291.43 | F50: 288.57 | G50: 285.88 | H50: 296.98 | I50: 299.67 | J50: 302.53 | K50: 296.8 | L50: 291.25 | M50: 25.03937
A51: 42 | B51: BBTC | C51: 1140.4 | D51: 1137.72 | E51: 1127.78 | F51: 1115.17 | G51: 1105.23 | H51: 1150.33 | I51: 1160.27 | J51: 1172.88 | K51: 1147.65 | L51: 1125.1 | M51: 0.6211
A52: 43 | B52: BOSCHLTD | C52: 14973.75 | D52: 14941.92 | E52: 14683.83 | F52: 14393.92 | G52: 14135.83 | H52: 15231.83 | I52: 15489.92 | J52: 15779.83 | K52: 15200 | L52: 14652 | M52: 0.21615
A53: 44 | B53: BRITANNIA | C53: 3112.95 | D53: 3101.32 | E53: 3079.73 | F53: 3046.52 | G53: 3024.93 | H53: 3134.53 | I53: 3156.12 | J53: 3189.33 | K53: 3122.9 | L53: 3068.1 | M53: 2.03032
A54: 45 | B54: CESC | C54: 739.55 | D54: 745.27 | E54: 731.73 | F54: 723.92 | G54: 710.38 | H54: 753.08 | I54: 766.62 | J54: 774.43 | K54: 758.8 | L54: 737.45 | M54: 4.11175
A55: 46 | B55: CADILAHC | C55: 269.45 | D55: 270.02 | E55: 268.03 | F55: 266.62 | G55: 264.63 | H55: 271.43 | I55: 273.42 | J55: 274.83 | K55: 272 | L55: 268.6 | M55: 11.96861
A56: 47 | B56: CANBK | C56: 220.7 | D56: 221.52 | E56: 216.28 | F56: 211.87 | G56: 206.63 | H56: 225.93 | I56: 231.17 | J56: 235.58 | K56: 226.75 | L56: 217.1 | M56: 139.10267
A57: 48 | B57: CASTROLIND | C57: 130.65 | D57: 130.57 | E57: 128.88 | F57: 127.12 | G57: 125.43 | H57: 132.33 | I57: 134.02 | J57: 135.78 | K57: 132.25 | L57: 128.8 | M57: 22.43169
A58: 49 | B58: CHOLAFIN | C58: 323.5 | D58: 320.72 | E58: 316.43 | F58: 309.37 | G58: 305.08 | H58: 327.78 | I58: 332.07 | J58: 339.13 | K58: 325 | L58: 313.65 | M58: 48.02353
A59: 50 | B59: CIPLA | C59: 465.15 | D59: 466.78 | E59: 457.72 | F59: 450.28 | G59: 441.22 | H59: 474.22 | I59: 483.28 | J59: 490.72 | K59: 475.85 | L59: 459.35 | M59: 57.83749
A60: 51 | B60: CUB | C60: 238.15 | D60: 237.98 | E60: 235.97 | F60: 233.78 | G60: 231.77 | H60: 240.17 | I60: 242.18 | J60: 244.37 | K60: 240 | L60: 235.8 | M60: 3.6492
A61: 52 | B61: COALINDIA | C61: 190.75 | D61: 191.93 | E61: 188.67 | F61: 186.58 | G61: 183.32 | H61: 194.02 | I61: 197.28 | J61: 199.37 | K61: 195.2 | L61: 189.85 | M61: 163.69722
A62: 53 | B62: COLPAL | C62: 1488.8 | D62: 1485.92 | E62: 1479.83 | F62: 1470.87 | G62: 1464.78 | H62: 1494.88 | I62: 1500.97 | J62: 1509.93 | K62: 1492 | L62: 1476.95 | M62: 2.65153
A63: 54 | B63: CONCOR | C63: 552.9 | D63: 551.85 | E63: 548.35 | F63: 543.80 | G63: 540.30 | H63: 556.40 | I63: 559.90 | J63: 564.45 | K63: 555.35 | L63: 547.3 | M63: 10.63748
A64: 55 | B64: COROMANDEL | C64: 612.6 | D64: 608.13 | E64: 597.27 | F64: 581.93 | G64: 571.07 | H64: 623.47 | I64: 634.33 | J64: 649.67 | K64: 619 | L64: 592.8 | M64: 11.51686
A65: 56 | B65: CROMPTON | C65: 260.1 | D65: 260.92 | E65: 257.33 | F65: 254.57 | G65: 250.98 | H65: 263.68 | I65: 267.27 | J65: 270.03 | K65: 264.5 | L65: 258.15 | M65: 3.67592
A66: 57 | B66: CUMMINSIND | C66: 569.35 | D66: 574.78 | E66: 562.57 | F66: 555.78 | G66: 543.57 | H66: 581.57 | I66: 593.78 | J66: 600.57 | K66: 587 | L66: 568 | M66: 6.08267
A67: 58 | B67: DLF | C67: 260.7 | D67: 259.93 | E67: 257.87 | F67: 255.03 | G67: 252.97 | H67: 262.77 | I67: 264.83 | J67: 267.67 | K67: 262 | L67: 257.1 | M67: 51.01631
A68: 59 | B68: DABUR | C68: 489.8 | D68: 488.18 | E68: 484.37 | F68: 478.93 | G68: 475.12 | H68: 493.62 | I68: 497.43 | J68: 502.87 | K68: 492 | L68: 482.75 | M68: 7.98731
A69: 60 | B69: DALBHARAT | C69: 856.8 | D69: 857.25 | E69: 847.55 | F69: 838.30 | G69: 828.60 | H69: 866.50 | I69: 876.20 | J69: 885.45 | K69: 866.95 | L69: 848 | M69: 0.87885
A70: 61 | B70: DIVISLAB | C70: 1897.45 | D70: 1884.28 | E70: 1866.17 | F70: 1834.88 | G70: 1816.77 | H70: 1915.57 | I70: 1933.68 | J70: 1964.97 | K70: 1902.4 | L70: 1853 | M70: 2.94035
A71: 62 | B71: DRREDDY | C71: 3038.15 | D71: 3046.95 | E71: 3015.20 | F71: 2992.25 | G71: 2960.50 | H71: 3069.90 | I71: 3101.65 | J71: 3124.60 | K71: 3078.7 | L71: 3024 | M71: 4.26168
A72: 63 | B72: EDELWEISS | C72: 98 | D72: 99.00 | E72: 96.00 | F72: 94.00 | G72: 91.00 | H72: 101.00 | I72: 104.00 | J72: 106.00 | K72: 102 | L72: 97 | M72: 26.67695
A73: 64 | B73: EICHERMOT | C73: 20915.75 | D73: 20964.08 | E73: 20732.17 | F73: 20548.58 | G73: 20316.67 | H73: 21147.67 | I73: 21379.58 | J73: 21563.17 | K73: 21196 | L73: 20780.5 | M73: 1.05958
A74: 65 | B74: EMAMILTD | C74: 335.8 | D74: 334.60 | E74: 331.20 | F74: 326.60 | G74: 323.20 | H74: 339.20 | I74: 342.60 | J74: 347.20 | K74: 338 | L74: 330 | M74: 8.24544
A75: 66 | B75: ENDURANCE | C75: 1115.85 | D75: 1101.92 | E75: 1083.93 | F75: 1052.02 | G75: 1034.03 | H75: 1133.83 | I75: 1151.82 | J75: 1183.73 | K75: 1119.9 | L75: 1070 | M75: 0.38578
A76: 67 | B76: ENGINERSIN | C76: 100.5 | D76: 100.23 | E76: 99.47 | F76: 98.43 | G76: 97.67 | H76: 101.27 | I76: 102.03 | J76: 103.07 | K76: 101 | L76: 99.2 | M76: 4.93702
A77: 68 | B77: ESCORTS | C77: 712.7 | D77: 709.92 | E77: 702.93 | F77: 693.17 | G77: 686.18 | H77: 719.68 | I77: 726.67 | J77: 736.43 | K77: 716.9 | L77: 700.15 | M77: 14.29046
A78: 69 | B78: EXIDEIND | C78: 199.35 | D78: 198.97 | E78: 197.03 | F78: 194.72 | G78: 192.78 | H78: 201.28 | I78: 203.22 | J78: 205.53 | K78: 200.9 | L78: 196.65 | M78: 29.16024
A79: 70 | B79: FEDERALBNK | C79: 94.5 | D79: 94.57 | E79: 93.23 | F79: 91.97 | G79: 90.63 | H79: 95.83 | I79: 97.17 | J79: 98.43 | K79: 95.9 | L79: 93.3 | M79: 119.65127
A80: 71 | B80: FORTIS | C80: 154 | D80: 153.35 | E80: 151.30 | F80: 148.60 | G80: 146.55 | H80: 156.05 | I80: 158.10 | J80: 160.80 | K80: 155.4 | L80: 150.65 | M80: 23.11259
A81: 72 | B81: FCONSUMER | C81: 24.85 | D81: 24.82 | E81: 24.28 | F81: 23.72 | G81: 23.18 | H81: 25.38 | I81: 25.92 | J81: 26.48 | K81: 25.35 | L81: 24.25 | M81: 11.51848
A82: 73 | B82: FRETAIL | C82: 339.95 | D82: 340.93 | E82: 337.12 | F82: 334.28 | G82: 330.47 | H82: 343.77 | I82: 347.58 | J82: 350.42 | K82: 344.75 | L82: 338.1 | M82: 2.94579
A83: 74 | B83: GAIL | C83: 129.65 | D83: 128.52 | E83: 126.33 | F83: 123.02 | G83: 120.83 | H83: 131.83 | I83: 134.02 | J83: 137.33 | K83: 130.7 | L83: 125.2 | M83: 136.00475
A84: 75 | B84: GMRINFRA | C84: 23.9 | D84: 23.63 | E84: 23.27 | F84: 22.63 | G84: 22.27 | H84: 24.27 | I84: 24.63 | J84: 25.27 | K84: 24 | L84: 23 | M84: 291.46603
A85: 76 | B85: GICRE | C85: 255.3 | D85: 255.02 | E85: 246.43 | F85: 237.57 | G85: 228.98 | H85: 263.88 | I85: 272.47 | J85: 281.33 | K85: 263.6 | L85: 246.15 | M85: 7.65016
A86: 77 | B86: GLENMARK | C86: 350.9 | D86: 350.47 | E86: 347.43 | F86: 343.97 | G86: 340.93 | H86: 353.93 | I86: 356.97 | J86: 360.43 | K86: 353.5 | L86: 347 | M86: 7.77768
A87: 78 | B87: GODREJAGRO | C87: 555.1 | D87: 553.32 | E87: 549.93 | F87: 544.77 | G87: 541.38 | H87: 558.48 | I87: 561.87 | J87: 567.03 | K87: 556.7 | L87: 548.15 | M87: 0.2966
A88: 79 | B88: GODREJCP | C88: 741.05 | D88: 736.02 | E88: 729.03 | F88: 717.02 | G88: 710.03 | H88: 748.03 | I88: 755.02 | J88: 767.03 | K88: 743 | L88: 724 | M88: 7.57948
A89: 80 | B89: GODREJIND | C89: 430.9 | D89: 432.80 | E89: 424.60 | F89: 418.30 | G89: 410.10 | H89: 439.10 | I89: 447.30 | J89: 453.60 | K89: 441 | L89: 426.5 | M89: 0.73852
A90: 81 | B90: GODREJPROP | C90: 1020.3 | D90: 1002.43 | E90: 979.87 | F90: 939.43 | G90: 916.87 | H90: 1042.87 | I90: 1065.43 | J90: 1105.87 | K90: 1025 | L90: 962 | M90: 5.62451
A91: 82 | B91: GRAPHITE | C91: 323.15 | D91: 320.72 | E91: 315.63 | F91: 308.12 | G91: 303.03 | H91: 328.23 | I91: 333.32 | J91: 340.83 | K91: 325.8 | L91: 313.2 | M91: 22.60357
A92: 83 | B92: GRASIM | C92: 808.9 | D92: 801.28 | E92: 790.62 | F92: 772.33 | G92: 761.67 | H92: 819.57 | I92: 830.23 | J92: 848.52 | K92: 811.95 | L92: 783 | M92: 25.87185
A93: 84 | B93: GSPL | C93: 250.75 | D93: 251.40 | E93: 247.50 | F93: 244.25 | G93: 240.35 | H93: 254.65 | I93: 258.55 | J93: 261.80 | K93: 255.3 | L93: 248.15 | M93: 8.21028
A94: 85 | B94: HEG | C94: 1135.8 | D94: 1132.60 | E94: 1123.20 | F94: 1110.60 | G94: 1101.20 | H94: 1145.20 | I94: 1154.60 | J94: 1167.20 | K94: 1142 | L94: 1120 | M94: 3.82023
A95: 86 | B95: HCLTECH | C95: 598.95 | D95: 595.30 | E95: 590.65 | F95: 582.35 | G95: 577.70 | H95: 603.60 | I95: 608.25 | J95: 616.55 | K95: 599.95 | L95: 587 | M95: 60.89397
A96: 87 | B96: HDFCAMC | C96: 3223.35 | D96: 3211.58 | E96: 3183.17 | F96: 3142.98 | G96: 3114.57 | H96: 3251.77 | I96: 3280.18 | J96: 3320.37 | K96: 3240 | L96: 3171.4 | M96: 4.35772
A97: 88 | B97: HDFCBANK | C97: 1244.85 | D97: 1240.90 | E97: 1234.95 | F97: 1225.05 | G97: 1219.10 | H97: 1250.80 | I97: 1256.75 | J97: 1266.65 | K97: 1246.85 | L97: 1231 | M97: 57.5446
A98: 89 | B98: HDFCLIFE | C98: 616 | D98: 616.47 | E98: 611.03 | F98: 606.07 | G98: 600.63 | H98: 621.43 | I98: 626.87 | J98: 631.83 | K98: 621.9 | L98: 611.5 | M98: 16.85313
A99: 90 | B99: HAVELLS | C99: 619.85 | D99: 613.78 | E99: 606.57 | F99: 593.28 | G99: 586.07 | H99: 627.07 | I99: 634.28 | J99: 647.57 | K99: 621 | L99: 600.5 | M99: 33.65852
A100: 91 | B100: HEROMOTOCO | C100: 2429.75 | D100: 2414.87 | E100: 2394.88 | F100: 2360.02 | G100: 2340.03 | H100: 2449.73 | I100: 2469.72 | J100: 2504.58 | K100: 2434.85 | L100: 2380 | M100: 3.15469
A101: 92 | B101: HEXAWARE | C101: 344.15 | D101: 342.42 | E101: 337.28 | F101: 330.42 | G101: 325.28 | H101: 349.28 | I101: 354.42 | J101: 361.28 | K101: 347.55 | L101: 335.55 | M101: 3.48381
A102: 93 | B102: HINDALCO | C102: 204.6 | D102: 204.23 | E102: 203.12 | F102: 201.63 | G102: 200.52 | H102: 205.72 | I102: 206.83 | J102: 208.32 | K102: 205.35 | L102: 202.75 | M102: 55.60681
A103: 94 | B103: HINDPETRO | C103: 246.8 | D103: 247.45 | E103: 243.65 | F103: 240.50 | G103: 236.70 | H103: 250.60 | I103: 254.40 | J103: 257.55 | K103: 251.25 | L103: 244.3 | M103: 47.17684
A104: 95 | B104: HINDUNILVR | C104: 2056.9 | D104: 2050.92 | E104: 2040.98 | F104: 2025.07 | G104: 2015.13 | H104: 2066.83 | I104: 2076.77 | J104: 2092.68 | K104: 2060.85 | L104: 2035 | M104: 7.08017
A105: 96 | B105: HINDZINC | C105: 208.65 | D105: 208.95 | E105: 207.20 | F105: 205.75 | G105: 204.00 | H105: 210.40 | I105: 212.15 | J105: 213.60 | K105: 210.7 | L105: 207.5 | M105: 4.72035
A106: 97 | B106: HUDCO | C106: 42.25 | D106: 42.12 | E106: 41.38 | F106: 40.52 | G106: 39.78 | H106: 42.98 | I106: 43.72 | J106: 44.58 | K106: 42.85 | L106: 41.25 | M106: 17.56013
A107: 98 | B107: HDFC | C107: 2428.4 | D107: 2423.05 | E107: 2409.70 | F107: 2391.00 | G107: 2377.65 | H107: 2441.75 | I107: 2455.10 | J107: 2473.80 | K107: 2436.4 | L107: 2404.35 | M107: 18.12646
A108: 99 | B108: ICICIBANK | C108: 527.7 | D108: 525.00 | E108: 519.75 | F108: 511.80 | G108: 506.55 | H108: 532.95 | I108: 538.20 | J108: 546.15 | K108: 530.25 | L108: 517.05 | M108: 170.61293
A109: 100 | B109: ICICIGI | C109: 1332.8 | D109: 1329.20 | E109: 1307.65 | F109: 1282.50 | G109: 1260.95 | H109: 1354.35 | I109: 1375.90 | J109: 1401.05 | K109: 1350.75 | L109: 1304.05 | M109: 4.31309
A110: 101 | B110: ICICIPRULI | C110: 507.65 | D110: 509.05 | E110: 503.45 | F110: 499.25 | G110: 493.65 | H110: 513.25 | I110: 518.85 | J110: 523.05 | K110: 514.65 | L110: 504.85 | M110: 29.50113
A111: 102 | B111: IDBI | C111: 35.4 | D111: 35.47 | E111: 35.18 | F111: 34.97 | G111: 34.68 | H111: 35.68 | I111: 35.97 | J111: 36.18 | K111: 35.75 | L111: 35.25 | M111: 12.35623
A112: 103 | B112: IDFCFIRSTB | C112: 43.6 | D112: 43.57 | E112: 43.08 | F112: 42.57 | G112: 42.08 | H112: 44.08 | I112: 44.57 | J112: 45.08 | K112: 44.05 | L112: 43.05 | M112: 136.0399
A113: 104 | B113: ITC | C113: 237.9 | D113: 237.85 | E113: 236.95 | F113: 236.00 | G113: 235.10 | H113: 238.80 | I113: 239.70 | J113: 240.65 | K113: 238.75 | L113: 236.9 | M113: 61.20434
A114: 105 | B114: IBULHSGFIN | C114: 312.1 | D114: 308.77 | E114: 299.93 | F114: 287.77 | G114: 278.93 | H114: 320.93 | I114: 329.77 | J114: 341.93 | K114: 317.6 | L114: 296.6 | M114: 304.83567
A115: 106 | B115: IBVENTURES | C115: 176.4 | D115: 178.02 | E115: 173.38 | F115: 170.37 | G115: 165.73 | H115: 181.03 | I115: 185.67 | J115: 188.68 | K115: 182.65 | L115: 175 | M115: 17.91983
A116: 107 | B116: INDIANB | C116: 104.5 | D116: 104.63 | E116: 103.52 | F116: 102.53 | G116: 101.42 | H116: 105.62 | I116: 106.73 | J116: 107.72 | K116: 105.75 | L116: 103.65 | M116: 14.03729
A117: 108 | B117: INDHOTEL | C117: 144.2 | D117: 144.03 | E117: 141.97 | F117: 139.73 | G117: 137.67 | H117: 146.27 | I117: 148.33 | J117: 150.57 | K117: 146.1 | L117: 141.8 | M117: 8.65884
A118: 109 | B118: IOC | C118: 118.35 | D118: 118.10 | E118: 115.30 | F118: 112.25 | G118: 109.45 | H118: 121.15 | I118: 123.95 | J118: 127.00 | K118: 120.9 | L118: 115.05 | M118: 2099.29135
A119: 110 | B119: IGL | C119: 490.65 | D119: 485.38 | E119: 475.77 | F119: 460.88 | G119: 451.27 | H119: 500.27 | I119: 509.88 | J119: 524.77 | K119: 495 | L119: 470.5 | M119: 53.68896
A120: 111 | B120: INDUSINDBK | C120: 1331.8 | D120: 1330.57 | E120: 1321.33 | F120: 1310.87 | G120: 1301.63 | H120: 1341.03 | I120: 1350.27 | J120: 1360.73 | K120: 1339.8 | L120: 1320.1 | M120: 43.58219
A121: 112 | B121: NAUKRI | C121: 2591.5 | D121: 2575.28 | E121: 2546.57 | F121: 2501.63 | G121: 2472.92 | H121: 2620.22 | I121: 2648.93 | J121: 2693.87 | K121: 2604 | L121: 2530.35 | M121: 1.59299
A122: 113 | B122: INFY | C122: 784.35 | D122: 782.18 | E122: 778.87 | F122: 773.38 | G122: 770.07 | H122: 787.67 | I122: 790.98 | J122: 796.47 | K122: 785.5 | L122: 776.7 | M122: 125.28017
A123: 114 | B123: INDIGO | C123: 1465.9 | D123: 1467.40 | E123: 1449.80 | F123: 1433.70 | G123: 1416.10 | H123: 1483.50 | I123: 1501.10 | J123: 1517.20 | K123: 1485 | L123: 1451.3 | M123: 9.76622
A124: 115 | B124: IPCALAB | C124: 1226.45 | D124: 1233.43 | E124: 1203.27 | F124: 1180.08 | G124: 1149.92 | H124: 1256.62 | I124: 1286.78 | J124: 1309.97 | K124: 1263.6 | L124: 1210.25 | M124: 1.51686
A125: 116 | B125: JSWENERGY | C125: 66.85 | D125: 66.90 | E125: 66.30 | F125: 65.75 | G125: 65.15 | H125: 67.45 | I125: 68.05 | J125: 68.60 | K125: 67.5 | L125: 66.35 | M125: 4.03235
A126: 117 | B126: JSWSTEEL | C126: 266.65 | D126: 266.57 | E126: 264.18 | F126: 261.72 | G126: 259.33 | H126: 269.03 | I126: 271.42 | J126: 273.88 | K126: 268.95 | L126: 264.1 | M126: 35.29142
A127: 118 | B127: JINDALSTEL | C127: 180 | D127: 179.57 | E127: 177.93 | F127: 175.87 | G127: 174.23 | H127: 181.63 | I127: 183.27 | J127: 185.33 | K127: 181.2 | L127: 177.5 | M127: 114.13774
A128: 119 | B128: JUBLFOOD | C128: 1793.55 | D128: 1785.80 | E128: 1772.80 | F128: 1752.05 | G128: 1739.05 | H128: 1806.55 | I128: 1819.55 | J128: 1840.30 | K128: 1798.8 | L128: 1765.05 | M128: 7.50812
A129: 120 | B129: JUBILANT | C129: 636.45 | D129: 631.57 | E129: 623.18 | F129: 609.92 | G129: 601.53 | H129: 644.83 | I129: 653.22 | J129: 666.48 | K129: 639.95 | L129: 618.3 | M129: 3.1957
A130: 121 | B130: KOTAKBANK | C130: 1605.85 | D130: 1598.52 | E130: 1588.63 | F130: 1571.42 | G130: 1561.53 | H130: 1615.73 | I130: 1625.62 | J130: 1642.83 | K130: 1608.4 | L130: 1581.3 | M130: 34.95683
A131: 122 | B131: L&TFH | C131: 119.05 | D131: 118.57 | E131: 117.28 | F131: 115.52 | G131: 114.23 | H131: 120.33 | I131: 121.62 | J131: 123.38 | K131: 119.85 | L131: 116.8 | M131: 66.19485
A132: 123 | B132: LTTS | C132: 1724.55 | D132: 1700.85 | E132: 1653.70 | F132: 1582.85 | G132: 1535.70 | H132: 1771.70 | I132: 1818.85 | J132: 1889.70 | K132: 1748 | L132: 1630 | M132: 2.96507
A133: 124 | B133: LICHSGFIN | C133: 476.5 | D133: 477.85 | E133: 471.85 | F133: 467.20 | G133: 461.20 | H133: 482.50 | I133: 488.50 | J133: 493.15 | K133: 483.85 | L133: 473.2 | M133: 33.83538
A134: 125 | B134: LTI | C134: 1935.35 | D134: 1931.45 | E134: 1922.90 | F134: 1910.45 | G134: 1901.90 | H134: 1943.90 | I134: 1952.45 | J134: 1964.90 | K134: 1940 | L134: 1919 | M134: 1.67063
A135: 126 | B135: LT | C135: 1332.3 | D135: 1326.05 | E135: 1312.25 | F135: 1292.20 | G135: 1278.40 | H135: 1346.10 | I135: 1359.90 | J135: 1379.95 | K135: 1339.85 | L135: 1306 | M135: 100.56067
A136: 127 | B136: LUPIN | C136: 737.85 | D136: 739.27 | E136: 734.58 | F136: 731.32 | G136: 726.63 | H136: 742.53 | I136: 747.22 | J136: 750.48 | K136: 743.95 | L136: 736 | M136: 7.18365
A137: 128 | B137: MRF | C137: 69878.65 | D137: 69339.55 | E137: 68679.10 | F137: 67479.55 | G137: 66819.10 | H137: 70539.10 | I137: 71199.55 | J137: 72399.10 | K137: 70000 | L137: 68140 | M137: 0.09651
A138: 129 | B138: MGL | C138: 1179.75 | D138: 1166.60 | E138: 1149.30 | F138: 1118.85 | G138: 1101.55 | H138: 1197.05 | I138: 1214.35 | J138: 1244.80 | K138: 1183.9 | L138: 1136.15 | M138: 19.23129
A139: 130 | B139: M&MFIN | C139: 364.6 | D139: 359.90 | E139: 353.85 | F139: 343.10 | G139: 337.05 | H139: 370.65 | I139: 376.70 | J139: 387.45 | K139: 365.95 | L139: 349.15 | M139: 31.15741
A140: 131 | B140: M&M | C140: 566.5 | D140: 561.15 | E140: 554.90 | F140: 543.30 | G140: 537.05 | H140: 572.75 | I140: 579.00 | J140: 590.60 | K140: 567.4 | L140: 549.55 | M140: 21.13303
A141: 132 | B141: MANAPPURAM | C141: 183.95 | D141: 182.47 | E141: 180.48 | F141: 177.02 | G141: 175.03 | H141: 185.93 | I141: 187.92 | J141: 191.38 | K141: 184.45 | L141: 179 | M141: 24.93374
A142: 133 | B142: MRPL | C142: 44.95 | D142: 45.00 | E142: 44.25 | F142: 43.55 | G142: 42.80 | H142: 45.70 | I142: 46.45 | J142: 47.15 | K142: 45.75 | L142: 44.3 | M142: 8.63969
A143: 134 | B143: MARICO | C143: 333.3 | D143: 333.70 | E143: 331.60 | F143: 329.90 | G143: 327.80 | H143: 335.40 | I143: 337.50 | J143: 339.20 | K143: 335.8 | L143: 332 | M143: 17.60568
A144: 135 | B144: MARUTI | C144: 7147.1 | D144: 7163.42 | E144: 7106.83 | F144: 7066.57 | G144: 7009.98 | H144: 7203.68 | I144: 7260.27 | J144: 7300.53 | K144: 7220 | L144: 7123.15 | M144: 5.89326
A145: 136 | B145: MFSL | C145: 518.3 | D145: 519.22 | E145: 514.08 | F145: 509.87 | G145: 504.73 | H145: 523.43 | I145: 528.57 | J145: 532.78 | K145: 524.35 | L145: 515 | M145: 8.98061
A146: 137 | B146: MINDTREE | C146: 900.75 | D146: 904.93 | E146: 890.82 | F146: 880.88 | G146: 866.77 | H146: 914.87 | I146: 928.98 | J146: 938.92 | K146: 919.05 | L146: 895 | M146: 8.99877
A147: 138 | B147: MOTHERSUMI | C147: 140.75 | D147: 140.07 | E147: 138.68 | F147: 136.62 | G147: 135.23 | H147: 142.13 | I147: 143.52 | J147: 145.58 | K147: 141.45 | L147: 138 | M147: 66.16149
A148: 139 | B148: MPHASIS | C148: 911.1 | D148: 902.07 | E148: 890.08 | F148: 869.07 | G148: 857.08 | H148: 923.08 | I148: 935.07 | J148: 956.08 | K148: 914.05 | L148: 881.05 | M148: 1.78428
A149: 140 | B149: MUTHOOTFIN | C149: 760.3 | D149: 759.30 | E149: 754.75 | F149: 749.20 | G149: 744.65 | H149: 764.85 | I149: 769.40 | J149: 774.95 | K149: 763.85 | L149: 753.75 | M149: 8.57187
A150: 141 | B150: NATCOPHARM | C150: 649 | D150: 651.85 | E150: 642.70 | F150: 636.40 | G150: 627.25 | H150: 658.15 | I150: 667.30 | J150: 673.60 | K150: 661 | L150: 645.55 | M150: 1.55847
A151: 142 | B151: NBCC | C151: 36.4 | D151: 36.35 | E151: 35.70 | F151: 35.00 | G151: 34.35 | H151: 37.05 | I151: 37.70 | J151: 38.40 | K151: 37 | L151: 35.65 | M151: 211.87805
A152: 143 | B152: NHPC | C152: 27.2 | D152: 27.02 | E152: 25.03 | F152: 22.87 | G152: 20.88 | H152: 29.18 | I152: 31.17 | J152: 33.33 | K152: 29 | L152: 24.85 | M152: 1891.53144
A153: 144 | B153: NMDC | C153: 132.95 | D153: 133.22 | E153: 126.73 | F153: 120.52 | G153: 114.03 | H153: 139.43 | I153: 145.92 | J153: 152.13 | K153: 139.7 | L153: 127 | M153: 609.41615
A154: 145 | B154: NTPC | C154: 113.5 | D154: 113.42 | E154: 112.38 | F154: 111.27 | G154: 110.23 | H154: 114.53 | I154: 115.57 | J154: 116.68 | K154: 114.45 | L154: 112.3 | M154: 227.9317
A155: 146 | B155: NATIONALUM | C155: 46.05 | D155: 45.85 | E155: 45.40 | F155: 44.75 | G155: 44.30 | H155: 46.50 | I155: 46.95 | J155: 47.60 | K155: 46.3 | L155: 45.2 | M155: 69.12307
A156: 147 | B156: NESTLEIND | C156: 15548.85 | D156: 15542.95 | E156: 15460.90 | F156: 15372.95 | G156: 15290.90 | H156: 15630.90 | I156: 15712.95 | J156: 15800.90 | K156: 15625 | L156: 15455 | M156: 0.42861
A157: 148 | B157: OBEROIRLTY | C157: 553.7 | D157: 555.25 | E157: 545.50 | F157: 537.30 | G157: 527.55 | H157: 563.45 | I157: 573.20 | J157: 581.40 | K157: 565 | L157: 547.05 | M157: 2.9762
A158: 149 | B158: ONGC | C158: 117.8 | D158: 117.72 | E158: 116.48 | F158: 115.17 | G158: 113.93 | H158: 119.03 | I158: 120.27 | J158: 121.58 | K158: 118.95 | L158: 116.4 | M158: 211.05999
A159: 150 | B159: OIL | C159: 138.45 | D159: 139.78 | E159: 135.67 | F159: 132.88 | G159: 128.77 | H159: 142.57 | I159: 146.68 | J159: 149.47 | K159: 143.9 | L159: 137 | M159: 70.90917
A160: 151 | B160: OFSS | C160: 2974.55 | D160: 2972.90 | E160: 2941.65 | F160: 2908.75 | G160: 2877.50 | H160: 3005.80 | I160: 3037.05 | J160: 3069.95 | K160: 3004.15 | L160: 2940 | M160: 0.26022
A161: 152 | B161: PIIND | C161: 1476.85 | D161: 1469.28 | E161: 1452.57 | F161: 1428.28 | G161: 1411.57 | H161: 1493.57 | I161: 1510.28 | J161: 1534.57 | K161: 1486 | L161: 1445 | M161: 1.47411
A162: 153 | B162: PNBHOUSING | C162: 539.7 | D162: 547.77 | E162: 516.53 | F162: 493.37 | G162: 462.13 | H162: 570.93 | I162: 602.17 | J162: 625.33 | K162: 579 | L162: 524.6 | M162: 16.37843
A163: 154 | B163: PAGEIND | C163: 25851.55 | D163: 25730.52 | E163: 25471.03 | F163: 25090.52 | G163: 24831.03 | H163: 26111.03 | I163: 26370.52 | J163: 26751.03 | K163: 25990 | L163: 25350 | M163: 0.20683
A164: 155 | B164: PETRONET | C164: 277 | D164: 275.12 | E164: 272.73 | F164: 268.47 | G164: 266.08 | H164: 279.38 | I164: 281.77 | J164: 286.03 | K164: 277.5 | L164: 270.85 | M164: 31.60181
A165: 156 | B165: PFIZER | C165: 4055.8 | D165: 4038.57 | E165: 4007.23 | F165: 3958.67 | G165: 3927.33 | H165: 4087.13 | I165: 4118.47 | J165: 4167.03 | K165: 4069.9 | L165: 3990 | M165: 0.14673
A166: 157 | B166: PIDILITIND | C166: 1444.4 | D166: 1437.13 | E166: 1427.27 | F166: 1410.13 | G166: 1400.27 | H166: 1454.27 | I166: 1464.13 | J166: 1481.27 | K166: 1447 | L166: 1420 | M166: 2.08565
A167: 158 | B167: PEL | C167: 1686.6 | D167: 1660.63 | E167: 1621.47 | F167: 1556.33 | G167: 1517.17 | H167: 1725.77 | I167: 1764.93 | J167: 1830.07 | K167: 1699.8 | L167: 1595.5 | M167: 25.23336
A168: 159 | B168: PFC | C168: 113.1 | D168: 112.45 | E168: 108.75 | F168: 104.40 | G168: 100.70 | H168: 116.80 | I168: 120.50 | J168: 124.85 | K168: 116.15 | L168: 108.1 | M168: 936.3829
A169: 160 | B169: POWERGRID | C169: 201.95 | D169: 201.08 | E169: 194.77 | F169: 187.58 | G169: 181.27 | H169: 208.27 | I169: 214.58 | J169: 221.77 | K169: 207.4 | L169: 193.9 | M169: 1271.58366
A170: 161 | B170: PRESTIGE | C170: 401.05 | D170: 396.93 | E170: 391.07 | F170: 381.08 | G170: 375.22 | H170: 406.92 | I170: 412.78 | J170: 422.77 | K170: 402.8 | L170: 386.95 | M170: 14.07339
A171: 162 | B171: PGHH | C171: 11257.4 | D171: 11238.13 | E171: 11129.27 | F171: 11001.13 | G171: 10892.27 | H171: 11366.27 | I171: 11475.13 | J171: 11603.27 | K171: 11347 | L171: 11110 | M171: 0.0196
A172: 163 | B172: PNB | C172: 61.8 | D172: 61.72 | E172: 61.08 | F172: 60.37 | G172: 59.73 | H172: 62.43 | I172: 63.07 | J172: 63.78 | K172: 62.35 | L172: 61 | M172: 141.36138
A173: 164 | B173: QUESS | C173: 581.9 | D173: 577.97 | E173: 571.93 | F173: 561.97 | G173: 555.93 | H173: 587.93 | I173: 593.97 | J173: 603.93 | K173: 584 | L173: 568 | M173: 2.01423
A174: 165 | B174: RBLBANK | C174: 339.45 | D174: 337.07 | E174: 327.43 | F174: 315.42 | G174: 305.78 | H174: 349.08 | I174: 358.72 | J174: 370.73 | K174: 346.7 | L174: 325.05 | M174: 229.40771
A175: 166 | B175: RECLTD | C175: 138.9 | D175: 137.90 | E175: 136.00 | F175: 133.10 | G175: 131.20 | H175: 140.80 | I175: 142.70 | J175: 145.60 | K175: 139.8 | L175: 135 | M175: 44.8904
A176: 167 | B176: RAJESHEXPO | C176: 714.75 | D176: 718.08 | E176: 708.17 | F176: 701.58 | G176: 691.67 | H176: 724.67 | I176: 734.58 | J176: 741.17 | K176: 728 | L176: 711.5 | M176: 7.1523
A177: 168 | B177: RELIANCE | C177: 1526.85 | D177: 1529.83 | E177: 1517.72 | F177: 1508.58 | G177: 1496.47 | H177: 1538.97 | I177: 1551.08 | J177: 1560.22 | K177: 1541.95 | L177: 1520.7 | M177: 51.42088
A178: 169 | B178: RNAM
A179: 170 | B179: SBILIFE | C179: 985.95 | D179: 990.05 | E179: 976.10 | F179: 966.25 | G179: 952.30 | H179: 999.90 | I179: 1013.85 | J179: 1023.70 | K179: 1004 | L179: 980.2 | M179: 11.5139
A180: 171 | B180: SRF | C180: 3636.8 | D180: 3635.73 | E180: 3608.47 | F180: 3580.13 | G180: 3552.87 | H180: 3664.07 | I180: 3691.33 | J180: 3719.67 | K180: 3663 | L180: 3607.4 | M180: 1.64428
A181: 172 | B181: SHREECEM | C181: 23079.05 | D181: 23063.38 | E181: 22926.77 | F181: 22774.48 | G181: 22637.87 | H181: 23215.67 | I181: 23352.28 | J181: 23504.57 | K181: 23200 | L181: 22911.1 | M181: 0.15181
A182: 173 | B182: SRTRANSFIN | C182: 1084.05 | D182: 1082.83 | E182: 1076.72 | F182: 1069.38 | G182: 1063.27 | H182: 1090.17 | I182: 1096.28 | J182: 1103.62 | K182: 1088.95 | L182: 1075.5 | M182: 4.54641
A183: 174 | B183: SIEMENS | C183: 1582.7 | D183: 1582.22 | E183: 1569.63 | F183: 1556.57 | G183: 1543.98 | H183: 1595.28 | I183: 1607.87 | J183: 1620.93 | K183: 1594.8 | L183: 1569.15 | M183: 3.5294
A184: 175 | B184: SBIN | C184: 323.2 | D184: 320.72 | E184: 316.63 | F184: 310.07 | G184: 305.98 | H184: 327.28 | I184: 331.37 | J184: 337.93 | K184: 324.8 | L184: 314.15 | M184: 332.9361
A185: 176 | B185: SAIL | C185: 50.4 | D185: 50.20 | E185: 49.60 | F185: 48.80 | G185: 48.20 | H185: 51.00 | I185: 51.60 | J185: 52.40 | K185: 50.8 | L185: 49.4 | M185: 137.21598
A186: 177 | B186: STRTECH | C186: 132.8 | D186: 131.93 | E186: 129.97 | F186: 127.13 | G186: 125.17 | H186: 134.77 | I186: 136.73 | J186: 139.57 | K186: 133.9 | L186: 129.1 | M186: 13.38336
A187: 178 | B187: SUNPHARMA | C187: 449.85 | D187: 449.02 | E187: 445.83 | F187: 441.82 | G187: 438.63 | H187: 453.03 | I187: 456.22 | J187: 460.23 | K187: 452.2 | L187: 445 | M187: 18.75787
A188: 179 | B188: SUNTV | C188: 496.25 | D188: 494.08 | E188: 488.97 | F188: 481.68 | G188: 476.57 | H188: 501.37 | I188: 506.48 | J188: 513.77 | K188: 499.2 | L188: 486.8 | M188: 27.04935
A189: 180 | B189: SYNGENE | C189: 305 | D189: 306.70 | E189: 301.40 | F189: 297.80 | G189: 292.50 | H189: 310.30 | I189: 315.60 | J189: 319.20 | K189: 312 | L189: 303.1 | M189: 5.4978
A190: 181 | B190: TVSMOTOR | C190: 464.4 | D190: 464.47 | E190: 459.43 | F190: 454.47 | G190: 449.43 | H190: 469.43 | I190: 474.47 | J190: 479.43 | K190: 469.5 | L190: 459.5 | M190: 11.72659
A191: 182 | B191: TCS | C191: 2190.95 | D191: 2197.47 | E191: 2177.18 | F191: 2163.42 | G191: 2143.13 | H191: 2211.23 | I191: 2231.52 | J191: 2245.28 | K191: 2217.75 | L191: 2183.7 | M191: 20.69866
A192: 183 | B192: TATAGLOBAL | C192: 393.25 | D192: 392.03 | E192: 384.62 | F192: 375.98 | G192: 368.57 | H192: 400.67 | I192: 408.08 | J192: 416.72 | K192: 399.45 | L192: 383.4 | M192: 110.7381
A193: 184 | B193: TATAMTRDVR | C193: 79.05 | D193: 78.88 | E193: 77.47 | F193: 75.88 | G193: 74.47 | H193: 80.47 | I193: 81.88 | J193: 83.47 | K193: 80.3 | L193: 77.3 | M193: 51.41244
A194: 185 | B194: TATAMOTORS | C194: 188.4 | D194: 187.53 | E194: 184.67 | F194: 180.93 | G194: 178.07 | H194: 191.27 | I194: 194.13 | J194: 197.87 | K194: 190.4 | L194: 183.8 | M194: 330.32086
A195: 186 | B195: TATAPOWER | C195: 60.15 | D195: 59.77 | E195: 59.28 | F195: 58.42 | G195: 57.93 | H195: 60.63 | I195: 61.12 | J195: 61.98 | K195: 60.25 | L195: 58.9 | M195: 84.76777
A196: 187 | B196: TATASTEEL | C196: 480.25 | D196: 478.42 | E196: 474.98 | F196: 469.72 | G196: 466.28 | H196: 483.68 | I196: 487.12 | J196: 492.38 | K196: 481.85 | L196: 473.15 | M196: 72.0002
A197: 188 | B197: TECHM | C197: 768.95 | D197: 772.10 | E197: 763.75 | F197: 758.55 | G197: 750.20 | H197: 777.30 | I197: 785.65 | J197: 790.85 | K197: 780.45 | L197: 766.9 | M197: 20.18777
A198: 189 | B198: NIACL | C198: 163.55 | D198: 163.22 | E198: 158.53 | F198: 153.52 | G198: 148.83 | H198: 168.23 | I198: 172.92 | J198: 177.93 | K198: 167.9 | L198: 158.2 | M198: 6.01171
A199: 190 | B199: RAMCOCEM | C199: 858.45 | D199: 851.10 | E199: 833.20 | F199: 807.95 | G199: 790.05 | H199: 876.35 | I199: 894.25 | J199: 919.50 | K199: 869 | L199: 825.85 | M199: 13.20613
A200: 191 | B200: TITAN | C200: 1204.1 | D200: 1195.25 | E200: 1183.85 | F200: 1163.60 | G200: 1152.20 | H200: 1215.50 | I200: 1226.90 | J200: 1247.15 | K200: 1206.65 | L200: 1175 | M200: 21.01116
A201: 192 | B201: TORNTPHARM | C201: 2020.5 | D201: 2019.02 | E201: 2002.48 | F201: 1984.47 | G201: 1967.93 | H201: 2037.03 | I201: 2053.57 | J201: 2071.58 | K201: 2035.55 | L201: 2001 | M201: 1.76247
A202: 193 | B202: TORNTPOWER | C202: 319.65 | D202: 318.57 | E202: 316.13 | F202: 312.62 | G202: 310.18 | H202: 322.08 | I202: 324.52 | J202: 328.03 | K202: 321 | L202: 315.05 | M202: 7.55295
A203: 194 | B203: UPL | C203: 542.2 | D203: 549.02 | E203: 533.48 | F203: 524.77 | G203: 509.23 | H203: 557.73 | I203: 573.27 | J203: 581.98 | K203: 564.55 | L203: 540.3 | M203: 45.3387
A204: 195 | B204: ULTRACEMCO | C204: 4526.4 | D204: 4504.15 | E204: 4468.30 | F204: 4410.20 | G204: 4374.35 | H204: 4562.25 | I204: 4598.10 | J204: 4656.20 | K204: 4540 | L204: 4446.05 | M204: 4.01079
A205: 196 | B205: UNIONBANK | C205: 52.4 | D205: 52.20 | E205: 51.55 | F205: 50.70 | G205: 50.05 | H205: 53.05 | I205: 53.70 | J205: 54.55 | K205: 52.85 | L205: 51.35 | M205: 33.43402
... 30 more rows

Sheet MidCap Intra
L5: Back To Main Page
A6: FOR INTRA DAY TRADING | K6: =Main!B10 -> 2020-01-24
A9: Sr.no | B9: Scrip | C9: CLOSE RATE | D9: Pivot Point | E9: Supports | H9: Resistances
C10: Point | E10: S1 | F10: S2 | G10: S3 | H10: R1 | I10: R2 | J10: R3 | K10: HIGH | L10: LOW | M10: Total Trade Quanity in Lakhs
A11: 1 | B11: 3MINDIA | C11: 22409.7 | D11: 22372.82 | E11: 22286.88 | F11: 22164.07 | G11: 22078.13 | H11: 22495.63 | I11: 22581.57 | J11: 22704.38 | K11: 22458.75 | L11: 22250 | M11: 0.00671
A12: 2 | B12: ACC | C12: 1548.35 | D12: 1542.75 | E12: 1530.60 | F12: 1512.85 | G12: 1500.70 | H12: 1560.50 | I12: 1572.65 | J12: 1590.40 | K12: 1554.9 | L12: 1525 | M12: 11.00769
A13: 3 | B13: AIAENG | C13: 1768.1 | D13: 1759.20 | E13: 1727.40 | F13: 1686.70 | G13: 1654.90 | H13: 1799.90 | I13: 1831.70 | J13: 1872.40 | K13: 1791 | L13: 1718.5 | M13: 1.05004
A14: 4 | B14: APLAPOLLO | C14: 2009 | D14: 2006.33 | E14: 1992.67 | F14: 1976.33 | G14: 1962.67 | H14: 2022.67 | I14: 2036.33 | J14: 2052.67 | K14: 2020 | L14: 1990 | M14: 0.2255
A15: 5 | B15: AUBANK | C15: 974.55 | D15: 964.52 | E15: 921.03 | F15: 867.52 | G15: 824.03 | H15: 1018.03 | I15: 1061.52 | J15: 1115.03 | K15: 1008 | L15: 911 | M15: 49.78519
A16: 6 | B16: AARTIIND | C16: 868.05 | D16: 863.87 | E16: 857.73 | F16: 847.42 | G16: 841.28 | H16: 874.18 | I16: 880.32 | J16: 890.63 | K16: 870 | L16: 853.55 | M16: 0.75059
A17: 7 | B17: AAVAS | C17: 1999.85 | D17: 1984.63 | E17: 1959.32 | F17: 1918.78 | G17: 1893.47 | H17: 2025.17 | I17: 2050.48 | J17: 2091.02 | K17: 2009.95 | L17: 1944.1 | M17: 0.43685
A18: 8 | B18: ABBOTINDIA | C18: 12707.9 | D18: 12703.32 | E18: 12656.63 | F18: 12605.37 | G18: 12558.68 | H18: 12754.58 | I18: 12801.27 | J18: 12852.53 | K18: 12750 | L18: 12652.05 | M18: 0.10901
A19: 9 | B19: ADANIGAS | C19: 172.9 | D19: 171.42 | E19: 168.03 | F19: 163.17 | G19: 159.78 | H19: 176.28 | I19: 179.67 | J19: 184.53 | K19: 174.8 | L19: 166.55 | M19: 19.42737
A20: 10 | B20: ADANIGREEN | C20: 192.2 | D20: 194.03 | E20: 188.17 | F20: 184.13 | G20: 178.27 | H20: 198.07 | I20: 203.93 | J20: 207.97 | K20: 199.9 | L20: 190 | M20: 13.36193
A21: 11 | B21: ADANIPORTS | C21: 385.85 | D21: 384.45 | E21: 382.15 | F21: 378.45 | G21: 376.15 | H21: 388.15 | I21: 390.45 | J21: 394.15 | K21: 386.75 | L21: 380.75 | M21: 12.02104
A22: 12 | B22: ADANIPOWER | C22: 63.35 | D22: 63.12 | E22: 62.53 | F22: 61.72 | G22: 61.13 | H22: 63.93 | I22: 64.52 | J22: 65.33 | K22: 63.7 | L22: 62.3 | M22: 44.73067
A23: 13 | B23: ADANITRANS | C23: 332.9 | D23: 333.47 | E23: 329.43 | F23: 325.97 | G23: 321.93 | H23: 336.93 | I23: 340.97 | J23: 344.43 | K23: 337.5 | L23: 330 | M23: 0.95177
A24: 14 | B24: ABCAPITAL | C24: 106 | D24: 106.67 | E24: 104.93 | F24: 103.87 | G24: 102.13 | H24: 107.73 | I24: 109.47 | J24: 110.53 | K24: 108.4 | L24: 105.6 | M24: 16.7755
A25: 15 | B25: ABFRL | C25: 233.8 | D25: 235.58 | E25: 230.17 | F25: 226.53 | G25: 221.12 | H25: 239.22 | I25: 244.63 | J25: 248.27 | K25: 241 | L25: 231.95 | M25: 3.44297
A26: 16 | B26: ADVENZYMES | C26: 179.05 | D26: 179.45 | E26: 177.85 | F26: 176.65 | G26: 175.05 | H26: 180.65 | I26: 182.25 | J26: 183.45 | K26: 181.05 | L26: 178.25 | M26: 0.28235
A27: 17 | B27: AEGISCHEM | C27: 209.35 | D27: 209.97 | E27: 206.68 | F27: 204.02 | G27: 200.73 | H27: 212.63 | I27: 215.92 | J27: 218.58 | K27: 213.25 | L27: 207.3 | M27: 0.93993
A28: 18 | B28: AFFLE | C28: 1521.2 | D28: 1523.97 | E28: 1499.38 | F28: 1477.57 | G28: 1452.98 | H28: 1545.78 | I28: 1570.37 | J28: 1592.18 | K28: 1548.55 | L28: 1502.15 | M28: 0.77753
A29: 19 | B29: AJANTPHARM | C29: 1182.85 | D29: 1181.88 | E29: 1171.77 | F29: 1160.68 | G29: 1150.57 | H29: 1192.97 | I29: 1203.08 | J29: 1214.17 | K29: 1192 | L29: 1170.8 | M29: 0.62642
A30: 20 | B30: AKZOINDIA | C30: 2006.3 | D30: 2007.58 | E30: 1982.17 | F30: 1958.03 | G30: 1932.62 | H30: 2031.72 | I30: 2057.13 | J30: 2081.27 | K30: 2033 | L30: 1983.45 | M30: 0.11341
A31: 21 | B31: APLLTD | C31: 588.8 | D31: 590.13 | E31: 582.27 | F31: 575.73 | G31: 567.87 | H31: 596.67 | I31: 604.53 | J31: 611.07 | K31: 598 | L31: 583.6 | M31: 4.08209
A32: 22 | B32: ALKEM | C32: 2329.7 | D32: 2334.90 | E32: 2304.80 | F32: 2279.90 | G32: 2249.80 | H32: 2359.80 | I32: 2389.90 | J32: 2414.80 | K32: 2365 | L32: 2310 | M32: 0.57972
A33: 23 | B33: ALLCARGO | C33: 104 | D33: 103.80 | E33: 102.70 | F33: 101.40 | G33: 100.30 | H33: 105.10 | I33: 106.20 | J33: 107.50 | K33: 104.9 | L33: 102.5 | M33: 1.76227
A34: 24 | B34: AMARAJABAT | C34: 790.8 | D34: 792.92 | E34: 782.88 | F34: 774.97 | G34: 764.93 | H34: 800.83 | I34: 810.87 | J34: 818.78 | K34: 802.95 | L34: 785 | M34: 9.64018
A35: 25 | B35: AMBER | C35: 1366.65 | D35: 1355.55 | E35: 1341.10 | F35: 1315.55 | G35: 1301.10 | H35: 1381.10 | I35: 1395.55 | J35: 1421.10 | K35: 1370 | L35: 1330 | M35: 0.40035
A36: 26 | B36: AMBUJACEM | C36: 213.65 | D36: 212.68 | E36: 210.42 | F36: 207.18 | G36: 204.92 | H36: 215.92 | I36: 218.18 | J36: 221.42 | K36: 214.95 | L36: 209.45 | M36: 46.56562
A37: 27 | B37: APOLLOHOSP | C37: 1686.9 | D37: 1672.68 | E37: 1645.47 | F37: 1604.03 | G37: 1576.82 | H37: 1714.12 | I37: 1741.33 | J37: 1782.77 | K37: 1699.9 | L37: 1631.25 | M37: 7.6459
A38: 28 | B38: APOLLOTYRE | C38: 175.15 | D38: 175.68 | E38: 174.17 | F38: 173.18 | G38: 171.67 | H38: 176.67 | I38: 178.18 | J38: 179.17 | K38: 177.2 | L38: 174.7 | M38: 23.18536
A39: 29 | B39: ARVINDFASN | C39: 410.75 | D39: 413.75 | E39: 404.10 | F39: 397.45 | G39: 387.80 | H39: 420.40 | I39: 430.05 | J39: 436.70 | K39: 423.4 | L39: 407.1 | M39: 0.20152
A40: 30 | B40: ASAHIINDIA | C40: 240.9 | D40: 240.97 | E40: 236.23 | F40: 231.57 | G40: 226.83 | H40: 245.63 | I40: 250.37 | J40: 255.03 | K40: 245.7 | L40: 236.3 | M40: 0.14705
A41: 31 | B41: ASHOKLEY | C41: 86.6 | D41: 86.40 | E41: 85.80 | F41: 85.00 | G41: 84.40 | H41: 87.20 | I41: 87.80 | J41: 88.60 | K41: 87 | L41: 85.6 | M41: 86.6937
A42: 32 | B42: ASHOKA | C42: 114.85 | D42: 114.53 | E42: 112.67 | F42: 110.48 | G42: 108.62 | H42: 116.72 | I42: 118.58 | J42: 120.77 | K42: 116.4 | L42: 112.35 | M42: 4.30625
A43: 33 | B43: ASIANPAINT | C43: 1776.1 | D43: 1774.07 | E43: 1759.13 | F43: 1742.17 | G43: 1727.23 | H43: 1791.03 | I43: 1805.97 | J43: 1822.93 | K43: 1789 | L43: 1757.1 | M43: 18.85275
A44: 34 | B44: ASTERDM | C44: 164.5 | D44: 162.58 | E44: 158.87 | F44: 153.23 | G44: 149.52 | H44: 168.22 | I44: 171.93 | J44: 177.57 | K44: 166.3 | L44: 156.95 | M44: 2.57843
A45: 35 | B45: ASTRAZEN | C45: 2534.5 | D45: 2532.35 | E45: 2514.70 | F45: 2494.90 | G45: 2477.25 | H45: 2552.15 | I45: 2569.80 | J45: 2589.60 | K45: 2550 | L45: 2512.55 | M45: 0.61138
A46: 36 | B46: ASTRAL | C46: 1099.4 | D46: 1099.67 | E46: 1090.83 | F46: 1082.27 | G46: 1073.43 | H46: 1108.23 | I46: 1117.07 | J46: 1125.63 | K46: 1108.5 | L46: 1091.1 | M46: 0.79201
A47: 37 | B47: ATUL | C47: 4381.7 | D47: 4367.52 | E47: 4335.18 | F47: 4288.67 | G47: 4256.33 | H47: 4414.03 | I47: 4446.37 | J47: 4492.88 | K47: 4399.85 | L47: 4321 | M47: 1.13772
A48: 38 | B48: AUROPHARMA | C48: 490.05 | D48: 492.33 | E48: 485.07 | F48: 480.08 | G48: 472.82 | H48: 497.32 | I48: 504.58 | J48: 509.57 | K48: 499.6 | L48: 487.35 | M48: 37.59332
A49: 39 | B49: AVANTIFEED | C49: 716.65 | D49: 710.90 | E49: 701.80 | F49: 686.95 | G49: 677.85 | H49: 725.75 | I49: 734.85 | J49: 749.70 | K49: 720 | L49: 696.05 | M49: 7.09597
A50: 40 | B50: DMART | C50: 1924.7 | D50: 1921.28 | E50: 1913.52 | F50: 1902.33 | G50: 1894.57 | H50: 1932.47 | I50: 1940.23 | J50: 1951.42 | K50: 1929.05 | L50: 1910.1 | M50: 2.03734
A51: 41 | B51: AXISBANK | C51: 723 | D51: 726.65 | E51: 715.75 | F51: 708.50 | G51: 697.60 | H51: 733.90 | I51: 744.80 | J51: 752.05 | K51: 737.55 | L51: 719.4 | M51: 206.43257
A52: 42 | B52: BASF | C52: 1017.8 | D52: 1017.93 | E52: 1007.87 | F52: 997.93 | G52: 987.87 | H52: 1027.87 | I52: 1037.93 | J52: 1047.87 | K52: 1028 | L52: 1008 | M52: 0.19997
A53: 43 | B53: BEML | C53: 997.45 | D53: 999.50 | E53: 987.95 | F53: 978.45 | G53: 966.90 | H53: 1009.00 | I53: 1020.55 | J53: 1030.05 | K53: 1011.05 | L53: 990 | M53: 2.637
A54: 44 | B54: BSE | C54: 534.85 | D54: 534.55 | E54: 529.30 | F54: 523.75 | G54: 518.50 | H54: 540.10 | I54: 545.35 | J54: 550.90 | K54: 539.8 | L54: 529 | M54: 0.62395
A55: 45 | B55: BAJAJ-AUTO | C55: 3065.2 | D55: 3068.75 | E55: 3047.55 | F55: 3029.90 | G55: 3008.70 | H55: 3086.40 | I55: 3107.60 | J55: 3125.25 | K55: 3089.95 | L55: 3051.1 | M55: 2.56329
A56: 46 | B56: BAJAJCON | C56: 234.7 | D56: 235.00 | E56: 233.70 | F56: 232.70 | G56: 231.40 | H56: 236.00 | I56: 237.30 | J56: 238.30 | K56: 236.3 | L56: 234 | M56: 1.27677
A57: 47 | B57: BAJAJELEC | C57: 383.55 | D57: 383.93 | E57: 379.87 | F57: 376.18 | G57: 372.12 | H57: 387.62 | I57: 391.68 | J57: 395.37 | K57: 388 | L57: 380.25 | M57: 1.35349
A58: 48 | B58: BAJFINANCE | C58: 4125.8 | D58: 4124.88 | E58: 4085.92 | F58: 4046.03 | G58: 4007.07 | H58: 4164.77 | I58: 4203.73 | J58: 4243.62 | K58: 4163.85 | L58: 4085 | M58: 11.54522
A59: 49 | B59: BAJAJFINSV | C59: 9534.2 | D59: 9538.12 | E59: 9480.23 | F59: 9426.27 | G59: 9368.38 | H59: 9592.08 | I59: 9649.97 | J59: 9703.93 | K59: 9596 | L59: 9484.15 | M59: 1.8128
A60: 50 | B60: BAJAJHLDNG | C60: 3346.4 | D60: 3350.78 | E60: 3328.67 | F60: 3310.93 | G60: 3288.82 | H60: 3368.52 | I60: 3390.63 | J60: 3408.37 | K60: 3372.9 | L60: 3333.05 | M60: 0.41158
A61: 51 | B61: BALKRISIND | C61: 1111 | D61: 1116.60 | E61: 1095.40 | F61: 1079.80 | G61: 1058.60 | H61: 1132.20 | I61: 1153.40 | J61: 1169.00 | K61: 1137.8 | L61: 1101 | M61: 11.92256
A62: 52 | B62: BALMLAWRIE | C62: 123.75 | D62: 123.95 | E62: 122.90 | F62: 122.05 | G62: 121.00 | H62: 124.80 | I62: 125.85 | J62: 126.70 | K62: 125 | L62: 123.1 | M62: 0.61502
A63: 53 | B63: BALRAMCHIN | C63: 183.15 | D63: 183.58 | E63: 181.57 | F63: 179.98 | G63: 177.97 | H63: 185.17 | I63: 187.18 | J63: 188.77 | K63: 185.6 | L63: 182 | M63: 6.64076
A64: 54 | B64: BANDHANBNK | C64: 475.1 | D64: 476.47 | E64: 472.63 | F64: 470.17 | G64: 466.33 | H64: 478.93 | I64: 482.77 | J64: 485.23 | K64: 480.3 | L64: 474 | M64: 12.65094
A65: 55 | B65: BANKBARODA | C65: 94.9 | D65: 95.05 | E65: 93.85 | F65: 92.80 | G65: 91.60 | H65: 96.10 | I65: 97.30 | J65: 98.35 | K65: 96.25 | L65: 94 | M65: 177.90397
A66: 56 | B66: BANKINDIA | C66: 67.55 | D66: 67.60 | E66: 67.00 | F66: 66.45 | G66: 65.85 | H66: 68.15 | I66: 68.75 | J66: 69.30 | K66: 68.2 | L66: 67.05 | M66: 14.65295
A67: 57 | B67: MAHABANK | C67: 13.3 | D67: 13.38 | E67: 13.17 | F67: 13.03 | G67: 12.82 | H67: 13.52 | I67: 13.73 | J67: 13.87 | K67: 13.6 | L67: 13.25 | M67: 5.56752
A68: 58 | B68: BATAINDIA | C68: 1800.6 | D68: 1792.68 | E68: 1777.37 | F68: 1754.13 | G68: 1738.82 | H68: 1815.92 | I68: 1831.23 | J68: 1854.47 | K68: 1808 | L68: 1769.45 | M68: 3.48369
A69: 59 | B69: BAYERCROP | C69: 4088.55 | D69: 4070.83 | E69: 4041.67 | F69: 3994.78 | G69: 3965.62 | H69: 4117.72 | I69: 4146.88 | J69: 4193.77 | K69: 4100 | L69: 4023.95 | M69: 0.1463
A70: 60 | B70: BERGEPAINT | C70: 552.55 | D70: 548.85 | E70: 542.20 | F70: 531.85 | G70: 525.20 | H70: 559.20 | I70: 565.85 | J70: 576.20 | K70: 555.5 | L70: 538.5 | M70: 8.04567
A71: 61 | B71: BDL | C71: 303.2 | D71: 304.95 | E71: 300.25 | F71: 297.30 | G71: 292.60 | H71: 307.90 | I71: 312.60 | J71: 315.55 | K71: 309.65 | L71: 302 | M71: 0.75331
A72: 62 | B72: BEL | C72: 101.15 | D72: 101.95 | E72: 99.35 | F72: 97.55 | G72: 94.95 | H72: 103.75 | I72: 106.35 | J72: 108.15 | K72: 104.55 | L72: 100.15 | M72: 216.58446
A73: 63 | B73: BHARATFORG | C73: 515.25 | D73: 511.20 | E73: 506.20 | F73: 497.15 | G73: 492.15 | H73: 520.25 | I73: 525.25 | J73: 534.30 | K73: 516.2 | L73: 502.15 | M73: 14.185
A74: 64 | B74: BHEL | C74: 43.45 | D74: 43.58 | E74: 43.17 | F74: 42.88 | G74: 42.47 | H74: 43.87 | I74: 44.28 | J74: 44.57 | K74: 44 | L74: 43.3 | M74: 148.71754
A75: 65 | B75: BPCL | C75: 469 | D75: 465.93 | E75: 460.07 | F75: 451.13 | G75: 445.27 | H75: 474.87 | I75: 480.73 | J75: 489.67 | K75: 471.8 | L75: 457 | M75: 55.65676
A76: 66 | B76: BHARTIARTL | C76: 523.65 | D76: 520.67 | E76: 515.33 | F76: 507.02 | G76: 501.68 | H76: 528.98 | I76: 534.32 | J76: 542.63 | K76: 526 | L76: 512.35 | M76: 154.82185
A77: 67 | B77: INFRATEL | C77: 242.2 | D77: 240.47 | E77: 237.18 | F77: 232.17 | G77: 228.88 | H77: 245.48 | I77: 248.77 | J77: 253.78 | K77: 243.75 | L77: 235.45 | M77: 44.66738
A78: 68 | B78: BIOCON | C78: 294.3 | D78: 294.12 | E78: 291.43 | F78: 288.57 | G78: 285.88 | H78: 296.98 | I78: 299.67 | J78: 302.53 | K78: 296.8 | L78: 291.25 | M78: 25.03937
A79: 69 | B79: BIRLACORPN | C79: 764.8 | D79: 756.77 | E79: 741.53 | F79: 718.27 | G79: 703.03 | H79: 780.03 | I79: 795.27 | J79: 818.53 | K79: 772 | L79: 733.5 | M79: 1.45049
A80: 70 | B80: BSOFT | C80: 72.95 | D80: 73.68 | E80: 71.87 | F80: 70.78 | G80: 68.97 | H80: 74.77 | I80: 76.58 | J80: 77.67 | K80: 75.5 | L80: 72.6 | M80: 10.46376
A81: 71 | B81: BLISSGVS | C81: 146 | D81: 145.93 | E81: 144.07 | F81: 142.13 | G81: 140.27 | H81: 147.87 | I81: 149.73 | J81: 151.67 | K81: 147.8 | L81: 144 | M81: 1.90052
A82: 72 | B82: BLUEDART | C82: 2786.75 | D82: 2758.92 | E82: 2697.83 | F82: 2608.92 | G82: 2547.83 | H82: 2847.83 | I82: 2908.92 | J82: 2997.83 | K82: 2820 | L82: 2670 | M82: 0.35713
A83: 73 | B83: BLUESTARCO | C83: 839.75 | D83: 843.80 | E83: 827.60 | F83: 815.45 | G83: 799.25 | H83: 855.95 | I83: 872.15 | J83: 884.30 | K83: 860 | L83: 831.65 | M83: 0.24696
A84: 74 | B84: BBTC | C84: 1140.4 | D84: 1137.72 | E84: 1127.78 | F84: 1115.17 | G84: 1105.23 | H84: 1150.33 | I84: 1160.27 | J84: 1172.88 | K84: 1147.65 | L84: 1125.1 | M84: 0.6211
A85: 75 | B85: BOMDYEING | C85: 87.4 | D85: 87.37 | E85: 86.23 | F85: 85.07 | G85: 83.93 | H85: 88.53 | I85: 89.67 | J85: 90.83 | K85: 88.5 | L85: 86.2 | M85: 31.18842
A86: 76 | B86: BOSCHLTD | C86: 14973.75 | D86: 14941.92 | E86: 14683.83 | F86: 14393.92 | G86: 14135.83 | H86: 15231.83 | I86: 15489.92 | J86: 15779.83 | K86: 15200 | L86: 14652 | M86: 0.21615
A87: 77 | B87: BRIGADE | C87: 229.15 | D87: 229.23 | E87: 225.12 | F87: 221.08 | G87: 216.97 | H87: 233.27 | I87: 237.38 | J87: 241.42 | K87: 233.35 | L87: 225.2 | M87: 1.01877
A88: 78 | B88: BRITANNIA | C88: 3112.95 | D88: 3101.32 | E88: 3079.73 | F88: 3046.52 | G88: 3024.93 | H88: 3134.53 | I88: 3156.12 | J88: 3189.33 | K88: 3122.9 | L88: 3068.1 | M88: 2.03032
A89: 79 | B89: CARERATING | C89: 671.05 | D89: 672.20 | E89: 665.00 | F89: 658.95 | G89: 651.75 | H89: 678.25 | I89: 685.45 | J89: 691.50 | K89: 679.4 | L89: 666.15 | M89: 5.16405
A90: 80 | B90: CCL | C90: 196.5 | D90: 196.92 | E90: 195.53 | F90: 194.57 | G90: 193.18 | H90: 197.88 | I90: 199.27 | J90: 200.23 | K90: 198.3 | L90: 195.95 | M90: 0.51067
A91: 81 | B91: CESC | C91: 739.55 | D91: 745.27 | E91: 731.73 | F91: 723.92 | G91: 710.38 | H91: 753.08 | I91: 766.62 | J91: 774.43 | K91: 758.8 | L91: 737.45 | M91: 4.11175
A92: 82 | B92: CRISIL | C92: 1797.85 | D92: 1804.28 | E92: 1783.57 | F92: 1769.28 | G92: 1748.57 | H92: 1818.57 | I92: 1839.28 | J92: 1853.57 | K92: 1825 | L92: 1790 | M92: 0.10557
A93: 83 | B93: CADILAHC | C93: 269.45 | D93: 270.02 | E93: 268.03 | F93: 266.62 | G93: 264.63 | H93: 271.43 | I93: 273.42 | J93: 274.83 | K93: 272 | L93: 268.6 | M93: 11.96861
A94: 84 | B94: CANFINHOME | C94: 477.2 | D94: 471.18 | E94: 457.37 | F94: 437.53 | G94: 423.72 | H94: 491.02 | I94: 504.83 | J94: 524.67 | K94: 485 | L94: 451.35 | M94: 26.36458
A95: 85 | B95: CANBK | C95: 220.7 | D95: 221.52 | E95: 216.28 | F95: 211.87 | G95: 206.63 | H95: 225.93 | I95: 231.17 | J95: 235.58 | K95: 226.75 | L95: 217.1 | M95: 139.10267
A96: 86 | B96: CAPLIPOINT | C96: 293.45 | D96: 294.60 | E96: 291.25 | F96: 289.05 | G96: 285.70 | H96: 296.80 | I96: 300.15 | J96: 302.35 | K96: 297.95 | L96: 292.4 | M96: 0.34971
A97: 87 | B97: CGCL | C97: 193 | D97: 192.58 | E97: 186.42 | F97: 179.83 | G97: 173.67 | H97: 199.17 | I97: 205.33 | J97: 211.92 | K97: 198.75 | L97: 186 | M97: 3.37815
A98: 88 | B98: CARBORUNIV | C98: 335.15 | D98: 335.27 | E98: 332.73 | F98: 330.32 | G98: 327.78 | H98: 337.68 | I98: 340.22 | J98: 342.63 | K98: 337.8 | L98: 332.85 | M98: 0.07815
A99: 89 | B99: CASTROLIND | C99: 130.65 | D99: 130.57 | E99: 128.88 | F99: 127.12 | G99: 125.43 | H99: 132.33 | I99: 134.02 | J99: 135.78 | K99: 132.25 | L99: 128.8 | M99: 22.43169
A100: 90 | B100: CEATLTD | C100: 1014.05 | D100: 1016.18 | E100: 1003.37 | F100: 992.68 | G100: 979.87 | H100: 1026.87 | I100: 1039.68 | J100: 1050.37 | K100: 1029 | L100: 1005.5 | M100: 2.5676
A101: 91 | B101: CENTRALBK | C101: 18.95 | D101: 19.00 | E101: 18.50 | F101: 18.05 | G101: 17.55 | H101: 19.45 | I101: 19.95 | J101: 20.40 | K101: 19.5 | L101: 18.55 | M101: 7.37194
A102: 92 | B102: CDSL | C102: 278.45 | D102: 279.52 | E102: 274.53 | F102: 270.62 | G102: 265.63 | H102: 283.43 | I102: 288.42 | J102: 292.33 | K102: 284.5 | L102: 275.6 | M102: 6.50246
A103: 93 | B103: CENTURYPLY | C103: 170.75 | D103: 170.25 | E103: 168.05 | F103: 165.35 | G103: 163.15 | H103: 172.95 | I103: 175.15 | J103: 177.85 | K103: 172.45 | L103: 167.55 | M103: 3.60785
A104: 94 | B104: CERA | C104: 2639.9 | D104: 2659.63 | E104: 2597.27 | F104: 2554.63 | G104: 2492.27 | H104: 2702.27 | I104: 2764.63 | J104: 2807.27 | K104: 2722 | L104: 2617 | M104: 0.07598
A105: 95 | B105: CHALET | C105: 341.95 | D105: 343.27 | E105: 337.73 | F105: 333.52 | G105: 327.98 | H105: 347.48 | I105: 353.02 | J105: 357.23 | K105: 348.8 | L105: 339.05 | M105: 0.12163
A106: 96 | B106: CHAMBLFERT | C106: 172.45 | D106: 171.13 | E106: 169.32 | F106: 166.18 | G106: 164.37 | H106: 174.27 | I106: 176.08 | J106: 179.22 | K106: 172.95 | L106: 168 | M106: 3.39522
A107: 97 | B107: CHENNPETRO | C107: 141.45 | D107: 142.35 | E107: 139.55 | F107: 137.65 | G107: 134.85 | H107: 144.25 | I107: 147.05 | J107: 148.95 | K107: 145.15 | L107: 140.45 | M107: 2.59107
A108: 98 | B108: CHOLAHLDNG | C108: 558.25 | D108: 553.42 | E108: 543.83 | F108: 529.42 | G108: 519.83 | H108: 567.83 | I108: 577.42 | J108: 591.83 | K108: 563 | L108: 539 | M108: 6.01705
A109: 99 | B109: CHOLAFIN | C109: 323.5 | D109: 320.72 | E109: 316.43 | F109: 309.37 | G109: 305.08 | H109: 327.78 | I109: 332.07 | J109: 339.13 | K109: 325 | L109: 313.65 | M109: 48.02353
A110: 100 | B110: CIPLA | C110: 465.15 | D110: 466.78 | E110: 457.72 | F110: 450.28 | G110: 441.22 | H110: 474.22 | I110: 483.28 | J110: 490.72 | K110: 475.85 | L110: 459.35 | M110: 57.83749
A111: 101 | B111: CUB | C111: 238.15 | D111: 237.98 | E111: 235.97 | F111: 233.78 | G111: 231.77 | H111: 240.17 | I111: 242.18 | J111: 244.37 | K111: 240 | L111: 235.8 | M111: 3.6492
A112: 102 | B112: COALINDIA | C112: 190.75 | D112: 191.93 | E112: 188.67 | F112: 186.58 | G112: 183.32 | H112: 194.02 | I112: 197.28 | J112: 199.37 | K112: 195.2 | L112: 189.85 | M112: 163.69722
A113: 103 | B113: COCHINSHIP | C113: 403.65 | D113: 408.22 | E113: 388.43 | F113: 373.22 | G113: 353.43 | H113: 423.43 | I113: 443.22 | J113: 458.43 | K113: 428 | L113: 393 | M113: 28.49387
A114: 104 | B114: COLPAL | C114: 1488.8 | D114: 1485.92 | E114: 1479.83 | F114: 1470.87 | G114: 1464.78 | H114: 1494.88 | I114: 1500.97 | J114: 1509.93 | K114: 1492 | L114: 1476.95 | M114: 2.65153
A115: 105 | B115: CONCOR | C115: 552.9 | D115: 551.85 | E115: 548.35 | F115: 543.80 | G115: 540.30 | H115: 556.40 | I115: 559.90 | J115: 564.45 | K115: 555.35 | L115: 547.3 | M115: 10.63748
A116: 106 | B116: COROMANDEL | C116: 612.6 | D116: 608.13 | E116: 597.27 | F116: 581.93 | G116: 571.07 | H116: 623.47 | I116: 634.33 | J116: 649.67 | K116: 619 | L116: 592.8 | M116: 11.51686
A117: 107 | B117: CREDITACC | C117: 811 | D117: 798.62 | E117: 777.38 | F117: 743.77 | G117: 722.53 | H117: 832.23 | I117: 853.47 | J117: 887.08 | K117: 819.85 | L117: 765 | M117: 3.84222
A118: 108 | B118: CROMPTON | C118: 260.1 | D118: 260.92 | E118: 257.33 | F118: 254.57 | G118: 250.98 | H118: 263.68 | I118: 267.27 | J118: 270.03 | K118: 264.5 | L118: 258.15 | M118: 3.67592
A119: 109 | B119: CUMMINSIND | C119: 569.35 | D119: 574.78 | E119: 562.57 | F119: 555.78 | G119: 543.57 | H119: 581.57 | I119: 593.78 | J119: 600.57 | K119: 587 | L119: 568 | M119: 6.08267
A120: 110 | B120: CYIENT | C120: 492.25 | D120: 492.50 | E120: 486.15 | F120: 480.05 | G120: 473.70 | H120: 498.60 | I120: 504.95 | J120: 511.05 | K120: 498.85 | L120: 486.4 | M120: 4.53642
A121: 111 | B121: DBCORP | C121: 147.7 | D121: 146.52 | E121: 142.23 | F121: 136.77 | G121: 132.48 | H121: 151.98 | I121: 156.27 | J121: 161.73 | K121: 150.8 | L121: 141.05 | M121: 5.35802
A122: 112 | B122: DCBBANK | C122: 182.4 | D122: 182.72 | E122: 179.68 | F122: 176.97 | G122: 173.93 | H122: 185.43 | I122: 188.47 | J122: 191.18 | K122: 185.75 | L122: 180 | M122: 6.39859
A123: 113 | B123: DCMSHRIRAM | C123: 399.05 | D123: 400.73 | E123: 395.02 | F123: 390.98 | G123: 385.27 | H123: 404.77 | I123: 410.48 | J123: 414.52 | K123: 406.45 | L123: 396.7 | M123: 0.55973
A124: 114 | B124: DLF | C124: 260.7 | D124: 259.93 | E124: 257.87 | F124: 255.03 | G124: 252.97 | H124: 262.77 | I124: 264.83 | J124: 267.67 | K124: 262 | L124: 257.1 | M124: 51.01631
A125: 115 | B125: DABUR | C125: 489.8 | D125: 488.18 | E125: 484.37 | F125: 478.93 | G125: 475.12 | H125: 493.62 | I125: 497.43 | J125: 502.87 | K125: 492 | L125: 482.75 | M125: 7.98731
A126: 116 | B126: DALBHARAT | C126: 856.8 | D126: 857.25 | E126: 847.55 | F126: 838.30 | G126: 828.60 | H126: 866.50 | I126: 876.20 | J126: 885.45 | K126: 866.95 | L126: 848 | M126: 0.87885
A127: 117 | B127: DEEPAKNTR | C127: 402.05 | D127: 398.32 | E127: 390.43 | F127: 378.82 | G127: 370.93 | H127: 409.93 | I127: 417.82 | J127: 429.43 | K127: 406.2 | L127: 386.7 | M127: 6.6175
A128: 118 | B128: DELTACORP | C128: 197.35 | D128: 198.38 | E128: 195.47 | F128: 193.58 | G128: 190.67 | H128: 200.27 | I128: 203.18 | J128: 205.07 | K128: 201.3 | L128: 196.5 | M128: 5.04823
A129: 119 | B129: DHFL | C129: 16.1 | D129: 16.17 | E129: 15.93 | F129: 15.77 | G129: 15.53 | H129: 16.33 | I129: 16.57 | J129: 16.73 | K129: 16.4 | L129: 16 | M129: 15.03065
A130: 120 | B130: DBL | C130: 420.3 | D130: 422.75 | E130: 414.55 | F130: 408.80 | G130: 400.60 | H130: 428.50 | I130: 436.70 | J130: 442.45 | K130: 430.95 | L130: 417 | M130: 2.7411
A131: 121 | B131: DISHTV | C131: 14 | D131: 13.95 | E131: 13.65 | F131: 13.30 | G131: 13.00 | H131: 14.30 | I131: 14.60 | J131: 14.95 | K131: 14.25 | L131: 13.6 | M131: 293.74158
A132: 122 | B132: DCAL | C132: 83.8 | D132: 82.87 | E132: 81.93 | F132: 80.07 | G132: 79.13 | H132: 84.73 | I132: 85.67 | J132: 87.53 | K132: 83.8 | L132: 81 | M132: 5.88253
A133: 123 | B133: DIVISLAB | C133: 1897.45 | D133: 1884.28 | E133: 1866.17 | F133: 1834.88 | G133: 1816.77 | H133: 1915.57 | I133: 1933.68 | J133: 1964.97 | K133: 1902.4 | L133: 1853 | M133: 2.94035
A134: 124 | B134: DIXON | C134: 4189.5 | D134: 4175.05 | E134: 4150.10 | F134: 4110.70 | G134: 4085.75 | H134: 4214.45 | I134: 4239.40 | J134: 4278.80 | K134: 4200 | L134: 4135.65 | M134: 0.11152
A135: 125 | B135: LALPATHLAB | C135: 1636.5 | D135: 1621.25 | E135: 1597.50 | F135: 1558.50 | G135: 1534.75 | H135: 1660.25 | I135: 1684.00 | J135: 1723.00 | K135: 1645 | L135: 1582.25 | M135: 0.7923
A136: 126 | B136: DRREDDY | C136: 3038.15 | D136: 3046.95 | E136: 3015.20 | F136: 2992.25 | G136: 2960.50 | H136: 3069.90 | I136: 3101.65 | J136: 3124.60 | K136: 3078.7 | L136: 3024 | M136: 4.26168
A137: 127 | B137: EIDPARRY | C137: 228.15 | D137: 228.38 | E137: 224.77 | F137: 221.38 | G137: 217.77 | H137: 231.77 | I137: 235.38 | J137: 238.77 | K137: 232 | L137: 225 | M137: 2.73652
A138: 128 | B138: EIHOTEL | C138: 147.6 | D138: 147.65 | E138: 146.00 | F138: 144.40 | G138: 142.75 | H138: 149.25 | I138: 150.90 | J138: 152.50 | K138: 149.3 | L138: 146.05 | M138: 0.46969
A139: 129 | B139: EDELWEISS | C139: 98 | D139: 99.00 | E139: 96.00 | F139: 94.00 | G139: 91.00 | H139: 101.00 | I139: 104.00 | J139: 106.00 | K139: 102 | L139: 97 | M139: 26.67695
A140: 130 | B140: EICHERMOT | C140: 20915.75 | D140: 20964.08 | E140: 20732.17 | F140: 20548.58 | G140: 20316.67 | H140: 21147.67 | I140: 21379.58 | J140: 21563.17 | K140: 21196 | L140: 20780.5 | M140: 1.05958
A141: 131 | B141: ELGIEQUIP | C141: 255.1 | D141: 254.35 | E141: 251.30 | F141: 247.50 | G141: 244.45 | H141: 258.15 | I141: 261.20 | J141: 265.00 | K141: 257.4 | L141: 250.55 | M141: 0.06291
A142: 132 | B142: EMAMILTD | C142: 335.8 | D142: 334.60 | E142: 331.20 | F142: 326.60 | G142: 323.20 | H142: 339.20 | I142: 342.60 | J142: 347.20 | K142: 338 | L142: 330 | M142: 8.24544
A143: 133 | B143: ENDURANCE | C143: 1115.85 | D143: 1101.92 | E143: 1083.93 | F143: 1052.02 | G143: 1034.03 | H143: 1133.83 | I143: 1151.82 | J143: 1183.73 | K143: 1119.9 | L143: 1070 | M143: 0.38578
A144: 134 | B144: ENGINERSIN | C144: 100.5 | D144: 100.23 | E144: 99.47 | F144: 98.43 | G144: 97.67 | H144: 101.27 | I144: 102.03 | J144: 103.07 | K144: 101 | L144: 99.2 | M144: 4.93702
A145: 135 | B145: EQUITAS | C145: 105.65 | D145: 105.13 | E145: 103.82 | F145: 101.98 | G145: 100.67 | H145: 106.97 | I145: 108.28 | J145: 110.12 | K145: 106.45 | L145: 103.3 | M145: 23.6134
A146: 136 | B146: ERIS | C146: 506.95 | D146: 505.65 | E146: 503.30 | F146: 499.65 | G146: 497.30 | H146: 509.30 | I146: 511.65 | J146: 515.30 | K146: 508 | L146: 502 | M146: 0.24637
A147: 137 | B147: ESCORTS | C147: 712.7 | D147: 709.92 | E147: 702.93 | F147: 693.17 | G147: 686.18 | H147: 719.68 | I147: 726.67 | J147: 736.43 | K147: 716.9 | L147: 700.15 | M147: 14.29046
A148: 138 | B148: ESSELPACK | C148: 175.95 | D148: 174.55 | E148: 172.45 | F148: 168.95 | G148: 166.85 | H148: 178.05 | I148: 180.15 | J148: 183.65 | K148: 176.65 | L148: 171.05 | M148: 0.61749
A149: 139 | B149: EXIDEIND | C149: 199.35 | D149: 198.97 | E149: 197.03 | F149: 194.72 | G149: 192.78 | H149: 201.28 | I149: 203.22 | J149: 205.53 | K149: 200.9 | L149: 196.65 | M149: 29.16024
A150: 140 | B150: FDC | C150: 227.9 | D150: 227.98 | E150: 224.72 | F150: 221.53 | G150: 218.27 | H150: 231.17 | I150: 234.43 | J150: 237.62 | K150: 231.25 | L150: 224.8 | M150: 0.31254
A151: 141 | B151: FEDERALBNK | C151: 94.5 | D151: 94.57 | E151: 93.23 | F151: 91.97 | G151: 90.63 | H151: 95.83 | I151: 97.17 | J151: 98.43 | K151: 95.9 | L151: 93.3 | M151: 119.65127
A152: 142 | B152: FMGOETZE | C152: 613.7 | D152: 615.90 | E152: 607.80 | F152: 601.90 | G152: 593.80 | H152: 621.80 | I152: 629.90 | J152: 635.80 | K152: 624 | L152: 610 | M152: 0.01378
A153: 143 | B153: FINEORG | C153: 2227.15 | D153: 2227.18 | E153: 2206.37 | F153: 2185.58 | G153: 2164.77 | H153: 2247.97 | I153: 2268.78 | J153: 2289.57 | K153: 2248 | L153: 2206.4 | M153: 0.05606
A154: 144 | B154: FINCABLES | C154: 414.45 | D154: 414.75 | E154: 411.70 | F154: 408.95 | G154: 405.90 | H154: 417.50 | I154: 420.55 | J154: 423.30 | K154: 417.8 | L154: 412 | M154: 0.13669
A155: 145 | B155: FINPIPE | C155: 552.2 | D155: 556.32 | E155: 546.88 | F155: 541.57 | G155: 532.13 | H155: 561.63 | I155: 571.07 | J155: 576.38 | K155: 565.75 | L155: 551 | M155: 0.1326
A156: 146 | B156: FSL | C156: 43.7 | D156: 43.68 | E156: 43.37 | F156: 43.03 | G156: 42.72 | H156: 44.02 | I156: 44.33 | J156: 44.67 | K156: 44 | L156: 43.35 | M156: 9.47406
A157: 147 | B157: FORTIS | C157: 154 | D157: 153.35 | E157: 151.30 | F157: 148.60 | G157: 146.55 | H157: 156.05 | I157: 158.10 | J157: 160.80 | K157: 155.4 | L157: 150.65 | M157: 23.11259
A158: 148 | B158: FCONSUMER | C158: 24.85 | D158: 24.82 | E158: 24.28 | F158: 23.72 | G158: 23.18 | H158: 25.38 | I158: 25.92 | J158: 26.48 | K158: 25.35 | L158: 24.25 | M158: 11.51848
A159: 149 | B159: FLFL | C159: 403.85 | D159: 404.60 | E159: 398.25 | F159: 392.65 | G159: 386.30 | H159: 410.20 | I159: 416.55 | J159: 422.15 | K159: 410.95 | L159: 399 | M159: 0.3908
A160: 150 | B160: FRETAIL | C160: 339.95 | D160: 340.93 | E160: 337.12 | F160: 334.28 | G160: 330.47 | H160: 343.77 | I160: 347.58 | J160: 350.42 | K160: 344.75 | L160: 338.1 | M160: 2.94579
A161: 151 | B161: GAIL | C161: 129.65 | D161: 128.52 | E161: 126.33 | F161: 123.02 | G161: 120.83 | H161: 131.83 | I161: 134.02 | J161: 137.33 | K161: 130.7 | L161: 125.2 | M161: 136.00475
A162: 152 | B162: GEPIL | C162: 684.05 | D162: 682.68 | E162: 677.37 | F162: 670.68 | G162: 665.37 | H162: 689.37 | I162: 694.68 | J162: 701.37 | K162: 688 | L162: 676 | M162: 0.06802
A163: 153 | B163: GET&D | C163: 162.8 | D163: 160.63 | E163: 155.32 | F163: 147.83 | G163: 142.52 | H163: 168.12 | I163: 173.43 | J163: 180.92 | K163: 165.95 | L163: 153.15 | M163: 7.15186
A164: 154 | B164: GHCL | C164: 196.45 | D164: 199.67 | E164: 190.83 | F164: 185.22 | G164: 176.38 | H164: 205.28 | I164: 214.12 | J164: 219.73 | K164: 208.5 | L164: 194.05 | M164: 17.35715
A165: 155 | B165: GMRINFRA | C165: 23.9 | D165: 23.63 | E165: 23.27 | F165: 22.63 | G165: 22.27 | H165: 24.27 | I165: 24.63 | J165: 25.27 | K165: 24 | L165: 23 | M165: 291.46603
A166: 156 | B166: GALAXYSURF | C166: 1488.1 | D166: 1488.03 | E166: 1471.07 | F166: 1454.03 | G166: 1437.07 | H166: 1505.07 | I166: 1522.03 | J166: 1539.07 | K166: 1505 | L166: 1471 | M166: 0.04168
A167: 157 | B167: GARFIBRES | C167: 1396.3 | D167: 1413.58 | E167: 1377.77 | F167: 1359.23 | G167: 1323.42 | H167: 1432.12 | I167: 1467.93 | J167: 1486.47 | K167: 1449.4 | L167: 1395.05 | M167: 0.39604
A168: 158 | B168: GAYAPROJ | C168: 73.6 | D168: 75.00 | E168: 71.20 | F168: 68.80 | G168: 65.00 | H168: 77.40 | I168: 81.20 | J168: 83.60 | K168: 78.8 | L168: 72.6 | M168: 11.79283
A169: 159 | B169: GICRE | C169: 255.3 | D169: 255.02 | E169: 246.43 | F169: 237.57 | G169: 228.98 | H169: 263.88 | I169: 272.47 | J169: 281.33 | K169: 263.6 | L169: 246.15 | M169: 7.65016
A170: 160 | B170: GILLETTE | C170: 6298.05 | D170: 6305.77 | E170: 6274.53 | F170: 6251.02 | G170: 6219.78 | H170: 6329.28 | I170: 6360.52 | J170: 6384.03 | K170: 6337 | L170: 6282.25 | M170: 0.03856
A171: 161 | B171: GLAXO | C171: 1629.9 | D171: 1630.57 | E171: 1621.33 | F171: 1612.77 | G171: 1603.53 | H171: 1639.13 | I171: 1648.37 | J171: 1656.93 | K171: 1639.8 | L171: 1622 | M171: 0.41182
A172: 162 | B172: GLENMARK | C172: 350.9 | D172: 350.47 | E172: 347.43 | F172: 343.97 | G172: 340.93 | H172: 353.93 | I172: 356.97 | J172: 360.43 | K172: 353.5 | L172: 347 | M172: 7.77768
A173: 163 | B173: GODFRYPHLP | C173: 1381.1 | D173: 1395.70 | E173: 1361.40 | F173: 1341.70 | G173: 1307.40 | H173: 1415.40 | I173: 1449.70 | J173: 1469.40 | K173: 1430 | L173: 1376 | M173: 0.68976
A174: 164 | B174: GODREJAGRO | C174: 555.1 | D174: 553.32 | E174: 549.93 | F174: 544.77 | G174: 541.38 | H174: 558.48 | I174: 561.87 | J174: 567.03 | K174: 556.7 | L174: 548.15 | M174: 0.2966
A175: 165 | B175: GODREJCP | C175: 741.05 | D175: 736.02 | E175: 729.03 | F175: 717.02 | G175: 710.03 | H175: 748.03 | I175: 755.02 | J175: 767.03 | K175: 743 | L175: 724 | M175: 7.57948
A176: 166 | B176: GODREJIND | C176: 430.9 | D176: 432.80 | E176: 424.60 | F176: 418.30 | G176: 410.10 | H176: 439.10 | I176: 447.30 | J176: 453.60 | K176: 441 | L176: 426.5 | M176: 0.73852
A177: 167 | B177: GODREJPROP | C177: 1020.3 | D177: 1002.43 | E177: 979.87 | F177: 939.43 | G177: 916.87 | H177: 1042.87 | I177: 1065.43 | J177: 1105.87 | K177: 1025 | L177: 962 | M177: 5.62451
A178: 168 | B178: GRANULES | C178: 159.8 | D178: 156.67 | E178: 152.23 | F178: 144.67 | G178: 140.23 | H178: 164.23 | I178: 168.67 | J178: 176.23 | K178: 161.1 | L178: 149.1 | M178: 61.36199
A179: 169 | B179: GRAPHITE | C179: 323.15 | D179: 320.72 | E179: 315.63 | F179: 308.12 | G179: 303.03 | H179: 328.23 | I179: 333.32 | J179: 340.83 | K179: 325.8 | L179: 313.2 | M179: 22.60357
A180: 170 | B180: GRASIM | C180: 808.9 | D180: 801.28 | E180: 790.62 | F180: 772.33 | G180: 761.67 | H180: 819.57 | I180: 830.23 | J180: 848.52 | K180: 811.95 | L180: 783 | M180: 25.87185
A181: 171 | B181: GESHIP | C181: 340.55 | D181: 341.98 | E181: 334.97 | F181: 329.38 | G181: 322.37 | H181: 347.57 | I181: 354.58 | J181: 360.17 | K181: 349 | L181: 336.4 | M181: 0.6876
A182: 172 | B182: GREAVESCOT | C182: 143.5 | D182: 142.72 | E182: 140.88 | F182: 138.27 | G182: 136.43 | H182: 145.33 | I182: 147.17 | J182: 149.78 | K182: 144.55 | L182: 140.1 | M182: 1.67865
A183: 173 | B183: GRINDWELL | C183: 642.9 | D183: 637.35 | E183: 625.70 | F183: 608.50 | G183: 596.85 | H183: 654.55 | I183: 666.20 | J183: 683.40 | K183: 649 | L183: 620.15 | M183: 0.2182
A184: 174 | B184: GUJALKALI | C184: 424.25 | D184: 424.88 | E184: 420.37 | F184: 416.48 | G184: 411.97 | H184: 428.77 | I184: 433.28 | J184: 437.17 | K184: 429.4 | L184: 421 | M184: 0.30681
A185: 175 | B185: GUJGASLTD | C185: 290.65 | D185: 287.18 | E185: 282.77 | F185: 274.88 | G185: 270.47 | H185: 295.07 | I185: 299.48 | J185: 307.37 | K185: 291.6 | L185: 279.3 | M185: 14.40061
A186: 176 | B186: GMDCLTD | C186: 67.6 | D186: 67.70 | E186: 66.50 | F186: 65.40 | G186: 64.20 | H186: 68.80 | I186: 70.00 | J186: 71.10 | K186: 68.9 | L186: 66.6 | M186: 1.63046
A187: 177 | B187: GNFC | C187: 205.1 | D187: 203.47 | E187: 200.33 | F187: 195.57 | G187: 192.43 | H187: 208.23 | I187: 211.37 | J187: 216.13 | K187: 206.6 | L187: 198.7 | M187: 12.35742
A188: 178 | B188: GPPL | C188: 91.2 | D188: 90.95 | E188: 89.75 | F188: 88.30 | G188: 87.10 | H188: 92.40 | I188: 93.60 | J188: 95.05 | K188: 92.15 | L188: 89.5 | M188: 0.85458
A189: 179 | B189: GSFC | C189: 90.45 | D189: 89.48 | E189: 87.42 | F189: 84.38 | G189: 82.32 | H189: 92.52 | I189: 94.58 | J189: 97.62 | K189: 91.55 | L189: 86.45 | M189: 18.46307
A190: 180 | B190: GSPL | C190: 250.75 | D190: 251.40 | E190: 247.50 | F190: 244.25 | G190: 240.35 | H190: 254.65 | I190: 258.55 | J190: 261.80 | K190: 255.3 | L190: 248.15 | M190: 8.21028
A191: 181 | B191: GULFOILLUB | C191: 810.3 | D191: 817.70 | E191: 799.60 | F191: 788.90 | G191: 770.80 | H191: 828.40 | I191: 846.50 | J191: 857.20 | K191: 835.8 | L191: 807 | M191: 0.0353
A192: 182 | B192: HEG | C192: 1135.8 | D192: 1132.60 | E192: 1123.20 | F192: 1110.60 | G192: 1101.20 | H192: 1145.20 | I192: 1154.60 | J192: 1167.20 | K192: 1142 | L192: 1120 | M192: 3.82023
A193: 183 | B193: HCLTECH | C193: 598.95 | D193: 595.30 | E193: 590.65 | F193: 582.35 | G193: 577.70 | H193: 603.60 | I193: 608.25 | J193: 616.55 | K193: 599.95 | L193: 587 | M193: 60.89397
A194: 184 | B194: HDFCAMC | C194: 3223.35 | D194: 3211.58 | E194: 3183.17 | F194: 3142.98 | G194: 3114.57 | H194: 3251.77 | I194: 3280.18 | J194: 3320.37 | K194: 3240 | L194: 3171.4 | M194: 4.35772
A195: 185 | B195: HDFCBANK | C195: 1244.85 | D195: 1240.90 | E195: 1234.95 | F195: 1225.05 | G195: 1219.10 | H195: 1250.80 | I195: 1256.75 | J195: 1266.65 | K195: 1246.85 | L195: 1231 | M195: 57.5446
A196: 186 | B196: HDFCLIFE | C196: 616 | D196: 616.47 | E196: 611.03 | F196: 606.07 | G196: 600.63 | H196: 621.43 | I196: 626.87 | J196: 631.83 | K196: 621.9 | L196: 611.5 | M196: 16.85313
A197: 187 | B197: HFCL | C197: 17.15 | D197: 17.17 | E197: 17.03 | F197: 16.92 | G197: 16.78 | H197: 17.28 | I197: 17.42 | J197: 17.53 | K197: 17.3 | L197: 17.05 | M197: 9.7639
A198: 188 | B198: HATSUN | C198: 644.45 | D198: 646.95 | E198: 635.90 | F198: 627.35 | G198: 616.30 | H198: 655.50 | I198: 666.55 | J198: 675.10 | K198: 658 | L198: 638.4 | M198: 0.24217
A199: 189 | B199: HAVELLS | C199: 619.85 | D199: 613.78 | E199: 606.57 | F199: 593.28 | G199: 586.07 | H199: 627.07 | I199: 634.28 | J199: 647.57 | K199: 621 | L199: 600.5 | M199: 33.65852
A200: 190 | B200: HEIDELBERG | C200: 202.85 | D200: 202.57 | E200: 197.28 | F200: 191.72 | G200: 186.43 | H200: 208.13 | I200: 213.42 | J200: 218.98 | K200: 207.85 | L200: 197 | M200: 10.64163
A201: 191 | B201: HERITGFOOD | C201: 367.35 | D201: 365.43 | E201: 362.02 | F201: 356.68 | G201: 353.27 | H201: 370.77 | I201: 374.18 | J201: 379.52 | K201: 368.85 | L201: 360.1 | M201: 0.07017
A202: 192 | B202: HEROMOTOCO | C202: 2429.75 | D202: 2414.87 | E202: 2394.88 | F202: 2360.02 | G202: 2340.03 | H202: 2449.73 | I202: 2469.72 | J202: 2504.58 | K202: 2434.85 | L202: 2380 | M202: 3.15469
A203: 193 | B203: HEXAWARE | C203: 344.15 | D203: 342.42 | E203: 337.28 | F203: 330.42 | G203: 325.28 | H203: 349.28 | I203: 354.42 | J203: 361.28 | K203: 347.55 | L203: 335.55 | M203: 3.48381
A204: 194 | B204: HSCL | C204: 69.15 | D204: 68.92 | E204: 68.23 | F204: 67.32 | G204: 66.63 | H204: 69.83 | I204: 70.52 | J204: 71.43 | K204: 69.6 | L204: 68 | M204: 6.47798
A205: 195 | B205: HIMATSEIDE | C205: 138.9 | D205: 138.92 | E205: 136.93 | F205: 134.97 | G205: 132.98 | H205: 140.88 | I205: 142.87 | J205: 144.83 | K205: 140.9 | L205: 136.95 | M205: 1.23068
A206: 196 | B206: HINDALCO | C206: 204.6 | D206: 204.23 | E206: 203.12 | F206: 201.63 | G206: 200.52 | H206: 205.72 | I206: 206.83 | J206: 208.32 | K206: 205.35 | L206: 202.75 | M206: 55.60681
... 320 more rows

Sheet Bulk Deals
E6: Back To Main Page
A7: Subject : | B7: BULK DEAL | D7: =Main!B10 -> 2020-01-24
A9: Date | B9: Scrip code | C9: Scrip Name | D9: Client Name | E9: Buy / Sell | F9: Quantity Traded | G9: Trade Price / Wt.Avg.trade price | H9: Exchange
A10: 2020-01-23 | B10: 511463 | C10: ALEXANDER | D10: KAHAR NIKLESH KANAIYABHAI | E10: BUY | F10: 24,678 | G10: 16.52 | H10: BSE
A11: 2020-01-23 | B11: 511463 | C11: ALEXANDER | D11: KAHAR NIKLESH KANAIYABHAI | E11: SELL | F11: 111,609 | G11: 16.35 | H11: BSE
A12: 2020-01-23 | B12: 511463 | C12: ALEXANDER | D12: PATIL ULHAS BHASKARRAO PATIL ULHAS BHASKARRAO | E12: BUY | F12: 60,000 | G12: 16.5 | H12: BSE
A13: 2020-01-23 | B13: 540545 | C13: BGJL | D13: KETANBHAI RAGHURAMBHAI THAKKAR | E13: BUY | F13: 103,500 | G13: 37.94 | H13: BSE
A14: 2020-01-23 | B14: 539198 | C14: CAPFIN | D14: PRATIK TOSHNIVAL | E14: SELL | F14: 19,000 | G14: 2.69 | H14: BSE
A15: 2020-01-23 | B15: 539198 | C15: CAPFIN | D15: AMAR JEE JHA | E15: BUY | F15: 19,000 | G15: 2.69 | H15: BSE
A16: 2020-01-23 | B16: 538432 | C16: DIVINUS | D16: BRIJESH UMESHBHAI JOSHI | E16: BUY | F16: 14,500 | G16: 31 | H16: BSE
A17: 2020-01-23 | B17: 538432 | C17: DIVINUS | D17: BRIJESH UMESHBHAI JOSHI | E17: SELL | F17: 26,978 | G17: 30.78 | H17: BSE
A18: 2020-01-23 | B18: 538432 | C18: DIVINUS | D18: SONALBEN TRIVEDI | E18: SELL | F18: 25,108 | G18: 30.87 | H18: BSE
A19: 2020-01-23 | B19: 538432 | C19: DIVINUS | D19: ISHWARIBAI GANGARAM KHILNANI | E19: BUY | F19: 46,000 | G19: 30.73 | H19: BSE
A20: 2020-01-23 | B20: 530643 | C20: ECORECO | D20: FORBES EMF | E20: BUY | F20: 165,014 | G20: 33 | H20: BSE
A21: 2020-01-23 | B21: 530643 | C21: ECORECO | D21: LOTUS GLOBAL INVESTMENTS LIMITED | E21: SELL | F21: 165,014 | G21: 33.00 | H21: BSE
A22: 2020-01-23 | B22: 541627 | C22: HITECHWIND | D22: GYANWATI PUKHRAJ BANSAL | E22: SELL | F22: 25,000 | G22: 19.93 | H22: BSE
A23: 2020-01-23 | B23: 541627 | C23: HITECHWIND | D23: RAJA CHANDRASHEKHAR VENKATRAMAN | E23: BUY | F23: 71,500 | G23: 20.3 | H23: BSE
A24: 2020-01-23 | B24: 530979 | C24: INDIAHOME | D24: MANHARLAL CHIMANLA PARIKH HUF | E24: BUY | F24: 118,133 | G24: 49.80 | H24: BSE
A25: 2020-01-23 | B25: 530979 | C25: INDIAHOME | D25: INNOVATE SECURITIES PVT L | E25: SELL | F25: 118,133 | G25: 49.8 | H25: BSE
A26: 2020-01-23 | B26: 534734 | C26: RMCHEM | D26: MANOJKUMAR GUNVANTRAI SOMANI | E26: BUY | F26: 14,100 | G26: 0.62 | H26: BSE
A27: 2020-01-23 | B27: 534734 | C27: RMCHEM | D27: MANOJKUMAR GUNVANTRAI SOMANI | E27: SELL | F27: 1,350,000 | G27: 0.62 | H27: BSE
A28: 2020-01-23 | B28: 540693 | C28: SHISHIND | D28: PURE BROKING PRIVATE LIMITED | E28: BUY | F28: 40,000 | G28: 42 | H28: BSE
A29: 2020-01-23 | B29: 540693 | C29: SHISHIND | D29: PRABHULAL LALLUBHAI PAREKH | E29: SELL | F29: 44,000 | G29: 42 | H29: BSE
A30: 2020-01-23 | B30: 539026 | C30: SSPNFIN | D30: SANJAY KUMAR SINGH | E30: BUY | F30: 12,000 | G30: 54.9 | H30: BSE
A31: 2020-01-23 | B31: 539026 | C31: SSPNFIN | D31: CHANDU K JAIN HUF | E31: SELL | F31: 16,000 | G31: 51.5 | H31: BSE
A32: 2020-01-23 | B32: 539026 | C32: SSPNFIN | D32: INDIAPRIDE ADVISORY PRIVATE LIMITED | E32: SELL | F32: 12,000 | G32: 54.9 | H32: BSE
A33: 2020-01-23 | B33: 530585 | C33: SWASTIKA | D33: REKHA PHOPHALIA | E33: BUY | F33: 20,000 | G33: 82 | H33: BSE
A34: 2020-01-23 | B34: 530585 | C34: SWASTIKA | D34: MAHESH AGRAWAL (HUF) | E34: SELL | F34: 24,900 | G34: 82 | H34: BSE
A35: 2020-01-23 | B35: 505285 | C35: TULIVE | D35: CNC REALTY PRIVATE LTD | E35: BUY | F35: 73,733 | G35: 242.5 | H35: BSE
A36: 2020-01-23 | B36: 505285 | C36: TULIVE | D36: VAIDYANATHAN SURESH | E36: SELL | F36: 73,733 | G36: 242.5 | H36: BSE
A37: 2020-01-23 | B37: CALSOFT | C37: California Soft Ltd. | D37: MAHADEVAN N | E37: BUY | F37: 52,902 | G37: 13.24 | H37: NSE
A38: 2020-01-23 | B38: GOACARBON | C38: Goa Carbon Ltd | D38: ALPHA LEON ENTERPRISES LLP | E38: BUY | F38: 33,752 | G38: 340.3 | H38: NSE
A39: 2020-01-23 | B39: IBULHSGFIN | C39: Indiabulls Hsg Fin Ltd | D39: CREDIT SUISSE (SINGAPORE) LIMITED A/C CREDIT SUISSE (SINGAPO | E39: BUY | F39: 2,293,306 | G39: 311.68 | H39: NSE
A40: 2020-01-23 | B40: KAMATHOTEL | C40: Kamat Hotels (I) Ltd | D40: PRATIBHA DAYAKRISHNA GOYAL | E40: BUY | F40: 124,815 | G40: 39.64 | H40: NSE
A41: 2020-01-23 | B41: MAHESHWARI | C41: Maheshwari Logistics Limi | D41: MONEY GROW INVESTMENT | E41: BUY | F41: 104,868 | G41: 298.8 | H41: NSE
A42: 2020-01-23 | B42: MCDHOLDING | C42: McDowell Holdings Limited | D42: SURESH POONATI | E42: BUY | F42: 72,312 | G42: 24.58 | H42: NSE
A43: 2020-01-23 | B43: NECCLTD | C43: North East Carry Corp Ltd | D43: CAPSTON CAPITAL PARTNERS | E43: BUY | F43: 334,000 | G43: 5.6 | H43: NSE
A44: 2020-01-23 | B44: ORIENTALTL | C44: Oriental Trimex Limited | D44: SHIVMANI VINIMAY PRIVATE LIMITED | E44: BUY | F44: 353,627 | G44: 10.2 | H44: NSE
A45: 2020-01-23 | B45: RPOWER | C45: Reliance Power Limited | D45: ALPHA LEON ENTERPRISES LLP | E45: BUY | F45: 24,534,830 | G45: 2.07 | H45: NSE
A46: 2020-01-23 | B46: RPOWER | C46: Reliance Power Limited | D46: MULTIPLIER S AND S ADV PVT LTD | E46: BUY | F46: 15,756,216 | G46: 2.12 | H46: NSE
A47: 2020-01-23 | B47: SONAMCLOCK | C47: Sonam Clock Limited | D47: JAYESHBHAI CHHABILDAS SHAH | E47: BUY | F47: 60,000 | G47: 37.5 | H47: NSE
A48: 2020-01-23 | B48: TRANSWIND | C48: Transwind Infra Limited | D48: KISHAN SURESHBHAI JOGIA | E48: BUY | F48: 48,000 | G48: 3.65 | H48: NSE
A49: 2020-01-23 | B49: VCL | C49: Vaxtex Cotfab Limited | D49: THAKURJI INTERNATIONAL PRIVATE LIMITED | E49: BUY | F49: 96,000 | G49: 23.85 | H49: NSE
A50: 2020-01-23 | B50: VCL | C50: Vaxtex Cotfab Limited | D50: NNM SECURITIES PVT LTD | E50: BUY | F50: 6,000 | G50: 22.9 | H50: NSE
A51: 2020-01-23 | B51: YESBANK | C51: Yes Bank Limited | D51: TOWER RESEARCH CAPITAL MARKETS INDIA PRIVATE LIMITED | E51: BUY | F51: 14,940,676 | G51: 39.98 | H51: NSE
A52: 2020-01-23 | B52: CALSOFT | C52: California Soft Ltd. | D52: MAHADEVAN N | E52: SELL | F52: 65,100 | G52: 13.09 | H52: NSE
A53: 2020-01-23 | B53: CONTI | C53: Continental Seed Chem Ltd | D53: SATISH KUMAR GUPTA HUF | E53: SELL | F53: 32,000 | G53: 61.7 | H53: NSE
A54: 2020-01-23 | B54: CONTI | C54: Continental Seed Chem Ltd | D54: KAUSHALYA GARG | E54: SELL | F54: 32,000 | G54: 61.7 | H54: NSE
A55: 2020-01-23 | B55: GOACARBON | C55: Goa Carbon Ltd | D55: ALPHA LEON ENTERPRISES LLP | E55: SELL | F55: 49,937 | G55: 340.3 | H55: NSE
A56: 2020-01-23 | B56: KAMATHOTEL | C56: Kamat Hotels (I) Ltd | D56: BHATIA SURESH HUF | E56: SELL | F56: 141,399 | G56: 39.23 | H56: NSE
A57: 2020-01-23 | B57: MAHESHWARI | C57: Maheshwari Logistics Limi | D57: MONEY GROW INVESTMENT | E57: SELL | F57: 104,868 | G57: 302.88 | H57: NSE
A58: 2020-01-23 | B58: NECCLTD | C58: North East Carry Corp Ltd | D58: SHIVMANI VINIMAY PRIVATE LIMITED | E58: SELL | F58: 333,805 | G58: 5.6 | H58: NSE
A59: 2020-01-23 | B59: ORIENTALTL | C59: Oriental Trimex Limited | D59: SHIVMANI VINIMAY PRIVATE LIMITED | E59: SELL | F59: 135,000 | G59: 10.25 | H59: NSE
A60: 2020-01-23 | B60: ORIENTALTL | C60: Oriental Trimex Limited | D60: CAPSTON CAPITAL PARTNERS | E60: SELL | F60: 361,000 | G60: 10.2 | H60: NSE
A61: 2020-01-23 | B61: RPOWER | C61: Reliance Power Limited | D61: AXIS TRUSTEE SERVICES LIMITED | E61: SELL | F61: 17,227,879 | G61: 2.15 | H61: NSE
A62: 2020-01-23 | B62: RPOWER | C62: Reliance Power Limited | D62: ALPHA LEON ENTERPRISES LLP | E62: SELL | F62: 33,556,852 | G62: 2.12 | H62: NSE
A63: 2020-01-23 | B63: RPOWER | C63: Reliance Power Limited | D63: MULTIPLIER S AND S ADV PVT LTD | E63: SELL | F63: 15,027,831 | G63: 2.13 | H63: NSE
A64: 2020-01-23 | B64: SANCO | C64: Sanco Industries Ltd. | D64: EURO PLUS CAPITAL LIMITED | E64: SELL | F64: 100000 | G64: 12.08 | H64: NSE
A65: 2020-01-23 | B65: SONAMCLOCK | C65: Sonam Clock Limited | D65: ARCADIA SHARE & STOCK BROKERS PVT. LTD. | E65: SELL | F65: 60,000 | G65: 37.5 | H65: NSE
A66: 2020-01-23 | B66: TRANSWIND | C66: Transwind Infra Limited | D66: ANSU INVESTMENT | E66: SELL | F66: 48,000 | G66: 3.65 | H66: NSE
A67: 2020-01-23 | B67: VCL | C67: Vaxtex Cotfab Limited | D67: NNM SECURITIES PVT LTD | E67: SELL | F67: 102,000 | G67: 23.78 | H67: NSE
A68: 2020-01-23 | B68: YESBANK | C68: Yes Bank Limited | D68: TOWER RESEARCH CAPITAL MARKETS INDIA PRIVATE LIMITED | E68: SELL | F68: 15,377,776 | G68: 40.13 | H68: NSE

Sheet Call Tracker (Equity & F&O)
M5: Back To Main Page
A6: Retail Research Technical Calls & Fundamental Performance Report for the month of January-2020
M7: =Main!B10 -> 2020-01-24
B8: Positional Call
A9: Sr.no | B9: Date | D9: Company | E9: Rec | F9: Rec Price | G9: Stop Loss*** | H9: Call Closed At | I9: Target | J9: Remark | K9: Profit / Loss per Share | L9: Gain / Loss % | M9: Status | N9: Closed Date | O9: NSE Closed Price
A10: 1 | B10: 2019-10-07 | D10: PIDILITIND | E10: Buy{} | F10: 1367.5 | G10: 1297 | H10: 1399.25 | I10: 1500-1520 | J10: Profit of Rs.31.75/- | K10: =H10-F10 -> 31.75 | L10: =K10/F10 -> 2.32% | M10: Successful | N10: 2020-01-06 | R10: R
A11: 2 | B11: 2019-11-14 | D11: HEIDELBERG | E11: Buy{} | F11: 186.5 | G11: 174 | H11: 193 | I11: 205-210 | J11: Profit of Rs.6.50/- | K11: =H11-F11 -> 6.5 | L11: =K11/F11 -> 3.49% | M11: Successful | N11: 2020-01-07 | R11: H
A12: 3 | B12: 2019-11-18 | D12: BAJAJ-AUTO | E12: Sell | F12: 3190 | G12: 3356.7 | H12: 3030 | I12: 2900-2850 | J12: Profit of Rs.160/- | K12: =F12-H12 -> 160 | L12: 5.02% | M12: Successful | N12: 2020-01-06 | R12: R
A13: 4 | B13: 2019-11-20 | D13: BRITANNIA | E13: Buy | F13: 3075-3100 | G13: 2930 | I13: 3380-3420 | J13: Open | O13: =VLOOKUP(D13,Sheet2!A76:M1715,6,0) -> 3112.95 | R13: H
A14: 5 | B14: 2019-11-21 | D14: HINDUNILVR | E14: Buy{} | F14: 2020 | G14: 1917 | H14: 1999.75 | I14: 2200-2250 | J14: Loss of Rs.20.25/- | K14: =H14-F14 -> -20.25 | L14: =K14/F14 -> -1.00% | M14: Unsuccessful | N14: 2020-01-06 | R14: H
A15: 6 | B15: 2019-11-27 | D15: LT | E15: Buy | F15: 1330-1340 | G15: 1270 | I15: 1450-1500 | J15: Open | O15: =VLOOKUP(D15,Sheet2!A80:M1719,6,0) -> 1332.3 | R15: H
A16: 7 | B16: 2019-12-02 | D16: HAVELLS | E16: Buy | F16: 664.5 | G16: 632.7 | H16: 627.5 | I16: 725-735 | J16: Loss of Rs.37/- | K16: =H16-F16 -> -37 | L16: =K16/F16 -> -5.57% | M16: Unsuccessful | N16: 2020-01-20 | R16: R
A17: 8 | B17: 2019-12-06 | D17: ONGC | E17: Buy | F17: 127.5 | G17: 122 | H17: 125.5 | I17: 140 | J17: Loss of Rs.2/- | K17: =H17-F17 -> -2 | L17: =K17/F17 -> -1.57% | M17: Unsuccessful | N17: 2020-01-22 | R17: H
A18: 9 | B18: 2019-12-23 | D18: CANBK | E18: Sell | F18: 227 | G18: 238.3 | H18: 216 | I18: 216-213 | J18: Profit of Rs.11/- | K18: =F18-H18 -> 11 | L18: =K18/F18 -> 4.85% | M18: Successful | N18: 2020-01-06 | R18: R
A19: 10 | B19: 2019-12-24 | D19: SBIN | E19: Sell | F19: 334 | G19: 351.3 | H19: 317 | I19: 305-300 | J19: Profit of Rs.17/- | K19: =F19-H19 -> 17 | L19: 5.09% | M19: Successful | N19: 2020-01-07 | R19: R
A20: 11 | B20: 2019-12-30 | D20: EIHOTEL | E20: Buy | F20: 140 | G20: 132 | H20: 147.5 | I20: 152-156 | J20: Profit of Rs.7.50/- | K20: =H20-F20 -> 7.5 | L20: =K20/F20 -> 5.36% | M20: Successful | N20: 2020-01-09 | R20: H
A21: 12 | B21: 2020-01-01 | D21: DCBBANK | E21: Buy | F21: 174 | G21: 164 | H21: 185.5 | I21: 195-200 | J21: Profit of Rs.11.50/- | K21: =H21-F21 -> 11.5 | L21: =K21/F21 -> 6.61% | M21: Successful | N21: 2020-01-07 | R21: H
A22: 13 | B22: 2020-01-02 | D22: TVTODAY | E22: Buy | F22: 244 | G22: 228 | H22: 258 | I22: 270-280 | J22: Profit of Rs.14/- | K22: =H22-F22 -> 14 | L22: =K22/F22 -> 5.74% | M22: Successful | N22: 2020-01-02 | R22: H
A23: 14 | B23: 2020-01-02 | D23: VGUARD | E23: Buy | F23: 213 | G23: 199 | H23: 225 | I23: 230-240 | J23: Profit of Rs.12/- | K23: =H23-F23 -> 12 | L23: =K23/F23 -> 5.63% | M23: Successful | N23: 2020-01-14 | R23: H
A24: 15 | B24: 2020-01-03 | D24: L&TFH | E24: Buy{} | F24: 119.5 | G24: 125.3 | H24: 113 | I24: 110-107 | J24: Profit of Rs.6.5/- | K24: =F24-H24 -> 6.5 | L24: =K24/F24 -> 5.44% | M24: Successful | N24: 2020-01-06 | R24: R
A25: 16 | B25: 2020-01-03 | D25: INDIGO | E25: Buy | F25: 1345 | G25: 1275 | H25: 1425 | I25: 1460-1500 | J25: Profit of Rs.80/- | K25: =H25-F25 -> 80 | L25: 5.95% | M25: Successful | N25: 2020-01-10 | R25: R
A26: 17 | B26: 2020-01-07 | D26: ITC | E26: Buy | F26: 236-238 | G26: 222.2 | I26: 255-260 | J26: Open | O26: =VLOOKUP(D26,Sheet2!A99:M1738,6,0) -> 237.9 | R26: R
A27: 18 | B27: 2020-01-08 | D27: POWERGRID | E27: Buy | F27: 190 | G27: 179.7 | H27: 196.5 | I27: 208-212 | J27: Profit of Rs.6.50/- | K27: =H27-F27 -> 6.5 | L27: =K27/F27 -> 3.42% | M27: Successful | N27: 2020-01-17 | R27: R
A28: 19 | B28: 2020-01-08 | D28: SBIN | E28: Buy | F28: 313.5 | G28: 295 | H28: 327.5 | I28: 340-350 | J28: Profit of Rs.14/- | K28: =H28-F28 -> 14 | L28: =K28/F28 -> 4.47% | M28: Successful | N28: 2020-01-09 | R28: H
A29: 20 | B29: 2020-01-16 | D29: HEXAWARE | E29: Buy | F29: 335 | G29: 318 | H29: 344.95 | I29: 360-370 | J29: Part Profit of Rs.9.95/- | K29: 9.95 | L29: 2.97% | M29: Successful | N29: 2020-01-21 | O29: =VLOOKUP(D29,Sheet2!A99:M1738,6,0) -> 344.15 | R29: H
A30: 21 | B30: 2020-01-20 | D30: IOC | E30: Buy | F30: 116.50-118.50 | G30: 114 | I30: 130 | J30: Open | O30: =VLOOKUP(D30,Sheet2!A103:M1742,6,0) -> 118.35 | R30: H
A31: 22 | B31: 2020-01-22 | D31: NBCC | E31: Buy | F31: 36.50-36.70 | G31: 34.8 | I31: 40-42 | J31: Open | O31: =VLOOKUP(D31,Sheet2!A104:M1743,6,0) -> 36.4 | R31: H
A32: 23 | B32: 2020-01-22 | D32: FEDERALBNK | E32: Sell | F32: 94.50-95 | G32: 100.3 | I32: 86-84 | J32: Open | O32: =VLOOKUP(D32,Sheet2!A105:M1744,6,0) -> 94.5 | R32: R
A33: 24 | B33: 2020-01-22 | D33: JINDALSTEL | E33: Sell | F33: 181-182 | G33: 191.6 | I33: 165-162 | J33: Open | O33: =VLOOKUP(D33,Sheet2!A106:M1745,6,0) -> 180 | R33: R
A37: CLBS = Closing Basis ***
A38: Dividend adjusted <> | F38: Reinitiated $
A39: Part book {} | F39: Revised stoploss #
B41: Momentum Call
A42: Sr.no | B42: Date | D42: Company | E42: Rec | F42: Rec Price | G42: Stop Loss | H42: Call Closed At | I42: Target | J42: Remark | K42: Profit / Loss per Share/Lot | L42: Gain / Loss % | M42: Gain / Loss per Lot | N42: Lot | O42: Status | P42: Closed Date
A43: 1 | B43: 2019-12-19 | D43: FINPIPE | E43: Buy | F43: 547.5 | G43: 529 | H43: 549 | I43: 590-600 | J43: Profit of Rs.1.5/- | K43: =H43-F43 -> 1.5 | L43: =K43/F43 -> 0.27% | O43: Neutral | P43: 2020-01-03 | R43: H
A44: 2 | B44: 2019-12-23 | D44: RALLIS | E44: Buy | F44: 169 | G44: 164 | H44: 173 | I44: 180-182 | J44: Profit of Rs.4/- | K44: =H44-F44 -> 4 | L44: =K44/F44 -> 2.37% | O44: Successful | P44: 2020-01-01 | R44: H
A45: 3 | B45: 2019-12-23 | D45: MOTHERSUMI | E45: Sell | F45: 147.5 | G45: 152.3 | H45: 144.5 | I45: 140-138 | J45: Profit of Rs.3/- | K45: =F45-H45 -> 3 | L45: 2.03% | O45: Successful | P45: 2020-01-06 | R45: R
A46: 4 | B46: 2019-12-23 | D46: M&M JAN FUT | E46: Buy | F46: 535 | G46: 522 | H46: 542 | I46: 560 | J46: Profit of Rs.7/- | K46: =H46-F46 -> 7 | M46: =N46*K46 -> 7000 | N46: 1000 | O46: Successful | P46: 2020-01-02 | R46: N
A47: 5 | B47: 2019-12-26 | D47: TATASTEEL | E47: Sell | F47: 468.5 | G47: 482 | H47: 483 | I47: 450-440 | J47: Loss of Rs.14.50/- | K47: =F47-H47 -> -14.5 | L47: =K47/F47 -> -3.09% | O47: Unsuccessful | P47: 2020-01-02 | R47: H
A48: 6 | B48: 2019-12-27 | D48: VEDL | E48: Sell | F48: 152 | G48: 156 | H48: 156 | I48: 145-143 | J48: Loss of Rs.4/- | K48: =F48-H48 -> -4 | L48: -2.63% | O48: Unsuccessful | P48: 2020-01-02 | R48: H
A49: 7 | B49: 2019-12-30 | D49: MARICO | E49: Buy | F49: 339.5 | G49: 329 | H49: 346.5 | I49: 355-360 | J49: Profit of Rs.7/- | K49: =H49-F49 -> 7 | L49: =K49/F49 -> 2.06% | O49: Successful | P49: 2020-01-01 | R49: H
A50: 8 | B50: 2019-12-30 | D50: CENTURYTEX JAN FUT | E50: Buy | F50: 484 | G50: 464 | H50: 496 | I50: 520 | J50: Profit of Rs.12/- | K50: 12 | M50: =N50*K50 -> 7200 | N50: 600 | O50: Successful | P50: 2020-01-02 | R50: N
A51: 9 | B51: 2019-12-31 | D51: LT JAN FUT | E51: Buy | F51: 1312 | G51: 1276 | H51: 1331.5 | I51: 1350-1360 | J51: Profit of Rs.19.50/- | K51: =H51-F51 -> 19.5 | M51: =N51*K51 -> 7312.5 | N51: 375 | O51: Successful | P51: 2020-01-02 | R51: N
A52: 10 | B52: 2019-12-31 | D52: HINDALCO | E52: Sell | F52: 218.5 | G52: 226.3 | H52: 214 | I52: 210-208 | J52: Profit of Rs.4.5/- | K52: =F52-H52 -> 4.5 | L52: =K52/F52 -> 2.06% | O52: Successful | P52: 2020-01-01 | R52: R
A53: 11 | B53: 2019-12-31 | D53: BIOCON | E53: Sell | F53: 293.5 | G53: 302.3 | H53: 302.3 | I53: 278-275 | J53: Loss of Rs.8.80/- | K53: =F53-H53 -> -8.8 | L53: -3.00% | O53: Unsuccessful | P53: 2020-01-03 | R53: R
A54: 12 | B54: 2019-12-31 | D54: GAIL | E54: Buy | F54: 120.5 | G54: 116.7 | H54: 123 | I54: 126-128 | J54: Profit of Rs.2.50/- | K54: =H54-F54 -> 2.5 | L54: =K54/F54 -> 2.07% | O54: Successful | P54: 2020-01-02 | R54: R
A55: 13 | B55: 2019-12-31 | D55: ACC JAN FUT | E55: Buy | F55: 1464 | G55: 1433 | H55: 1482 | I55: 1520 | J55: Profit of Rs.18/- | K55: =H55-F55 -> 18 | M55: =N55*K55 -> 7200 | N55: 400 | O55: Successful | P55: 2020-01-02 | R55: N
A56: 14 | B56: 2020-01-01 | D56: KOTAKBANK JAN FUT | E56: Buy | F56: 1701 | G56: 1674.4 | H56: 1670 | I56: 1750 | J56: Loss of Rs.31/- | K56: -31 | M56: =N56*K56 -> -12400 | N56: 400 | O56: Unsuccessful | P56: 2020-01-03 | R56: R
A57: 15 | B57: 2020-01-01 | D57: JUSTDIAL | E57: Buy | F57: 576.5 | G57: 557.7 | H57: 557.7 | I57: 605-615 | J57: Loss of Rs.18.80/- | K57: =H57-F57 -> -18.8 | L57: =K57/F57 -> -3.26% | O57: Unsuccessful | P57: 2020-01-02 | R57: R
A58: 16 | B58: 2020-01-02 | D58: CESC JAN FUT | E58: Buy | F58: 753 | G58: 736 | H58: 736 | I58: 790 | J58: Loss of Rs.17/- | K58: =H58-F58 -> -17 | M58: =N58*K58 -> -13600 | N58: 800 | O58: Unsuccessful | P58: 2020-01-06 | R58: N
A59: 17 | B59: 2020-01-02 | D59: UJJIVAN JAN FUT | E59: Sell | F59: 352 | G59: 360.6 | H59: 347.5 | I59: 340 | J59: Profit of Rs.4.5/- | K59: =F59-H59 -> 4.5 | M59: =N59*K59 -> 7650 | N59: 1700 | O59: Successful | P59: 2020-01-03 | R59: R
A60: 18 | B60: 2020-01-02 | D60: HINDALCO | E60: Sell | F60: 218.5 | G60: 226.3 | H60: 212.5 | I60: 210-208 | J60: Profit of Rs.6/- | K60: =F60-H60 -> 6 | L60: =K60/F60 -> 2.75% | O60: Successful | P60: 2020-01-06 | R60: R
A61: 19 | B61: 2020-01-02 | D61: GHCL | E61: Buy | F61: 183.5 | G61: 177 | H61: 188.5 | I61: 193-197 | J61: Profit of Rs.5/- | K61: =H61-F61 -> 5 | L61: =K61/F61 -> 2.72% | O61: Successful | P61: 2020-01-03 | R61: H
A62: 20 | B62: 2020-01-02 | D62: ICICIPRULI JAN FUT | E62: Buy | F62: 487.5 | G62: 479 | H62: 479 | I62: 505 | J62: Loss of Rs.8.5/- | K62: -8.5 | M62: =N62*K62 -> -12750 | N62: 1500 | O62: Unsuccessful | P62: 2020-01-06 | R62: N
A63: 21 | B63: 2020-01-02 | D63: UBL JAN FUT | E63: Buy | F63: 1282.5 | G63: 1264 | H63: 1292.5 | I63: 1320 | J63: Profit of Rs.10/- | K63: =H63-F63 -> 10 | M63: 7000 | N63: 700 | O63: Successful | P63: 2020-01-03 | R63: N
A64: 22 | B64: 2020-01-03 | D64: AXISBANK JAN FUT | E64: Buy | F64: 757.5 | G64: 747 | H64: 748 | I64: 778 | J64: Loss of Rs.9.5/- | K64: -9.5 | M64: -11400 | N64: 1200 | O64: Unsuccessful | P64: 2020-01-03 | R64: N
A65: 23 | B65: 2020-01-03 | D65: COLPAL JAN FUT | E65: Buy | F65: 1469 | G65: 1453 | H65: 1453 | I65: 1500 | J65: Loss of Rs.16/- | K65: =H65-F65 -> -16 | M65: -11200 | N65: 700 | O65: Unsuccessful | P65: 2020-01-06 | R65: N
A66: 24 | B66: 2020-01-06 | D66: NIFTY JAN FUT | E66: Buy | F66: 12072.5 | G66: 11977.7 | H66: 12145 | I66: 12200 | J66: Profit of Rs.72.50/- | K66: 72.5 | M66: 5437.5 | N66: 75 | O66: Successful | P66: 2020-01-07 | R66: R
A67: 25 | B67: 2020-01-07 | D67: COLPAL JAN FUT | E67: Buy | F67: 1446.5 | G67: 1418 | H67: 1458 | I67: 1490-1500 | J67: Profit of Rs.11.50/- | K67: 11.5 | M67: 8050 | N67: 700 | O67: Successful | P67: 2020-01-07 | R67: N
A68: 26 | B68: 2020-01-07 | D68: M&M JAN FUT | E68: Buy | F68: 530.5 | G68: 518 | H68: 537.5 | I68: 550 | J68: Profit of Rs.7/- | K68: 7 | M68: 7000 | N68: 1000 | O68: Successful | P68: 2020-01-09 | R68: N
A69: 27 | B69: 2020-01-07 | D69: ACC | E69: Buy | F69: 1450 | G69: 1399 | H69: 1483 | I69: 1520-1550 | J69: Profit of Rs.33/- | K69: 33 | L69: =K69/F69 -> 2.28% | O69: Successful | P69: 2020-01-09 | R69: H
A70: 28 | B70: 2020-01-07 | D70: AMARAJABAT JAN FUT | E70: Buy | F70: 735 | G70: 720 | H70: 749 | I70: 760 | J70: Profit of Rs.14/- | K70: =H70-F70 -> 14 | M70: =N70*K70 -> 11200 | N70: 800 | O70: Successful | P70: 2020-01-09 | R70: N
A71: 29 | B71: 2020-01-07 | D71: BPCL | E71: Sell | F71: 464 | G71: 477.7 | H71: 450 | I71: 440-435 | J71: Profit of Rs.14/- | K71: =F71-H71 -> 14 | L71: =K71/F71 -> 3.02% | O71: Successful | P71: 2020-01-08 | R71: R
A72: 30 | B72: 2020-01-07 | D72: AMBUJACEM JAN FUT | E72: Buy | F72: 200 | G72: 195 | H72: 202.5 | I72: 210 | J72: Profit of Rs.2.50/- | K72: =H72-F72 -> 2.5 | M72: =N72*K72 -> 6250 | N72: 2500 | O72: Successful | P72: 2020-01-08 | R72: N
A73: 31 | B73: 2020-01-08 | D73: MCDOWELL-N | E73: Buy | F73: 568 | G73: 548.7 | H73: 580 | I73: 590-600 | J73: Profit of Rs.12/- | K73: 12 | L73: =K73/F73 -> 2.11% | O73: Successful | P73: 2020-01-09 | R73: R
A74: 32 | B74: 2020-01-08 | D74: NIFTY JAN FUT | E74: Buy | F74: 12010 | G74: 11918.7 | H74: 12052.5 | I74: 12200 | J74: Profit of Rs.42.50/- | K74: =H74-F74 -> 42.5 | M74: =N74*K74 -> 3187.5 | N74: 75 | O74: Successful | P74: 2020-01-08 | R74: R
A75: 33 | B75: 2020-01-08 | D75: COLPAL JAN FUT | E75: Buy | F75: 1448 | G75: 1430 | H75: 1460 | I75: 1485 | J75: Profit of Rs.12/- | K75: 12 | M75: 8400 | N75: 700 | O75: Successful | P75: 2020-01-08 | R75: N
A76: 34 | B76: 2020-01-08 | D76: IGL | E76: Buy | F76: 413.5 | G76: 397.6 | H76: 422.5 | I76: 435-440 | J76: Profit of Rs.9/- | K76: 9 | L76: =K76/F76 -> 2.18% | O76: Successful | P76: 2020-01-09 | R76: R
A77: 35 | B77: 2020-01-09 | D77: GHCL | E77: Buy | F77: 194.5 | G77: 187 | H77: 189 | I77: 203-207 | J77: Loss of Rs.5.50/- | K77: -5.5 | L77: -2.83% | O77: Unsuccessful | P77: 2020-01-10 | R77: H
A78: 36 | B78: 2020-01-09 | D78: UBL JAN FUT | E78: Buy | F78: 1271 | G78: 1253 | H78: 1281.5 | I78: 1300 | J78: Profit of Rs.10.50/- | K78: =H78-F78 -> 10.5 | M78: =N78*K78 -> 7350 | N78: 700 | O78: Successful | P78: 2020-01-09 | R78: N
A79: 37 | B79: 2020-01-09 | D79: ASIANPAINT JAN FUT | E79: Buy | F79: 1753.5 | G79: 1730 | H79: 1765.5 | I79: 1795 | J79: Profit of Rs.12/- | K79: =H79-F79 -> 12 | M79: =N79*K79 -> 7200 | N79: 600 | O79: Successful | P79: 2020-01-09 | R79: N
A80: 38 | B80: 2020-01-09 | D80: CONCOR | E80: Buy | F80: 558-561 | G80: 539 | I80: 595-600 | J80: Open | R80: H
A81: 39 | B81: 2020-01-09 | D81: INDHOTEL | E81: Buy | F81: 139.5 | G81: 136.5 | H81: 143.5 | I81: 145-148 | J81: Profit of Rs.4/- | K81: =H81-F81 -> 4 | L81: =K81/F81 -> 2.87% | O81: Successful | P81: 2020-01-17 | R81: H
A82: 40 | B82: 2020-01-09 | D82: MARICO JAN FUT | E82: Buy | F82: 335.5 | G82: 226 | H82: 342 | I82: 350-355 | J82: Profit of Rs.6.50/- | K82: =H82-F82 -> 6.5 | M82: =N82*K82 -> 8450 | N82: 1300 | O82: Successful | P82: 2020-01-13 | R82: N
A83: 41 | B83: 2020-01-09 | D83: COLPAL JAN FUT | E83: Buy | F83: 1462.5 | G83: 1443 | H83: 1473 | I83: 1500 | J83: Profit of Rs.10.5/- | K83: 10.5 | M83: 7350 | N83: 700 | O83: Successful | P83: 2020-01-13 | R83: N
A84: 42 | B84: 2020-01-09 | D84: APOLLOHOSP JAN FUT | E84: Buy | F84: 1490 | G84: 1465 | H84: 1504 | I84: 1540 | J84: Profit of Rs.14/- | K84: =H84-F84 -> 14 | M84: =N84*K84 -> 7000 | N84: 500 | O84: Successful | P84: 2020-01-10 | R84: N
A85: 43 | B85: 2020-01-10 | D85: MOTHERSUMI | E85: Sell | F85: 148.5 | G85: 153.3 | H85: 145.25 | I85: 141-139 | J85: Profit of Rs.3.25/- | K85: =F85-H85 -> 3.25 | L85: =K85/F85 -> 2.19% | O85: Successful | P85: 2020-01-13 | R85: R
A86: 44 | B86: 2020-01-10 | D86: AXISBANK JAN FUT | E86: Sell | F86: 742 | G86: 751.7 | H86: 751 | I86: 725 | J86: Loss of Rs.9/- | K86: =F86-H86 -> -9 | M86: =N86*K86 -> -10800 | N86: 1200 | O86: Unsuccessful | P86: 2020-01-10 | R86: R
A87: 45 | B87: 2020-01-10 | D87: CROMPTON | E87: Buy$ | F87: 242.5 | G87: 235 | H87: 247.5 | I87: 255-260 | J87: Profit of Rs.5/- | K87: =H87-F87 -> 5 | L87: =K87/F87 -> 2.06% | O87: Successful | P87: 2020-01-15 | R87: H
A88: 46 | B88: 2020-01-10 | D88: INFRATEL JAN FUT | E88: Sell | F88: 254 | G88: 261 | H88: 249.5 | I88: 240 | J88: Profit of Rs.4.50/- | K88: =F88-H88 -> 4.5 | M88: =N88*K88 -> 9000 | N88: 2000 | O88: Successful | P88: 2020-01-10 | R88: N
A89: 47 | B89: 2020-01-10 | D89: NIFTY JAN FUT | E89: Sell | F89: 12325 | G89: 12456.7 | H89: 12270 | I89: 12100 | J89: Profit of Rs.55/- | K89: =F89-H89 -> 55 | M89: =N89*K89 -> 4125 | N89: 75 | O89: Successful | P89: 2020-01-10 | R89: R
A90: 48 | B90: 2020-01-10 | D90: ACC | E90: Buy | F90: 1505 | G90: 1470 | H90: 1505 | I90: 1570-1580 | J90: Neutral | K90: =F90-H90 -> 0 | L90: =K90/F90 -> 0.00% | O90: Neutral | P90: 2020-01-21 | R90: H
A91: 50 | B91: 2020-01-13 | D91: TATASTEEL | E91: Sell | F91: 491 | G91: 505.6 | H91: 505.6 | I91: 470-464 | J91: Loss of Rs.14.60/- | K91: =F91-H91 -> -14.6 | L91: =K91/F91 -> -2.97% | O91: Unsuccessful | P91: 2020-01-14 | R91: R
A92: 51 | B92: 2020-01-13 | D92: AMARAJABAT JAN FUT | E92: Buy | F92: 738.5 | G92: 722 | H92: 749 | I92: 765 | J92: Profit of Rs.10.50/- | K92: =H92-F92 -> 10.5 | M92: =N92*K92 -> 8400 | N92: 800 | O92: Successful | P92: 2020-01-14 | R92: N
A93: 52 | B93: 2020-01-13 | D93: NIFTY JAN FUT | E93: Sell | F93: 12360 | G93: 12470.7 | H93: 12292.5 | I93: 12150 | J93: Profit of Rs.67.50/- | K93: =F93-H93 -> 67.5 | M93: 5062.5 | N93: 75 | O93: Successful | P93: 2020-01-20 | R93: R
A94: 53 | B94: 2020-01-13 | D94: MUTHOOTFIN | E94: Sell | F94: 759 | G94: 782 | H94: 748 | I94: 730-720 | J94: Profit of Rs.11/- | K94: =F94-H94 -> 11 | L94: =K94/F94 -> 1.45% | O94: Successful | P94: 2020-01-13 | R94: H
A95: 54 | B95: 2020-01-13 | D95: HCLTECH | E95: Sell | F95: 590 | G95: 606.6 | H95: 593 | I95: 560-555 | J95: Loss of Rs.3/- | K95: =F95-H95 -> -3 | L95: -0.51% | O95: Neutral | P95: 2020-01-16 | R95: R
A96: 55 | B96: 2020-01-13 | D96: TVSMOTOR | E96: Sell | F96: 470 | G96: 483 | H96: 482.5 | I96: 450-445 | J96: Loss of Rs.12.50/- | K96: =F96-H96 -> -12.5 | L96: =K96/F96 -> -2.66% | O96: Unsuccessful | P96: 2020-01-15 | R96: H
A97: 56 | B97: 2020-01-13 | D97: APOLLOHOSP JAN FUT | E97: Buy | F97: 1489 | G97: 1463 | H97: 1504.5 | I97: 1530 | J97: Profit of Rs.15.50/- | K97: =H97-F97 -> 15.5 | M97: =N97*K97 -> 7750 | N97: 500 | O97: Successful | P97: 2020-01-14 | R97: N
A98: 57 | B98: 2020-01-13 | D98: MCDOWELL-N | E98: Buy | F98: 583-585 | G98: 568 | I98: 610-620 | J98: Open | R98: H
A99: 58 | B99: 2020-01-14 | D99: JUBLFOOD JAN FUT | E99: Sell | F99: 1740 | G99: 1766.6 | H99: 1722 | I99: 1700-1680 | J99: Profit of Rs.18/- | K99: =F99-H99 -> 18 | M99: =N99*K99 -> 9000 | N99: 500 | O99: Successful | P99: 2020-01-14 | R99: R
A100: 59 | B100: 2020-01-14 | D100: CESC JAN FUT | E100: Buy | F100: 739 | G100: 724 | H100: 749 | I100: 765 | J100: Profit of Rs.10/- | K100: =H100-F100 -> 10 | M100: 8000 | N100: 800 | O100: Successful | P100: 2020-01-15 | R100: N
A101: 60 | B101: 2020-01-14 | D101: ZEEL | E101: Buy | F101: 269 | G101: 260.2 | H101: 274.5 | I101: 284-288 | J101: Profit of Rs.5.50/- | K101: 5.5 | L101: =K101/F101 -> 2.04% | O101: Successful | P101: 2020-01-16 | R101: R
A102: 61 | B102: 2020-01-14 | D102: GRASIM JAN FUT | E102: Buy | F102: 764 | G102: 747 | H102: 744 | I102: 790 | J102: Loss of Rs.20/- | K102: -20 | M102: =N102*K102 -> -15000 | N102: 750 | O102: Unsuccessful | P102: 2020-01-17 | R102: N
A103: 62 | B103: 2020-01-15 | D103: TORNTPOWER | E103: Sell | F103: 298.5 | G103: 306 | H103: 306.5 | I103: 290-285 | J103: Loss of Rs.8/- | K103: =F103-H103 -> -8 | L103: =K103/F103 -> -2.68% | O103: Unsuccessful | P103: 2020-01-16 | R103: H
A104: 63 | B104: 2020-01-15 | D104: INFRATEL JAN FUT | E104: Sell | F104: 249.5 | G104: 256 | H104: 246.25 | I104: 237 | J104: Profit of Rs.3.25/- | K104: =F104-H104 -> 3.25 | M104: =N104*K104 -> 6500 | N104: 2000 | O104: Successful | P104: 2020-01-15 | R104: N
A105: 64 | B105: 2020-01-15 | D105: UPL JAN FUT | E105: Buy | F105: 589 | G105: 575 | H105: 597 | I105: 610-620 | J105: Profit of Rs.8/- | K105: =H105-F105 -> 8 | M105: 7200 | N105: 900 | O105: Successful | P105: 2020-01-17 | R105: N
A106: 65 | B106: 2020-01-15 | D106: ACC JAN FUT | E106: Buy | F106: 1500 | G106: 1470 | H106: 1520 | I106: 1550 | J106: Profit of Rs.20/- | K106: =H106-F106 -> 20 | M106: =N106*K106 -> 8000 | N106: 400 | O106: Successful | P106: 2020-01-15 | R106: N
A107: 66 | B107: 2020-01-16 | D107: BANKNIFTY JAN FUT | E107: Sell | F107: 31990 | G107: 32456 | H107: 31750 | I107: 31300-31200 | J107: Profit of Rs.240/- | K107: =F107-H107 -> 240 | M107: 4800 | N107: 20 | O107: Successful | P107: 2020-01-16 | R107: R
A108: 67 | B108: 2020-01-17 | D108: ACC JAN FUT | E108: Buy | F108: 1502.5 | G108: 1470 | H108: 1522 | I108: 1550 | J108: Profit of Rs.19.50/- | K108: =H108-F108 -> 19.5 | M108: =N108*K108 -> 7800 | N108: 400 | O108: Successful | P108: 2020-01-17 | R108: N
A109: 68 | B109: 2020-01-17 | D109: HDFCLIFE | E109: Buy | F109: 606.5 | G109: 588 | H109: 619 | I109: 635-645 | J109: Profit of Rs.12.50/- | K109: 12.5 | L109: =K109/F109 -> 2.06% | O109: Successful | P109: 2020-01-23 | R109: R
A110: 69 | B110: 2020-01-17 | D110: BATAINDIA JAN FUT | E110: Sell | F110: 1798.5 | G110: 1823.4 | H110: 1784 | I110: 1760-1750 | J110: Profit of Rs.14.50/- | K110: =F110-H110 -> 14.5 | M110: =N110*K110 -> 7975 | N110: 550 | O110: Successful | P110: 2020-01-21 | R110: R
A111: 70 | B111: 2020-01-17 | D111: LT JAN FUT | E111: Buy | F111: 1323 | G111: 1290 | H111: 1301 | I111: 1360-1370 | J111: Loss of Rs.22/- | K111: =H111-F111 -> -22 | M111: -8250 | N111: 375 | O111: Unsuccessful | P111: 2020-01-22 | R111: N
A112: 71 | B112: 2020-01-17 | D112: ICICIPRULI JAN FUT | E112: Buy | F112: 489.5 | G112: 480 | H112: 485 | I112: 510 | J112: Loss of Rs.4.50/- | K112: =H112-F112 -> -4.5 | M112: =N112*K112 -> -6750 | N112: 1500 | O112: Unsuccessful | P112: 2020-01-17 | R112: N
A113: 72 | B113: 2020-01-17 | D113: APOLLOTYRE | E113: Sell | F113: 182.35 | G113: 188.3 | H113: 178 | I113: 173-171 | J113: Profit of Rs.4.35/- | K113: =F113-H113 -> 4.35 | L113: =K113/F113 -> 2.39% | O113: Successful | P113: 2020-01-20 | R113: R
A114: 73 | B114: 2020-01-20 | D114: UBL JAN FUT | E114: Buy | F114: 1302 | G114: 1285 | H114: 1285 | I114: 1340 | J114: Loss of Rs.17/- | K114: =H114-F114 -> -17 | M114: =N114*K114 -> -11900 | N114: 700 | O114: Unsuccessful | P114: 2020-01-21 | R114: N
A115: 74 | B115: 2020-01-20 | D115: DLF | E115: Sell | F115: 260.5 | G115: 268.9 | H115: 255.25 | I115: 258-254 | J115: Profit of Rs.5.25/- | K115: =F115-H115 -> 5.25 | L115: =K115/F115 -> 2.02% | O115: Successful | P115: 2020-01-22 | R115: R
A116: 75 | B116: 2020-01-20 | D116: EXIDEIND | E116: Sell | F116: 198.5 | G116: 205.3 | H116: 194.5 | I116: 190-187 | J116: Profit of Rs.4/- | K116: =F116-H116 -> 4 | L116: =K116/F116 -> 2.02% | O116: Successful | P116: 2020-01-20 | R116: R
A117: 76 | B117: 2020-01-21 | D117: INFRATEL JAN FUT | E117: Sell | F117: 233.5 | G117: 239.3 | H117: 239.3 | I117: 225-222 | J117: Loss of Rs.5.80/- | K117: =F117-H117 -> -5.8 | M117: =N117*K117 -> -11600 | N117: 2000 | O117: Unsuccessful | P117: 2020-01-21 | R117: R
A118: 77 | B118: 2020-01-21 | D118: SUNPHARMA | E118: Sell | F118: 451-452 | G118: 464.7 | I118: 427-422 | J118: Open | R118: R
A119: 78 | B119: 2020-01-21 | D119: ADANIPORTS | E119: Buy | F119: 380-382 | G119: 368.6 | I119: 399-404 | J119: Open | R119: R
A120: 79 | B120: 2020-01-21 | D120: HINDUNILVR JAN FUT | E120: Sell | F120: 2072.5 | G120: 2111.3 | H120: 2047.5 | I120: 2000 | J120: Profit of Rs.25/- | K120: =F120-H120 -> 25 | M120: =N120*K120 -> 7500 | N120: 300 | O120: Successful | P120: 2020-01-22 | R120: R
A121: 80 | B121: 2020-01-21 | D121: UJJIVAN | E121: Buy | F121: 332 | G121: 319 | H121: 338 | I121: 355 | J121: Profit of Rs.6/- | K121: =H121-F121 -> 6 | L121: =K121/F121 -> 1.81% | O121: Successful | P121: 2020-01-23 | R121: R
A122: 81 | B122: 2020-01-22 | D122: CESC JAN FUT | E122: Buy | F122: 749 | G122: 734 | H122: 759 | I122: 775 | J122: Profit of Rs.10/- | K122: 10 | M122: =N122*K122 -> 8000 | N122: 800 | O122: Successful | P122: 2020-01-23 | R122: N
A123: 82 | B123: 2020-01-22 | D123: VIPIND | E123: Buy | F123: 447.5 | G123: 434 | H123: 455.5 | I123: 470-480 | J123: Profit of Rs.8/- | K123: =H123-F123 -> 8 | L123: =K123/F123 -> 1.79% | O123: Successful | P123: 2020-01-22 | R123: H
A124: 83 | B124: 2020-01-22 | D124: AMBUJACEM JAN FUT | E124: Sell | F124: 212-213 | G124: 217.8 | I124: 205-202 | J124: Open | R124: R
A125: 84 | B125: 2020-01-22 | D125: EXIDEIND | E125: Sell | F125: 196-197 | G125: 202.6 | I125: 187-184 | J125: Open | R125: R
A126: 85 | B126: 2020-01-22 | D126: KOTAKBANK | E126: Buy | F126: 1585-1590 | G126: 1540 | I126: 1650-1670 | J126: Open | R126: H
A127: 86 | B127: 2020-01-22 | D127: TVSMOTOR JAN FUT | E127: Buy | F127: 466-467 | G127: 456.7 | I127: 485 | J127: Open | R127: R
A128: 87 | B128: 2020-01-23 | D128: COLPAL JAN FUT | E128: Buy | F128: 1483 | G128: 1465 | H128: 1493 | I128: 1520 | J128: Profit of Rs.10/- | K128: =H128-F128 -> 10 | M128: =N128*K128 -> 7000 | N128: 700 | O128: Successful | P128: 2020-01-23 | R128: N
A129: 88 | B129: 2020-01-23 | D129: CONCOR | E129: Buy | F129: 558-561 | G129: 539 | I129: 595-600 | J129: Open | R129: H
A130: 89 | B130: 2020-01-23 | D130: VIPIND | E130: Buy | F130: 446 | G130: 434 | H130: 454 | I130: 470-480 | J130: Profit of Rs.8/- | K130: =H130-F130 -> 8 | L130: =K130/F130 -> 1.79% | O130: Successful | P130: 2020-01-23 | R130: H
A131: 90
A132: 91
A133: 92
A134: CLBS = Closing Basis ***
A135: Dividend adjusted <> | F135: Reinitiated $
F136: Revised stoploss #
A138: Master Trade High Risk
A139: Sr.no | B139: Date | D139: Company | E139: Rec | F139: Rec Price | G139: Stop Loss | H139: Call Closed At | I139: Target | J139: Remark | K139: Profit / Loss per share | L139: Gain / Loss per Lot | M139: Lot | N139: Status | O139: Closed Date
A140: 1 | B140: 2019-12-27 | D140: NIFTY JAN FUT | E140: Sell | F140: 12250 | G140: 12375 | H140: 12147.5 | I140: 12000 | J140: Profit of Rs.102.5/- | K140: =F140-H140 -> 102.5 | L140: =K140*M140 -> 7687.5 | M140: 75 | N140: Successful | O140: 2020-01-06 | R140: R
A141: 2 | B141: 2020-01-07 | D141: HAVELLS JAN FUT | E141: Buy | F141: 654 | G141: 638.5 | H141: 638 | I141: 675 | J141: Loss of Rs. 12/- | K141: =H141-F141 -> -16 | L141: =-12*M141 -> -12000 | M141: 1000 | N141: UnSuccessful | O141: 2020-01-08 | R141: N
D142: HAVELLS JAN 670 CE | E142: Sell | F142: 12.5 | H142: 8.5 | K142: =F142-H142 -> 4 | R142: N
A143: 3 | B143: 2020-01-13 | D143: HDFC JAN FUT | E143: Sell | F143: 2460 | G143: 2520 | H143: 2433.5 | I143: 2400-2380 | J143: Profit of Rs. 28.50/- | K143: =F143-H143 -> 26.5 | L143: =28.5*250 -> 7125 | M143: 1000 | N143: Successful | O143: 2020-01-22 | R143: H
D144: HDFC JAN 2400 PE | E144: Sell | F144: 24 | H144: 22 | K144: 2 | R144: H
A149: Master Trade Medium Risk
A150: Sr.no | B150: Date | D150: Company | E150: Rec | F150: Rec Price | G150: Stop Loss | H150: Call Closed At | I150: Target | J150: Remark | K150: Profit/ Loss per lot | L150: Gain / Loss per Lot | M150: Lot | N150: Status | O150: Closed Date
A151: 1 | B151: 2019-12-27 | D151: NIFTY 30 JAN 12200 PE | E151: Buy | F151: 122 | H151: 205 | J151: Profit of Rs. 25.50/- | K151: =H151-F151 -> 83 | L151: =25.5*M151 -> 1912.5 | M151: 75 | N151: Successful | O151: 2020-01-06 | R151: H
D152: NIFTY 30 JAN 12050 PE | E152: Sell | F152: 80 | H152: 137.5 | K152: =F152-H152 -> -57.5 | R152: H
A153: 2 | B153: 2020-01-01 | D153: ICICIBANK JAN 520 PE | E153: Buy | F153: 5.95 | G153: 2.5 | H153: 6.95 | I153: 12 | J153: Profit of Rs.1/- | K153: 1 | L153: =K153*M153 -> 1375 | M153: 1375 | N153: Successful | O153: 2020-01-01 | R153: H
A154: 3 | B154: 2020-01-02 | D154: ICICIBANK JAN 520 PE | E154: Buy | F154: 5.8 | G154: 2.5 | H154: 6.9 | I154: 12 | J154: Profit of Rs.1.1/- | K154: =H154-F154 -> 1.1 | L154: =K154*M154 -> 1512.5 | M154: 1375 | N154: Successful | O154: 2020-01-03 | R154: H
A155: 4 | B155: 2020-01-02 | D155: LT JAN 1340 CE | E155: Buy | F155: 28-30 | J155: Open | R155: H
D156: LT JAN 1360 CE | E156: Sell | F156: 21-23 | R156: H
A157: 5 | B157: 2020-01-03 | D157: ACC JAN 1500 CE | E157: Buy | F157: 33 | G157: 19 | H157: 19 | I157: 50-60 | J157: Loss of Rs.14/- | K157: =H157-F157 -> -14 | L157: =K157*M157 -> -5600 | M157: 400 | N157: UnSuccessful | O157: 2020-01-06 | R157: H
A158: 6 | B158: 2020-01-04 | D158: DABUR JAN 465 CE | E158: Buy | F158: 7.50 | G158: 3.25 | H158: 8.75 | I158: 12 | J158: Profit of Rs.1.25/- | K158: 1.25 | L158: 1562.5 | M158: 1250 | N158: Successful | O158: 2020-01-09 | R158: H
A159: 7 | B159: 2020-01-08 | D159: MARICO JAN 340 CE | E159: Buy | F159: 5.5 | G159: 2.5 | H159: 7 | I159: 10 | J159: Profit of Rs.1.50/- | K159: 1.5 | L159: 1950 | M159: 1300 | N159: Successful | O159: 2020-01-09 | R159: H
A160: 8 | B160: 2020-01-09 | D160: NIFTY 16 JAN 12100 PE | E160: Buy | F160: 39 | G160: 14 | H160: 14 | I160: 70-80 | J160: Loss of Rs.25/- | K160: =H160-F160 -> -25 | L160: =K160*M160 -> -1875 | M160: 75 | N160: UnSuccessful | O160: 2020-01-13 | R160: H
A161: 9 | B161: 2020-01-09 | D161: M&M JAN 560 CE | E161: Buy | F161: 6 | G161: 2 | H161: 7.25 | I161: 12 | J161: Profit of Rs.1.25/- | K161: =H161-F161 -> 1.25 | L161: =K161*M161 -> 1250 | M161: 1000 | N161: Successful | O161: 2020-01-10 | R161: H
A162: 10 | B162: 2020-01-10 | D162: ICICIPRULI JAN 500 CE | E162: Buy | F162: 8.25 | G162: 4.5 | H162: 9.25 | I162: 13-15 | J162: Profit of Rs.1/- | K162: =H162-F162 -> 1 | L162: =K162*M162 -> 1500 | M162: 1500 | N162: Successful | O162: 2020-01-13 | R162: N
A163: 11 | B163: 2020-01-10 | D163: AMBUJACEM JAN 215 CE | E163: Buy | F163: 4.6 | G163: 2.5 | H163: 2.8 | I163: 7-8 | J163: Loss of Rs.1.80/- | K163: -1.8 | L163: -4500 | M163: 2500 | N163: UnSuccessful | O163: 2020-01-15 | R163: N
A164: 12 | B164: 2020-01-13 | D164: NIFTY 30-JAN 12300 CE | E164: Sell | F164: 157 | H164: 92.50 | J164: Profit of Rs.18/- | K164: =F164-H164 -> 64.5 | L164: =18*M164 -> 1350 | M164: 75 | N164: Successful | O164: 2020-01-20 | R164: H
D165: NIFTY 30-JAN 12400 CE | E165: Buy | F165: 99 | H165: 52.50 | K165: =H165-F165 -> -46.5 | R165: H
A166: 13 | B166: 2020-01-15 | D166: TATASTEEL 490 JAN PE | E166: Buy | F166: 9.5 | H166: 9.75 | J166: Profit of Rs.1/- | K166: 0.25 | L166: 1000 | M166: 1000 | N166: Successful | O166: 2020-01-20 | R166: H
D167: TATASTEEL JAN 480 PE | E167: Sell | F167: 6.50 | H167: 5.75 | K167: =F167-H167 -> 0.75 | R167: H
A168: 14 | B168: 2020-01-17 | D168: HDFCBANK JAN 1300 CE | E168: Buy | F168: 15.50 | G168: 9 | H168: 9 | I168: 24-26 | J168: Loss of Rs.6.50/- | K168: =H168-F168 -> -6.5 | L168: =K168*M168 -> -3250 | M168: 500 | N168: UnSuccessful | O168: 2020-01-20 | R168: H
A169: 15 | B169: 2020-01-22 | D169: BANKNIFTY 30 JAN 31100 CE | E169: Buy | F169: 225 | G169: 80 | H169: 265 | I169: 400-450 | J169: Profit of Rs.40/- | K169: 40 | L169: 800 | M169: 20 | N169: Successful | O169: 2020-01-23 | R169: H
A176: Techno -Funda (positional)
A177: Sr.no | B177: Date | D177: Company | E177: Rec | F177: Rec Price | G177: Stop Loss*** | H177: Call Closed At | I177: Target | J177: Remark | K177: Profit / Loss per Share | L177: Gain / Loss % | M177: Status | N177: Closed Date | O177: NSE Closed Price
A178: 1 | B178: 2019-11-27 | D178: JKLAKSHMI | E178: Buy | F178: 286 | G178: 258 | H178: 308.5 | I178: 330-350 | J178: Profit of Rs.22.50/- | K178: =H178-F178 -> 22.5 | L178: =K178/F178 -> 7.87% | M178: Successful | N178: 2020-01-07 | O178: =VLOOKUP(D178,Sheet2!A173:M1812,6,0) -> 342.75 | R178: H
A179: 2 | B179: 2020-01-07 | D179: FINPIPE | E179: Buy | F179: 543 | G179: 495 | H179: 574.5 | I179: 630-650 | J179: Part Profit of Rs.31.5/- | K179: 31.5 | L179: 5.80% | M179: Successful | N179: 2020-01-10 | O179: =VLOOKUP(D179,Sheet2!A204:M1843,6,0) -> 552.2 | R179: H
A181: CLBS = Closing Basis *** | F181: Reinitiated $
A182: Dividend adjusted <> | F182: Revised stoploss #
B187: Investment Idea
A188: Sr.no | B188: Date | D188: Company | E188: Rec | F188: Rec Price | G188: Point of Review | H188: Close Rate | I188: Target | J188: Remark | K188: Profit / Loss per Share | L188: Gain / Loss % | M188: Status | N188: Closed Date
A189: 1 | B189: 2013-11-01 | D189: L&T Finance Holding | E189: Accu | F189: 82.00 | G189: - | H189: 100 | I189: 100.00 | J189: Target Achieved | K189: =H189-F189 -> 18.00 | L189: =K189/F189 -> 21.95% | M189: Successful | N189: 2016-10-14
A190: 2 | B190: 2014-06-04 | D190: Finolex Inds | E190: Buy | F190: 257.00 | G190: - | H190: 300 | I190: 300.00 | J190: Target Achieved | K190: 43.00 | L190: 16.73% | M190: Successful | N190: 2014-07-02
A191: 3 | B191: 2014-07-08 | D191: JK Cement | E191: Buy | F191: 393.00 | G191: - | H191: 468 | I191: 468.00 | J191: Target Achieved | K191: 75.00 | L191: 19.08% | M191: Successful | N191: 2014-08-12
A192: 4 | B192: 2014-08-06 | D192: Finolex Cables | E192: Buy | F192: 205.00 | G192: - | H192: 275 | I192: 250.00 | J192: Target Achieved | K192: 70.00 | L192: 34.15% | M192: Successful | N192: 2014-11-19
A193: 5 | B193: 2014-09-04 | D193: Exide Inds | E193: Buy | F193: 162.00 | G193: - | H193: 190 | I193: 190.00 | J193: Target Achieved | K193: 28.00 | L193: 17.28% | M193: Successful | N193: 2015-01-02
A194: 6 | B194: 2014-09-04 | D194: Deepak Nitrite | E194: Buy | F194: 75.00 | G194: - | H194: 91.5 | I194: 95-100 | J194: Profit of Rs.16.50/- | K194: 16.50 | L194: 22.00% | M194: Successful | N194: 2014-11-11
A195: 7 | B195: 2014-10-01 | D195: Mercks | E195: Buy | F195: 850.00 | G195: - | H195: 982.5 | I195: 1050.00 | J195: Profit of Rs.132.50/- | K195: 132.50 | L195: 15.59% | M195: Successful | N195: 2015-02-04
A196: 8 | B196: 2014-10-01 | D196: Grindwell Norton | E196: Buy | F196: 475.00 | G196: - | H196: 515 | I196: 600.00 | J196: Profit of Rs.40/- | K196: 40.00 | L196: 8.42% | M196: Successful | N196: 2014-10-27
A197: 9 | B197: 2014-10-01 | D197: Snowman Logistics | E197: Buy | F197: 86.00 | G197: - | H197: 99 | I197: 140.00 | J197: Profit of Rs.13.00/- | K197: 13.00 | L197: 15.12% | M197: Successful | N197: 2014-10-27
A198: 10 | B198: 2014-10-14 | D198: Birla Corp | E198: Buy | F198: 496.60 | G198: - | H198: 621 | I198: 580.00 | J198: Target Achieved | K198: 124.40 | L198: 25.05% | M198: Successful | N198: 2016-08-23
A199: 11 | B199: 2014-10-14 | D199: Ultratech Cem | E199: Buy | F199: 2481.90 | G199: - | H199: 2840 | I199: 2870.00 | J199: Profit of Rs.358.10/- | K199: 358.10 | L199: 14.43% | M199: Successful | N199: 2015-01-13
A200: 12 | B200: 2014-10-16 | D200: Sintex Inds | E200: Buy | F200: 84.50 | G200: - | H200: 93 | I200: 110.00 | J200: Profit of Rs.8.50/- | K200: 8.50 | L200: 10.06% | M200: Successful | N200: 2014-10-27
A201: 13 | B201: 2014-10-16 | D201: HSIL | E201: Buy | F201: 401.00 | G201: - | H201: 428 | I201: 450.00 | J201: Profit of Rs.27.00/- | K201: 27.00 | L201: 6.73% | M201: Successful | N201: 2015-01-16
A202: 14 | B202: 2014-10-16 | D202: Eveready Inds | E202: Buy | F202: 101.00 | G202: - | H202: 112 | I202: 120.00 | J202: Profit of Rs.11.00/- | K202: 11.00 | L202: 10.89% | M202: Successful | N202: 2014-10-27
A203: 15 | B203: 2014-11-11 | D203: Pennar Inds | E203: Buy | F203: 59.00 | G203: - | H203: 76 | I203: 76.00 | J203: Target Achieved | K203: 17.00 | L203: 28.81% | M203: Successful | N203: 2017-10-24
A204: 16 | B204: 2014-11-11 | D204: Snowman Logistics | E204: Buy | F204: 99.00 | G204: - | H204: 120 | I204: 120.00 | J204: Profit of Rs.21/- | K204: 21.00 | L204: 21.21% | M204: Successful | N204: 2014-11-17
A205: 17 | B205: 2014-11-13 | D205: Dharamsi Morarji Chem | E205: Buy | F205: 22.00 | G205: - | H205: 33.55 | I205: 32.00 | J205: Profit of Rs 11.55/- | K205: 11.55 | L205: 52.50% | M205: Successful | N205: 2015-07-03
A206: 18 | B206: 2014-12-03 | D206: Tatachem | E206: Buy | F206: 440.00 | G206: - | H206: 520 | I206: 520.00 | J206: Profit of Rs 80.00/- | K206: 80.00 | L206: 18.18% | M206: Successful | N206: 2015-07-23
A207: 19 | B207: 2014-12-03 | D207: Advanta | E207: Buy | F207: 360.00 | G207: - | H207: 427 | I207: 425.00 | J207: Profit of Rs.67.00/- | K207: 67.00 | L207: 18.61% | M207: Successful | N207: 2015-02-23
A208: 20 | B208: 2015-01-08 | D208: GDL | E208: Buy | F208: 360.00 | G208: - | H208: 455 | I208: 420.00 | J208: Profit of Rs.95.00/- | K208: 95.00 | L208: 26.39% | M208: Successful | N208: 2015-01-20
A209: 21 | B209: 2015-01-08 | D209: NRB Bearing | E209: Buy | F209: 130.00 | H209: 175.5 | I209: 165.00 | J209: Profit of Rs 45.50/- | K209: 45.50 | L209: 35.00% | M209: Successful | N209: 2017-12-19
A210: 22 | B210: 2015-02-05 | D210: GSFC | E210: Accu | F210: 98.00 | H210: 120 | I210: 120.00 | J210: Target Achieved | K210: 22.00 | L210: 22.45% | M210: Successful | N210: 2017-01-18
A211: 23 | B211: 2015-02-05 | D211: Sundrmfast | E211: Accu | F211: 196.00 | H211: 262 | I211: 255.00 | J211: Target Achieved | K211: 66.00 | L211: 33.67% | M211: Successful | N211: 2016-08-17
A212: 24 | B212: 2015-03-04 | D212: GPPL | E212: Accu | F212: 235 | H212: 77.00 | I212: 280-285 | J212: Loss of Rs.158/- | K212: -158.00 | L212: -67.23% | M212: Unsuccessful | N212: 2019-02-26
A213: 25 | B213: 2015-03-04 | D213: ORIENTCEM | E213: Accu | F213: 185.00 | H213: 224 | I213: 220-225 | J213: Target Achieved | K213: 39.00 | L213: 21.08% | M213: Successful | N213: 2016-10-04
A214: 26 | B214: 2015-03-27 | D214: PFS | E214: Accu | F214: 49.5 | H214: 15.85 | I214: 67.00 | J214: Loss of Rs.33.65/- | K214: -33.65 | L214: -68% | M214: Unsuccessful | N214: 2019-06-11
A215: 27 | B215: 2015-03-30 | D215: Walchandnagar Ind Ltd | E215: Accu | F215: 183.50 | H215: 219 | I215: 218.00 | J215: Profit of Rs.35.50/- | K215: 35.50 | L215: 19.35% | M215: Successful | N215: 2015-04-09
A216: 28 | B216: 2015-04-20 | D216: Kalpataru Power Transmission Ltd | E216: Accu | F216: =(227+237)/2 -> 232.00 | H216: 298 | I216: 298.00 | J216: Target Achieved | K216: 66.00 | L216: 28.45% | M216: Successful | N216: 2017-03-29
A217: 29 | B217: 2015-05-04 | D217: Mastek Ltd | E217: Buy | F217: 385.00 | H217: =212.5+331 -> 543.5 | I217: 510.00 | J217: Profit of Rs 158.50/- | K217: 158.50 | L217: 41.17% | M217: Successful | N217: 2015-08-19
A218: 30 | B218: 2015-05-04 | D218: Suprajit Eng | E218: Buy | F218: 115.50 | H218: 146 | I218: 142.00 | J218: Profit of Rs 30.50/- | K218: 30.50 | L218: 26.41% | M218: Successful | N218: 2015-07-17
A219: 31 | B219: 2015-05-27 | D219: TCI | E219: Buy | F219: 237.50 | H219: 279.5 | I219: 278.00 | J219: Target Achieved | K219: 42.00 | L219: 17.68% | M219: Successful | N219: 2015-08-06
A220: 32 | B220: 2015-06-19 | D220: HSIL | E220: Accu | F220: 340.00 | H220: 448 | I220: 448.00 | J220: Target Achieved | K220: 108.00 | L220: 31.76% | M220: Successful | N220: 2017-10-10
A221: 33 | B221: 2015-07-06 | D221: Capital First | E221: Accu | F221: 390.00 | H221: 460 | I221: 460.00 | J221: Target Achieved | K221: =H221-F221 -> 70.00 | L221: =K221/F221 -> 17.95% | M221: Successful | N221: 2016-04-18
A222: 34 | B222: 2015-07-10 | D222: Dolphin OffShore | E222: Accu | F222: 122.5 | H222: 61.00 | I222: 172.00 | J222: Loss of Rs.61.50/- | K222: -61.50 | L222: -50.20% | M222: Unsuccessful | N222: 2018-08-21
A223: 35 | B223: 2015-08-03 | D223: Allcargo logistics | E223: Accu | F223: 297.50 | H223: 350 | I223: 360.00 | J223: Profit of Rs 52.50/- | K223: 52.50 | L223: 17.65% | M223: Successful | N223: 2015-08-16
A224: 36 | B224: 2015-08-03 | D224: Camline Fine | E224: Accu | F224: 115.50 | H224: 149 | I224: 140.00 | J224: Profit of Rs 33.50/- | K224: 33.50 | L224: 29.00% | M224: Successful | N224: 2017-01-05
... 117 more rows

Sheet Sheet2 (hidden)
A1: SYMBOL | B1: SERIES | C1: OPEN | D1: HIGH | E1: LOW | F1: CLOSE | G1: LAST | H1: PREVCLOSE | I1: TOTTRDQTY | J1: TOTTRDVAL | K1: TIMESTAMP | L1: TOTALTRADES | M1: ISIN | N1: ISIN
A2: 20MICRONS | B2: EQ | C2: 33.85 | D2: 34.2 | E2: 33.4 | F2: 33.7 | G2: 33.7 | H2: 33.5 | I2: 10578 | J2: 356525.05 | K2: 2020-01-23 | L2: 222 | M2: INE144J01027
A3: 21STCENMGM | B3: EQ | C3: 15.45 | D3: 15.45 | E3: 14.9 | F3: 14.9 | G3: 14.9 | H3: 15.2 | I3: 1754 | J3: 26322.4 | K3: 2020-01-23 | L3: 20 | M3: INE253B01015
A4: 3IINFOTECH | B4: EQ | C4: 2.4 | D4: 2.6 | E4: 2.4 | F4: 2.45 | G4: 2.5 | H4: 2.4 | I4: 1781577 | J4: 4417964.5 | K4: 2020-01-23 | L4: 753 | M4: INE748C01020
A5: 3MINDIA | B5: EQ | C5: 22399.85 | D5: 22458.75 | E5: 22250 | F5: 22409.7 | G5: 22427 | H5: 22258.95 | I5: 671 | J5: 15021145.7 | K5: 2020-01-23 | L5: 385 | M5: INE470A01017
A6: 5PAISA | B6: EQ | C6: 189 | D6: 199.9 | E6: 189 | F6: 192.1 | G6: 191.35 | H6: 191.05 | I6: 34476 | J6: 6698783.45 | K6: 2020-01-23 | L6: 873 | M6: INE618L01018
A7: 63MOONS | B7: EQ | C7: 110.75 | D7: 112.45 | E7: 109.5 | F7: 110.5 | G7: 110.2 | H7: 110.5 | I7: 152937 | J7: 16902394.4 | K7: 2020-01-23 | L7: 2996 | M7: INE111B01023
A8: A2ZINFRA | B8: EQ | C8: 7.7 | D8: 7.75 | E8: 7.55 | F8: 7.6 | G8: 7.65 | H8: 7.6 | I8: 91075 | J8: 696388.2 | K8: 2020-01-23 | L8: 214 | M8: INE619I01012
A9: AARTIDRUGS | B9: EQ | C9: 608.05 | D9: 615 | E9: 593.55 | F9: 599.75 | G9: 600 | H9: 607.4 | I9: 10319 | J9: 6214412 | K9: 2020-01-23 | L9: 488 | M9: INE767A01016
A10: AARTIIND | B10: EQ | C10: 862.2 | D10: 870 | E10: 853.55 | F10: 868.05 | G10: 869 | H10: 860.7 | I10: 75059 | J10: 64762149.05 | K10: 2020-01-23 | L10: 5139 | M10: INE769A01020
A11: AARVEEDEN | B11: EQ | C11: 14.45 | D11: 14.85 | E11: 14.1 | F11: 14.3 | G11: 14.6 | H11: 14.5 | I11: 8201 | J11: 118774.2 | K11: 2020-01-23 | L11: 209 | M11: INE273D01019
A12: AAVAS | B12: EQ | C12: 1944.6 | D12: 2009.95 | E12: 1944.1 | F12: 1999.85 | G12: 2000 | H12: 1944.6 | I12: 43685 | J12: 86921510.85 | K12: 2020-01-23 | L12: 5846 | M12: INE216P01012
A13: ABAN | B13: EQ | C13: 26 | D13: 26.45 | E13: 25.5 | F13: 26.05 | G13: 26.3 | H13: 26.2 | I13: 35395 | J13: 921289.75 | K13: 2020-01-23 | L13: 444 | M13: INE421A01028
A14: ABB | B14: EQ | C14: 1309 | D14: 1320 | E14: 1302 | F14: 1316.4 | G14: 1319 | H14: 1303.3 | I14: 13495 | J14: 17708723.05 | K14: 2020-01-23 | L14: 1082 | M14: INE117A01022
A15: ABBOTINDIA | B15: EQ | C15: 12680 | D15: 12750 | E15: 12652.05 | F15: 12707.9 | G15: 12710 | H15: 12702.2 | I15: 10901 | J15: 138757187.5 | K15: 2020-01-23 | L15: 1620 | M15: INE358A01014
A16: ABCAPITAL | B16: EQ | C16: 107.4 | D16: 108.4 | E16: 105.6 | F16: 106 | G16: 106 | H16: 107 | I16: 1677550 | J16: 179017559.3 | K16: 2020-01-23 | L16: 19573 | M16: INE674K01013
A17: ABFRL | B17: EQ | C17: 235.8 | D17: 241 | E17: 231.95 | F17: 233.8 | G17: 233.1 | H17: 234.7 | I17: 344297 | J17: 81722244.5 | K17: 2020-01-23 | L17: 7976 | M17: INE647O01011
A18: ABSLBANETF | B18: EQ | C18: 308.33 | D18: 308.33 | E18: 308.33 | F18: 308.33 | G18: 308.33 | H18: 305.13 | I18: 1 | J18: 308.33 | K18: 2020-01-23 | L18: 1 | M18: INF209KB1O58
A19: ABSLNN50ET | B19: EQ | C19: 290.34 | D19: 290.34 | E19: 288.2 | F19: 289.34 | G19: 289.34 | H19: 289.5 | I19: 174 | J19: 50327.02 | K19: 2020-01-23 | L19: 5 | M19: INF209KB1B87
A20: ACC | B20: EQ | C20: 1526.25 | D20: 1554.9 | E20: 1525 | F20: 1548.35 | G20: 1550 | H20: 1524.4 | I20: 1100769 | J20: 1698575182 | K20: 2020-01-23 | L20: 41698 | M20: INE012A01025
A21: ACCELYA | B21: EQ | C21: 1048.2 | D21: 1065.05 | E21: 1048.2 | F21: 1056.05 | G21: 1052 | H21: 1048.25 | I21: 911 | J21: 964830.1 | K21: 2020-01-23 | L21: 134 | M21: INE793A01012
A22: ACE | B22: EQ | C22: 86.45 | D22: 87.4 | E22: 84.6 | F22: 85.45 | G22: 85.3 | H22: 86.1 | I22: 116608 | J22: 10069335.35 | K22: 2020-01-23 | L22: 1652 | M22: INE731H01025
A23: ADANIENT | B23: EQ | C23: 226 | D23: 231.2 | E23: 225.75 | F23: 229.6 | G23: 228.7 | H23: 225.9 | I23: 2650092 | J23: 606961652.9 | K23: 2020-01-23 | L23: 15737 | M23: INE423A01024
A24: ADANIGAS | B24: EQ | C24: 167.3 | D24: 174.8 | E24: 166.55 | F24: 172.9 | G24: 173 | H24: 166.85 | I24: 1942737 | J24: 333024148.1 | K24: 2020-01-23 | L24: 17529 | M24: INE399L01023
A25: ADANIGREEN | B25: EQ | C25: 199.2 | D25: 199.9 | E25: 190 | F25: 192.2 | G25: 191.55 | H25: 197.65 | I25: 1336193 | J25: 258307661.9 | K25: 2020-01-23 | L25: 17717 | M25: INE364U01010
A26: ADANIPORTS | B26: EQ | C26: 384.45 | D26: 386.75 | E26: 380.75 | F26: 385.85 | G26: 385 | H26: 383.6 | I26: 1202104 | J26: 462086830.4 | K26: 2020-01-23 | L26: 22112 | M26: INE742F01042
A27: ADANIPOWER | B27: EQ | C27: 62.6 | D27: 63.7 | E27: 62.3 | F27: 63.35 | G27: 63.15 | H27: 62.5 | I27: 4473067 | J27: 282522404.4 | K27: 2020-01-23 | L27: 11974 | M27: INE814H01011
A28: ADANITRANS | B28: EQ | C28: 332.6 | D28: 337.5 | E28: 330 | F28: 332.9 | G28: 332.5 | H28: 332.6 | I28: 95177 | J28: 31834586.25 | K28: 2020-01-23 | L28: 3201 | M28: INE931S01010
A29: ADFFOODS | B29: EQ | C29: 299 | D29: 302.7 | E29: 298.1 | F29: 299.65 | G29: 299.5 | H29: 301.5 | I29: 15041 | J29: 4514785.5 | K29: 2020-01-23 | L29: 605 | M29: INE982B01019
A30: ADHUNIKIND | B30: EQ | C30: 44 | D30: 45.7 | E30: 43.2 | F30: 44.75 | G30: 45.7 | H30: 44.3 | I30: 5600 | J30: 247049.15 | K30: 2020-01-23 | L30: 201 | M30: INE452L01012
A31: ADLABS | B31: BE | C31: 4.15 | D31: 4.2 | E31: 3.85 | F31: 4.15 | G31: 4.2 | H31: 4 | I31: 47274 | J31: 191044.65 | K31: 2020-01-23 | L31: 97 | M31: INE172N01012
A32: ADORWELD | B32: EQ | C32: 343.55 | D32: 344.95 | E32: 337 | F32: 339.7 | G32: 341.6 | H32: 343.55 | I32: 7982 | J32: 2714702.45 | K32: 2020-01-23 | L32: 689 | M32: INE045A01017
A33: ADROITINFO | B33: BE | C33: 5.8 | D33: 5.8 | E33: 5.7 | F33: 5.7 | G33: 5.7 | H33: 6 | I33: 12521 | J33: 71430.75 | K33: 2020-01-23 | L33: 12 | M33: INE737B01033
A34: ADSL | B34: BE | C34: 19.65 | D34: 20.45 | E34: 19.65 | F34: 20.15 | G34: 20.15 | H34: 20.1 | I34: 12795 | J34: 255750.2 | K34: 2020-01-23 | L34: 87 | M34: INE102I01027
A35: ADVANIHOTR | B35: EQ | C35: 53.9 | D35: 55.25 | E35: 53.3 | F35: 54.7 | G35: 54.9 | H35: 53.3 | I35: 7345 | J35: 398857.55 | K35: 2020-01-23 | L35: 417 | M35: INE199C01026
A36: ADVENZYMES | B36: EQ | C36: 180.6 | D36: 181.05 | E36: 178.25 | F36: 179.05 | G36: 178.55 | H36: 180.15 | I36: 28235 | J36: 5060981.4 | K36: 2020-01-23 | L36: 752 | M36: INE837H01020
A37: AEGISCHEM | B37: EQ | C37: 210.9 | D37: 213.25 | E37: 207.3 | F37: 209.35 | G37: 208.55 | H37: 208.85 | I37: 93993 | J37: 19702991.75 | K37: 2020-01-23 | L37: 2473 | M37: INE208C01025
A38: AFFLE | B38: EQ | C38: 1514.7 | D38: 1548.55 | E38: 1502.15 | F38: 1521.2 | G38: 1524.85 | H38: 1503.5 | I38: 77753 | J38: 118528098.8 | K38: 2020-01-23 | L38: 5757 | M38: INE00WC01019
A39: AGARIND | B39: EQ | C39: 92.45 | D39: 94.9 | E39: 92 | F39: 92.8 | G39: 93 | H39: 91.65 | I39: 5852 | J39: 545407.2 | K39: 2020-01-23 | L39: 239 | M39: INE204E01012
A40: AGCNET | B40: EQ | C40: 234.85 | D40: 245.7 | E40: 222.3 | F40: 222.7 | G40: 222.3 | H40: 234 | I40: 108785 | J40: 25662564.9 | K40: 2020-01-23 | L40: 1569 | M40: INE676A01019
A41: AGRITECH | B41: EQ | C41: 47.45 | D41: 48 | E41: 45.65 | F41: 47.4 | G41: 47.95 | H41: 46.2 | I41: 7341 | J41: 343508.75 | K41: 2020-01-23 | L41: 187 | M41: INE449G01018
A42: AGROPHOS | B42: EQ | C42: 31.95 | D42: 31.95 | E42: 31.95 | F42: 31.95 | G42: 31.95 | H42: 33.6 | I42: 821 | J42: 26230.95 | K42: 2020-01-23 | L42: 55 | M42: INE740V01019
A43: AHLEAST | B43: EQ | C43: 181.85 | D43: 182 | E43: 173.4 | F43: 181.45 | G43: 181.45 | H43: 178.25 | I43: 290 | J43: 52013.45 | K43: 2020-01-23 | L43: 20 | M43: INE926K01017
A44: AHLUCONT | B44: EQ | C44: 294.05 | D44: 297.9 | E44: 287.65 | F44: 296.6 | G44: 296.05 | H44: 296.5 | I44: 3589 | J44: 1048549.15 | K44: 2020-01-23 | L44: 215 | M44: INE758C01029
A45: AHLWEST | B45: EQ | C45: 356 | D45: 356 | E45: 344 | F45: 345 | G45: 345 | H45: 347.05 | I45: 492 | J45: 171309.85 | K45: 2020-01-23 | L45: 217 | M45: INE915K01010
A46: AIAENG | B46: EQ | C46: 1746.5 | D46: 1791 | E46: 1718.5 | F46: 1768.1 | G46: 1759.9 | H46: 1737.8 | I46: 105004 | J46: 185906594.9 | K46: 2020-01-23 | L46: 2472 | M46: INE212H01026
A47: AIONJSW | B47: EQ | C47: 14.55 | D47: 14.9 | E47: 13.7 | F47: 14.7 | G47: 14.7 | H47: 14.2 | I47: 330088 | J47: 4809240.65 | K47: 2020-01-23 | L47: 691 | M47: INE743C01021
A48: AIRAN | B48: EQ | C48: 13.3 | D48: 13.3 | E48: 12.5 | F48: 13.25 | G48: 13.25 | H48: 12.7 | I48: 10642 | J48: 140064.2 | K48: 2020-01-23 | L48: 58 | M48: INE645W01026
A49: AJANTPHARM | B49: EQ | C49: 1184.5 | D49: 1192 | E49: 1170.8 | F49: 1182.85 | G49: 1190 | H49: 1193.5 | I49: 62642 | J49: 74023447.35 | K49: 2020-01-23 | L49: 7727 | M49: INE031B01049
A50: AJMERA | B50: EQ | C50: 147.6 | D50: 149 | E50: 142.85 | F50: 146.7 | G50: 146.15 | H50: 148 | I50: 34935 | J50: 5128904.2 | K50: 2020-01-23 | L50: 1260 | M50: INE298G01027
A51: AKASH | B51: BE | C51: 83 | D51: 83 | E51: 82 | F51: 82 | G51: 82 | H51: 83 | I51: 510 | J51: 42046 | K51: 2020-01-23 | L51: 11 | M51: INE737W01013
A52: AKSHARCHEM | B52: EQ | C52: 244.7 | D52: 251.6 | E52: 244.7 | F52: 247.65 | G52: 249.05 | H52: 250.45 | I52: 4365 | J52: 1080482.6 | K52: 2020-01-23 | L52: 228 | M52: INE542B01011
A53: AKSHOPTFBR | B53: EQ | C53: 9.7 | D53: 9.7 | E53: 9.15 | F53: 9.15 | G53: 9.15 | H53: 9.6 | I53: 368811 | J53: 3412890.95 | K53: 2020-01-23 | L53: 483 | M53: INE523B01011
A54: AKZOINDIA | B54: EQ | C54: 2011 | D54: 2033 | E54: 1983.45 | F54: 2006.3 | G54: 1985 | H54: 2011.1 | I54: 11341 | J54: 22814309.3 | K54: 2020-01-23 | L54: 3545 | M54: INE133A01011
A55: ALANKIT | B55: EQ | C55: 14.2 | D55: 14.2 | E55: 13.25 | F55: 13.85 | G55: 13.9 | H55: 13.8 | I55: 153987 | J55: 2117179.1 | K55: 2020-01-23 | L55: 380 | M55: INE914E01040
A56: ALBERTDAVD | B56: EQ | C56: 454.15 | D56: 467 | E56: 454.15 | F56: 462.75 | G56: 462.15 | H56: 450.1 | I56: 6699 | J56: 3102790.75 | K56: 2020-01-23 | L56: 559 | M56: INE155C01010
A57: ALBK | B57: EQ | C57: 18.4 | D57: 18.75 | E57: 18.3 | F57: 18.6 | G57: 18.55 | H57: 18.55 | I57: 576174 | J57: 10720761.45 | K57: 2020-01-23 | L57: 2248 | M57: INE428A01015
A58: ALCHEM | B58: BE | C58: 1.65 | D58: 1.65 | E58: 1.55 | F58: 1.6 | G58: 1.6 | H58: 1.6 | I58: 19971 | J58: 32352.1 | K58: 2020-01-23 | L58: 49 | M58: INE964B01033
A59: ALEMBICLTD | B59: EQ | C59: 55.8 | D59: 57.2 | E59: 55.75 | F59: 56.2 | G59: 56.2 | H59: 55.55 | I59: 90645 | J59: 5122279.55 | K59: 2020-01-23 | L59: 3780 | M59: INE426A01027
A60: ALICON | B60: EQ | C60: 429 | D60: 435 | E60: 410 | F60: 416.4 | G60: 411 | H60: 428.95 | I60: 1447 | J60: 608806.05 | K60: 2020-01-23 | L60: 220 | M60: INE062D01024
A61: ALKALI | B61: EQ | C61: 43 | D61: 44.8 | E61: 43 | F61: 44.2 | G61: 44.2 | H61: 43.2 | I61: 4047 | J61: 178780.55 | K61: 2020-01-23 | L61: 93 | M61: INE773I01017
A62: ALKEM | B62: EQ | C62: 2363.15 | D62: 2365 | E62: 2310 | F62: 2329.7 | G62: 2320 | H62: 2360.85 | I62: 57972 | J62: 135878759.2 | K62: 2020-01-23 | L62: 10448 | M62: INE540L01014
A63: ALKYLAMINE | B63: EQ | C63: 1296.95 | D63: 1334 | E63: 1293.8 | F63: 1308.35 | G63: 1302 | H63: 1293.3 | I63: 33548 | J63: 44278374.65 | K63: 2020-01-23 | L63: 1738 | M63: INE150B01021
A64: ALLCARGO | B64: EQ | C64: 103.5 | D64: 104.9 | E64: 102.5 | F64: 104 | G64: 104.55 | H64: 102.95 | I64: 176227 | J64: 18282748.25 | K64: 2020-01-23 | L64: 1295 | M64: INE418H01029
A65: ALLSEC | B65: EQ | C65: 317 | D65: 328 | E65: 311.5 | F65: 320.05 | G65: 317 | H65: 316.5 | I65: 10142 | J65: 3229079.45 | K65: 2020-01-23 | L65: 404 | M65: INE835G01018
A66: ALMONDZ | B66: EQ | C66: 13.75 | D66: 14.1 | E66: 13.75 | F66: 14.1 | G66: 14.1 | H66: 13.45 | I66: 1224 | J66: 17256.65 | K66: 2020-01-23 | L66: 7 | M66: INE326B01027
A67: ALOKTEXT | B67: BE | C67: 3 | D67: 3 | E67: 3 | F67: 3 | G67: 3 | H67: 2.9 | I67: 552075 | J67: 1656225 | K67: 2020-01-23 | L67: 321 | M67: INE270A01011
A68: ALPA | B68: EQ | C68: 20.5 | D68: 22.2 | E68: 20 | F68: 21.45 | G68: 21.35 | H68: 20.65 | I68: 168684 | J68: 3649457.25 | K68: 2020-01-23 | L68: 762 | M68: INE385I01010
A69: ALPHAGEO | B69: EQ | C69: 222.9 | D69: 227.95 | E69: 215.3 | F69: 221.2 | G69: 220 | H69: 221.85 | I69: 10666 | J69: 2369841.15 | K69: 2020-01-23 | L69: 463 | M69: INE137C01018
A70: ALPSINDUS | B70: BE | C70: 1.35 | D70: 1.35 | E70: 1.35 | F70: 1.35 | G70: 1.35 | H70: 1.4 | I70: 16187 | J70: 21852.45 | K70: 2020-01-23 | L70: 11 | M70: INE093B01015
A71: AMARAJABAT | B71: EQ | C71: 785 | D71: 802.95 | E71: 785 | F71: 790.8 | G71: 791.55 | H71: 783.8 | I71: 964018 | J71: 766746315.1 | K71: 2020-01-23 | L71: 23666 | M71: INE885A01032
A72: AMBER | B72: EQ | C72: 1330 | D72: 1370 | E72: 1330 | F72: 1366.65 | G72: 1370 | H72: 1342.45 | I72: 40035 | J72: 54533442.5 | K72: 2020-01-23 | L72: 3055 | M72: INE371P01015
A73: AMBIKCO | B73: EQ | C73: 845 | D73: 876.35 | E73: 837 | F73: 863.6 | G73: 869.5 | H73: 835.45 | I73: 8300 | J73: 7084576.95 | K73: 2020-01-23 | L73: 641 | M73: INE540G01014
A74: AMBUJACEM | B74: EQ | C74: 210 | D74: 214.95 | E74: 209.45 | F74: 213.65 | G74: 213.65 | H74: 210.35 | I74: 4656562 | J74: 989408727.4 | K74: 2020-01-23 | L74: 29130 | M74: INE079A01024
A75: AMDIND | B75: EQ | C75: 19 | D75: 19.5 | E75: 17.5 | F75: 17.8 | G75: 17.75 | H75: 19.75 | I75: 104174 | J75: 1924410.75 | K75: 2020-01-23 | L75: 705 | M75: INE005I01014
A76: AMJLAND | B76: EQ | C76: 20.25 | D76: 20.65 | E76: 20.15 | F76: 20.5 | G76: 20.5 | H76: 20.7 | I76: 7191 | J76: 146161.1 | K76: 2020-01-23 | L76: 97 | M76: INE606A01024
A77: AMRUTANJAN | B77: EQ | C77: 479 | D77: 485.75 | E77: 473 | F77: 476.65 | G77: 476.5 | H77: 479.5 | I77: 23090 | J77: 11012954.95 | K77: 2020-01-23 | L77: 1100 | M77: INE098F01031
A78: ANANTRAJ | B78: EQ | C78: 36.4 | D78: 37.35 | E78: 35.8 | F78: 36.85 | G78: 36.7 | H78: 36.1 | I78: 326940 | J78: 12028579.9 | K78: 2020-01-23 | L78: 4075 | M78: INE242C01024
A79: ANDHRABANK | B79: EQ | C79: 17.1 | D79: 17.15 | E79: 16.9 | F79: 16.95 | G79: 16.95 | H79: 16.9 | I79: 364164 | J79: 6191515.95 | K79: 2020-01-23 | L79: 1783 | M79: INE434A01013
A80: ANDHRACEMT | B80: EQ | C80: 2 | D80: 2.1 | E80: 2 | F80: 2.1 | G80: 2.1 | H80: 2 | I80: 165143 | J80: 342891.35 | K80: 2020-01-23 | L80: 116 | M80: INE666E01012
A81: ANDHRSUGAR | B81: EQ | C81: 344 | D81: 347.75 | E81: 340.9 | F81: 341.95 | G81: 341.7 | H81: 346.55 | I81: 31280 | J81: 10751036.3 | K81: 2020-01-23 | L81: 1183 | M81: INE715B01013
A82: ANDPAPER | B82: EQ | C82: 302.25 | D82: 307.55 | E82: 297.65 | F82: 303.2 | G82: 304 | H82: 303.55 | I82: 5211 | J82: 1578083.7 | K82: 2020-01-23 | L82: 250 | M82: INE435A01028
A83: ANIKINDS | B83: EQ | C83: 11.8 | D83: 11.8 | E83: 10.7 | F83: 11.8 | G83: 11.8 | H83: 11.25 | I83: 37619 | J83: 439001.45 | K83: 2020-01-23 | L83: 113 | M83: INE087B01017
A84: ANKITMETAL | B84: BE | C84: 0.45 | D84: 0.5 | E84: 0.45 | F84: 0.45 | G84: 0.45 | H84: 0.5 | I84: 25107 | J84: 11424.05 | K84: 2020-01-23 | L84: 26 | M84: INE106I01010
A85: ANSALAPI | B85: EQ | C85: 5.4 | D85: 5.4 | E85: 5.1 | F85: 5.15 | G85: 5.1 | H85: 5.2 | I85: 52669 | J85: 275794.8 | K85: 2020-01-23 | L85: 57 | M85: INE436A01026
A86: ANSALHSG | B86: BE | C86: 5.35 | D86: 5.6 | E86: 5.35 | F86: 5.5 | G86: 5.6 | H86: 5.6 | I86: 28560 | J86: 156731.65 | K86: 2020-01-23 | L86: 49 | M86: INE880B01015
A87: ANTGRAPHIC | B87: BE | C87: 0.65 | D87: 0.65 | E87: 0.6 | F87: 0.65 | G87: 0.6 | H87: 0.65 | I87: 55264 | J87: 33333.6 | K87: 2020-01-23 | L87: 18 | M87: INE414B01021
A88: ANUP | B88: EQ | C88: 550.05 | D88: 592.75 | E88: 550.05 | F88: 571.65 | G88: 574.5 | H88: 553.8 | I88: 37972 | J88: 21762918.5 | K88: 2020-01-23 | L88: 2474 | M88: INE294Z01018
A89: APARINDS | B89: EQ | C89: 449 | D89: 453.5 | E89: 416.1 | F89: 427.2 | G89: 418 | H89: 443.25 | I89: 83823 | J89: 36390881.1 | K89: 2020-01-23 | L89: 2962 | M89: INE372A01015
A90: APCL | B90: EQ | C90: 161.15 | D90: 161.15 | E90: 157.1 | F90: 160.3 | G90: 160.3 | H90: 156.65 | I90: 341 | J90: 54443.35 | K90: 2020-01-23 | L90: 76 | M90: INE071F01012
A91: APCOTEXIND | B91: EQ | C91: 160 | D91: 166.85 | E91: 160 | F91: 162.85 | G91: 162.15 | H91: 158.95 | I91: 26100 | J91: 4265370.9 | K91: 2020-01-23 | L91: 1054 | M91: INE116A01032
A92: APEX | B92: EQ | C92: 413.7 | D92: 414.4 | E92: 405.55 | F92: 408.65 | G92: 408.4 | H92: 410 | I92: 244174 | J92: 100028533.9 | K92: 2020-01-23 | L92: 6833 | M92: INE346W01013
A93: APLAPOLLO | B93: EQ | C93: 1990.1 | D93: 2020 | E93: 1990 | F93: 2009 | G93: 2008 | H93: 1995.6 | I93: 22550 | J93: 45380886 | K93: 2020-01-23 | L93: 1728 | M93: INE702C01019
A94: APLLTD | B94: EQ | C94: 598 | D94: 598 | E94: 583.6 | F94: 588.8 | G94: 588.1 | H94: 590.2 | I94: 408209 | J94: 240662710.6 | K94: 2020-01-23 | L94: 16378 | M94: INE901L01018
A95: APOLLO | B95: EQ | C95: 77.75 | D95: 79.5 | E95: 77.5 | F95: 78.5 | G95: 79.5 | H95: 77.95 | I95: 17491 | J95: 1368409.9 | K95: 2020-01-23 | L95: 456 | M95: INE713T01010
A96: APOLLOHOSP | B96: EQ | C96: 1638.8 | D96: 1699.9 | E96: 1631.25 | F96: 1686.9 | G96: 1699 | H96: 1634.45 | I96: 764590 | J96: 1273647658 | K96: 2020-01-23 | L96: 30485 | M96: INE437A01024
A97: APOLLOPIPE | B97: EQ | C97: 399.85 | D97: 406 | E97: 387.25 | F97: 402.4 | G97: 403 | H97: 390.2 | I97: 12880 | J97: 5155482.65 | K97: 2020-01-23 | L97: 505 | M97: INE126J01016
A98: APOLLOTYRE | B98: EQ | C98: 175.55 | D98: 177.2 | E98: 174.7 | F98: 175.15 | G98: 175 | H98: 174.25 | I98: 2318536 | J98: 407184427.4 | K98: 2020-01-23 | L98: 23385 | M98: INE438A01022
A99: APOLSINHOT | B99: EQ | C99: 736 | D99: 742 | E99: 730.1 | F99: 740 | G99: 740.05 | H99: 732.8 | I99: 1060 | J99: 784270.3 | K99: 2020-01-23 | L99: 81 | M99: INE451F01024
A100: APTECHT | B100: EQ | C100: 176.1 | D100: 191.55 | E100: 174.1 | F100: 182.75 | G100: 183.1 | H100: 177.1 | I100: 1281341 | J100: 236855060.8 | K100: 2020-01-23 | L100: 18015 | M100: INE266F01018
A101: ARCHIDPLY | B101: EQ | C101: 31.9 | D101: 32.25 | E101: 31.2 | F101: 31.75 | G101: 31.6 | H101: 31.45 | I101: 9174 | J101: 289880.6 | K101: 2020-01-23 | L101: 323 | M101: INE877I01016
A102: ARCHIES | B102: EQ | C102: 18.75 | D102: 19 | E102: 18.35 | F102: 18.4 | G102: 18.4 | H102: 18.75 | I102: 21595 | J102: 402958.6 | K102: 2020-01-23 | L102: 88 | M102: INE731A01020
A103: ARCOTECH | B103: BE | C103: 2.05 | D103: 2.2 | E103: 2 | F103: 2 | G103: 2 | H103: 2.1 | I103: 20208 | J103: 40684.05 | K103: 2020-01-23 | L103: 53 | M103: INE574I01035
A104: ARENTERP | B104: EQ | C104: 9.9 | D104: 9.9 | E104: 9.9 | F104: 9.9 | G104: 9.9 | H104: 9.45 | I104: 100 | J104: 990 | K104: 2020-01-23 | L104: 1 | M104: INE610C01014
A105: ARIES | B105: EQ | C105: 72 | D105: 75.5 | E105: 70.55 | F105: 73.65 | G105: 74.25 | H105: 71.9 | I105: 27703 | J105: 2035689.85 | K105: 2020-01-23 | L105: 916 | M105: INE298I01015
A106: ARIHANT | B106: EQ | C106: 21.15 | D106: 22.65 | E106: 21.15 | F106: 22.6 | G106: 22.65 | H106: 21.6 | I106: 7053 | J106: 157222.5 | K106: 2020-01-23 | L106: 45 | M106: INE413D01011
A107: ARIHANTSUP | B107: EQ | C107: 28.5 | D107: 29.25 | E107: 28.1 | F107: 28.85 | G107: 28.9 | H107: 28.1 | I107: 13921 | J107: 403427.35 | K107: 2020-01-23 | L107: 47 | M107: INE643K01018
A108: ARMANFIN | B108: EQ | C108: 765.05 | D108: 774.4 | E108: 750 | F108: 758.95 | G108: 750 | H108: 763.05 | I108: 4929 | J108: 3773453.25 | K108: 2020-01-23 | L108: 366 | M108: INE109C01017
A109: AROGRANITE | B109: EQ | C109: 40.1 | D109: 41.45 | E109: 39.85 | F109: 41 | G109: 41.3 | H109: 40.4 | I109: 2494 | J109: 101246.95 | K109: 2020-01-23 | L109: 75 | M109: INE210C01013
A110: ARROWGREEN | B110: EQ | C110: 51.05 | D110: 53.3 | E110: 50.95 | F110: 52.75 | G110: 52.85 | H110: 51.3 | I110: 1991 | J110: 103689.9 | K110: 2020-01-23 | L110: 120 | M110: INE570D01018
A111: ARROWTEX | B111: BE | C111: 10.1 | D111: 10.1 | E111: 9.35 | F111: 9.95 | G111: 9.95 | H111: 9.8 | I111: 3669 | J111: 35565.85 | K111: 2020-01-23 | L111: 25 | M111: INE933J01015
A112: ARSHIYA | B112: EQ | C112: 16.9 | D112: 17.3 | E112: 16.3 | F112: 16.65 | G112: 16.75 | H112: 16.65 | I112: 12107 | J112: 204322.15 | K112: 2020-01-23 | L112: 74 | M112: INE968D01022
A113: ARSSINFRA | B113: EQ | C113: 20.55 | D113: 21.25 | E113: 20.55 | F113: 20.7 | G113: 20.65 | H113: 20.95 | I113: 8608 | J113: 178594.1 | K113: 2020-01-23 | L113: 95 | M113: INE267I01010
A114: ARVIND | B114: EQ | C114: 44 | D114: 44.25 | E114: 43.2 | F114: 43.7 | G114: 43.5 | H114: 44.05 | I114: 781690 | J114: 34130680.55 | K114: 2020-01-23 | L114: 3112 | M114: INE034A01011
A115: ARVINDFASN | B115: EQ | C115: 423.4 | D115: 423.4 | E115: 407.1 | F115: 410.75 | G115: 410.15 | H115: 416.8 | I115: 20152 | J115: 8325303 | K115: 2020-01-23 | L115: 1637 | M115: INE955V01021
A116: ARVSMART | B116: EQ | C116: 93.15 | D116: 94.35 | E116: 91.45 | F116: 92.95 | G116: 93 | H116: 93.15 | I116: 6848 | J116: 636456.25 | K116: 2020-01-23 | L116: 468 | M116: INE034S01021
A117: ASAHIINDIA | B117: EQ | C117: 239.1 | D117: 245.7 | E117: 236.3 | F117: 240.9 | G117: 241 | H117: 241.9 | I117: 14705 | J117: 3541279.55 | K117: 2020-01-23 | L117: 728 | M117: INE439A01020
A118: ASAHISONG | B118: EQ | C118: 160.5 | D118: 160.65 | E118: 158.2 | F118: 159.2 | G118: 159.95 | H118: 158.1 | I118: 2864 | J118: 455959.4 | K118: 2020-01-23 | L118: 109 | M118: INE228I01012
A119: ASAL | B119: EQ | C119: 34.8 | D119: 34.85 | E119: 33.8 | F119: 34.4 | G119: 34.3 | H119: 34.4 | I119: 5917 | J119: 201617.3 | K119: 2020-01-23 | L119: 82 | M119: INE900C01027
A120: ASHAPURMIN | B120: EQ | C120: 34.9 | D120: 34.9 | E120: 32.95 | F120: 33.15 | G120: 33.1 | H120: 33.6 | I120: 13149 | J120: 440489.35 | K120: 2020-01-23 | L120: 116 | M120: INE348A01023
A121: ASHIANA | B121: EQ | C121: 111.8 | D121: 114.95 | E121: 111 | F121: 111.7 | G121: 111.6 | H121: 112.55 | I121: 26205 | J121: 2948624.1 | K121: 2020-01-23 | L121: 714 | M121: INE365D01021
A122: ASHIMASYN | B122: EQ | C122: 8.05 | D122: 8.6 | E122: 7.95 | F122: 8.1 | G122: 8.3 | H122: 8.2 | I122: 35814 | J122: 294329.25 | K122: 2020-01-23 | L122: 194 | M122: INE440A01010
A123: ASHOKA | B123: EQ | C123: 115.4 | D123: 116.4 | E123: 112.35 | F123: 114.85 | G123: 115.6 | H123: 115.55 | I123: 430625 | J123: 49175173.35 | K123: 2020-01-23 | L123: 7197 | M123: INE442H01029
A124: ASHOKLEY | B124: EQ | C124: 85.6 | D124: 87 | E124: 85.6 | F124: 86.6 | G124: 86.6 | H124: 85.9 | I124: 8669370 | J124: 749310488.4 | K124: 2020-01-23 | L124: 28339 | M124: INE208A01029
A125: ASIANHOTNR | B125: EQ | C125: 86.9 | D125: 92.9 | E125: 86 | F125: 88.4 | G125: 89 | H125: 86.9 | I125: 10724 | J125: 955527.1 | K125: 2020-01-23 | L125: 173 | M125: INE363A01022
A126: ASIANPAINT | B126: EQ | C126: 1779 | D126: 1789 | E126: 1757.1 | F126: 1776.1 | G126: 1778.1 | H126: 1779.25 | I126: 1885275 | J126: 3335210412 | K126: 2020-01-23 | L126: 84213 | M126: INE021A01026
A127: ASIANTILES | B127: EQ | C127: 218.95 | D127: 219.8 | E127: 214.05 | F127: 218.85 | G127: 217 | H127: 215.4 | I127: 15159 | J127: 3294311.9 | K127: 2020-01-23 | L127: 2018 | M127: INE022I01019
A128: ASPINWALL | B128: EQ | C128: 160.4 | D128: 160.4 | E128: 152.25 | F128: 153.8 | G128: 153.45 | H128: 155.1 | I128: 203 | J128: 31386.75 | K128: 2020-01-23 | L128: 34 | M128: INE991I01015
A129: ASTEC | B129: EQ | C129: 487.85 | D129: 491 | E129: 477 | F129: 489.2 | G129: 485 | H129: 484.7 | I129: 3708 | J129: 1801411 | K129: 2020-01-23 | L129: 263 | M129: INE563J01010
A130: ASTERDM | B130: EQ | C130: 158 | D130: 166.3 | E130: 156.95 | F130: 164.5 | G130: 164.25 | H130: 164.5 | I130: 257843 | J130: 41857982.35 | K130: 2020-01-23 | L130: 5957 | M130: INE914M01019
A131: ASTRAL | B131: EQ | C131: 1101 | D131: 1108.5 | E131: 1091.1 | F131: 1099.4 | G131: 1098.1 | H131: 1088 | I131: 79201 | J131: 86919364.35 | K131: 2020-01-23 | L131: 7502 | M131: INE006I01046
A132: ASTRAMICRO | B132: EQ | C132: 87.65 | D132: 88.9 | E132: 86.1 | F132: 86.65 | G132: 87 | H132: 87.95 | I132: 146349 | J132: 12722811.8 | K132: 2020-01-23 | L132: 6399 | M132: INE386C01029
A133: ASTRAZEN | B133: EQ | C133: 2529.3 | D133: 2550 | E133: 2512.55 | F133: 2534.5 | G133: 2528.9 | H133: 2529.25 | I133: 61138 | J133: 154984276.4 | K133: 2020-01-23 | L133: 1673 | M133: INE203A01020
A134: ASTRON | B134: EQ | C134: 38.4 | D134: 39.25 | E134: 38 | F134: 38.55 | G134: 38.1 | H134: 38.75 | I134: 86453 | J134: 3317270.15 | K134: 2020-01-23 | L134: 417 | M134: INE646X01014
A135: ATFL | B135: EQ | C135: 701.05 | D135: 702.15 | E135: 660 | F135: 679.6 | G135: 675 | H135: 712.35 | I135: 27803 | J135: 18907472.35 | K135: 2020-01-23 | L135: 2061 | M135: INE209A01019
A136: ATLANTA | B136: EQ | C136: 6.45 | D136: 6.45 | E136: 6.15 | F136: 6.25 | G136: 6.25 | H136: 6.2 | I136: 2963 | J136: 18582.95 | K136: 2020-01-23 | L136: 46 | M136: INE285H01022
A137: ATLASCYCLE | B137: BE | C137: 53.65 | D137: 53.65 | E137: 51.15 | F137: 51.5 | G137: 51.5 | H137: 52.35 | I137: 1949 | J137: 101744.95 | K137: 2020-01-23 | L137: 33 | M137: INE446A01025
A138: ATUL | B138: EQ | C138: 4342.1 | D138: 4399.85 | E138: 4321 | F138: 4381.7 | G138: 4393 | H138: 4321.05 | I138: 113772 | J138: 498179842.9 | K138: 2020-01-23 | L138: 3410 | M138: INE100A01010
A139: ATULAUTO | B139: EQ | C139: 280.85 | D139: 290 | E139: 270.4 | F139: 272.7 | G139: 274.25 | H139: 280.85 | I139: 63983 | J139: 17860315.6 | K139: 2020-01-23 | L139: 3770 | M139: INE951D01028
A140: AUBANK | B140: EQ | C140: 911 | D140: 1008 | E140: 911 | F140: 974.55 | G140: 976 | H140: 887.05 | I140: 4978519 | J140: 4835271317 | K140: 2020-01-23 | L140: 129369 | M140: INE949L01017
A141: AURIONPRO | B141: EQ | C141: 59.2 | D141: 60.85 | E141: 58.1 | F141: 60.3 | G141: 60.75 | H141: 59.15 | I141: 5344 | J141: 318225.8 | K141: 2020-01-23 | L141: 140 | M141: INE132H01018
A142: AUROPHARMA | B142: EQ | C142: 498.75 | D142: 499.6 | E142: 487.35 | F142: 490.05 | G142: 491.5 | H142: 497.95 | I142: 3759332 | J142: 1848535938 | K142: 2020-01-23 | L142: 49313 | M142: INE406A01037
A143: AUSOMENT | B143: BE | C143: 35.25 | D143: 35.25 | E143: 35.25 | F143: 35.25 | G143: 35.25 | H143: 35.9 | I143: 50 | J143: 1762.5 | K143: 2020-01-23 | L143: 1 | M143: INE218C01016
A144: AUTOAXLES | B144: EQ | C144: 843.65 | D144: 864.55 | E144: 837.2 | F144: 853.3 | G144: 851 | H144: 835.85 | I144: 5344 | J144: 4568063.65 | K144: 2020-01-23 | L144: 603 | M144: INE449A01011
A145: AUTOIND | B145: BE | C145: 26.45 | D145: 26.45 | E145: 25.2 | F145: 25.25 | G145: 25.25 | H145: 26 | I145: 1800 | J145: 45725.1 | K145: 2020-01-23 | L145: 27 | M145: INE718H01014
A146: AUTOLITIND | B146: EQ | C146: 24.4 | D146: 25 | E146: 22.2 | F146: 23.55 | G146: 23.7 | H146: 24.6 | I146: 19239 | J146: 452902.05 | K146: 2020-01-23 | L146: 301 | M146: INE448A01013
A147: AVADHSUGAR | B147: EQ | C147: 328.45 | D147: 332.65 | E147: 322 | F147: 324.25 | G147: 322.75 | H147: 329.5 | I147: 103116 | J147: 33701518.45 | K147: 2020-01-23 | L147: 3314 | M147: INE349W01017
A148: AVANTIFEED | B148: EQ | C148: 700.85 | D148: 720 | E148: 696.05 | F148: 716.65 | G148: 719.1 | H148: 695.65 | I148: 709597 | J148: 504017850.2 | K148: 2020-01-23 | L148: 26779 | M148: INE871C01038
A149: AVTNPL | B149: EQ | C149: 34.7 | D149: 35.3 | E149: 34 | F149: 34.85 | G149: 34.45 | H149: 34.05 | I149: 99565 | J149: 3457027.9 | K149: 2020-01-23 | L149: 575 | M149: INE488D01021
A150: AXISBANK | B150: EQ | C150: 725.05 | D150: 737.55 | E150: 719.4 | F150: 723 | G150: 723.9 | H150: 712.6 | I150: 20643257 | J150: 1.501212423e+10 | K150: 2020-01-23 | L150: 254963 | M150: INE238A01034
A151: AXISCADES | B151: EQ | C151: 68 | D151: 74.85 | E151: 66 | F151: 74.85 | G151: 74.85 | H151: 62.4 | I151: 1521392 | J151: 108562100 | K151: 2020-01-23 | L151: 12362 | M151: INE555B01013
A152: AXISGOLD | B152: EQ | C152: 3520 | D152: 3520 | E152: 3493.35 | F152: 3506.8 | G152: 3508.9 | H152: 3512.6 | I152: 193 | J152: 676743.3 | K152: 2020-01-23 | L152: 68 | M152: INF846K01347
A153: AXISNIFTY | B153: EQ | C153: 1256.84 | D153: 1258.76 | E153: 1255.19 | F153: 1255.19 | G153: 1255.19 | H153: 1249.37 | I153: 19 | J153: 23893.31 | K153: 2020-01-23 | L153: 7 | M153: INF846K01ZL0
A154: AYMSYNTEX | B154: EQ | C154: 33.75 | D154: 38.45 | E154: 31.15 | F154: 38.45 | G154: 38.45 | H154: 32.05 | I154: 40829 | J154: 1454305.95 | K154: 2020-01-23 | L154: 370 | M154: INE193B01039
A155: BAGFILMS | B155: BE | C155: 1.85 | D155: 1.9 | E155: 1.8 | F155: 1.9 | G155: 1.9 | H155: 1.85 | I155: 59893 | J155: 112028.65 | K155: 2020-01-23 | L155: 73 | M155: INE116D01028
A156: BAJAJ-AUTO | B156: EQ | C156: 3072 | D156: 3089.95 | E156: 3051.1 | F156: 3065.2 | G156: 3068 | H156: 3076.4 | I156: 256329 | J156: 786793776.9 | K156: 2020-01-23 | L156: 16401 | M156: INE917I01010
A157: BAJAJCON | B157: EQ | C157: 234.8 | D157: 236.3 | E157: 234 | F157: 234.7 | G157: 235.05 | H157: 232.4 | I157: 127677 | J157: 30006951.15 | K157: 2020-01-23 | L157: 5003 | M157: INE933K01021
A158: BAJAJELEC | B158: EQ | C158: 384.7 | D158: 388 | E158: 380.25 | F158: 383.55 | G158: 382.5 | H158: 383.8 | I158: 135349 | J158: 52096228.25 | K158: 2020-01-23 | L158: 5390 | M158: INE193E01025
A159: BAJAJFINSV | B159: EQ | C159: 9547.5 | D159: 9596 | E159: 9484.15 | F159: 9534.2 | G159: 9509.4 | H159: 9547.5 | I159: 181280 | J159: 1729972042 | K159: 2020-01-23 | L159: 15995 | M159: INE918I01018
A160: BAJAJHIND | B160: EQ | C160: 6.8 | D160: 6.9 | E160: 6.7 | F160: 6.75 | G160: 6.75 | H160: 6.75 | I160: 1139992 | J160: 7777644.75 | K160: 2020-01-23 | L160: 920 | M160: INE306A01021
A161: BAJAJHLDNG | B161: EQ | C161: 3353.2 | D161: 3372.9 | E161: 3333.05 | F161: 3346.4 | G161: 3348 | H161: 3353.2 | I161: 41158 | J161: 138380703.4 | K161: 2020-01-23 | L161: 4076 | M161: INE118A01012
A162: BAJFINANCE | B162: EQ | C162: 4123 | D162: 4163.85 | E162: 4085 | F162: 4125.8 | G162: 4142 | H162: 4142.2 | I162: 1154522 | J162: 4755982213 | K162: 2020-01-23 | L162: 72036 | M162: INE296A01024
A163: BALAJITELE | B163: EQ | C163: 52.45 | D163: 53 | E163: 51.3 | F163: 51.95 | G163: 52.2 | H163: 51.95 | I163: 45429 | J163: 2370412.85 | K163: 2020-01-23 | L163: 284 | M163: INE794B01026
A164: BALAMINES | B164: EQ | C164: 464 | D164: 469.6 | E164: 458.4 | F164: 460.85 | G164: 458.4 | H164: 459.3 | I164: 36260 | J164: 16786947.4 | K164: 2020-01-23 | L164: 2078 | M164: INE050E01027
A165: BALAXI | B165: EQ | C165: 70.85 | D165: 71.9 | E165: 69.35 | F165: 70.95 | G165: 69.55 | H165: 70.85 | I165: 750 | J165: 52743.65 | K165: 2020-01-23 | L165: 43 | M165: INE618N01014
A166: BALKRISHNA | B166: BE | C166: 18.25 | D166: 18.4 | E166: 17.5 | F166: 18.3 | G166: 18.3 | H166: 18.25 | I166: 2459 | J166: 44082.3 | K166: 2020-01-23 | L166: 19 | M166: INE875R01011
A167: BALKRISIND | B167: EQ | C167: 1101 | D167: 1137.8 | E167: 1101 | F167: 1111 | G167: 1108.05 | H167: 1098.6 | I167: 1192256 | J167: 1339818800 | K167: 2020-01-23 | L167: 36677 | M167: INE787D01026
A168: BALLARPUR | B168: BE | C168: 0.45 | D168: 0.55 | E168: 0.45 | F168: 0.5 | G168: 0.55 | H168: 0.5 | I168: 630899 | J168: 304702.65 | K168: 2020-01-23 | L168: 159 | M168: INE294A01037
A169: BALMLAWRIE | B169: EQ | C169: 125 | D169: 125 | E169: 123.1 | F169: 123.75 | G169: 124 | H169: 124.1 | I169: 61502 | J169: 7623757.45 | K169: 2020-01-23 | L169: 1262 | M169: INE164A01016
A170: BALPHARMA | B170: EQ | C170: 45.8 | D170: 45.8 | E170: 44 | F170: 45.1 | G170: 45.6 | H170: 44.75 | I170: 7973 | J170: 356865.2 | K170: 2020-01-23 | L170: 121 | M170: INE083D01012
A171: BALRAMCHIN | B171: EQ | C171: 185 | D171: 185.6 | E171: 182 | F171: 183.15 | G171: 182.75 | H171: 184.75 | I171: 664076 | J171: 121875488.2 | K171: 2020-01-23 | L171: 8347 | M171: INE119A01028
A172: BANARBEADS | B172: EQ | C172: 35 | D172: 35.9 | E172: 34.15 | F172: 34.3 | G172: 34.15 | H172: 36 | I172: 1357 | J172: 46923.7 | K172: 2020-01-23 | L172: 53 | M172: INE655B01011
A173: BANARISUG | B173: EQ | C173: 1446.1 | D173: 1459.05 | E173: 1426 | F173: 1431.3 | G173: 1426 | H173: 1440.1 | I173: 326 | J173: 469476.4 | K173: 2020-01-23 | L173: 141 | M173: INE459A01010
A174: BANCOINDIA | B174: EQ | C174: 105.3 | D174: 108.45 | E174: 104.1 | F174: 105.75 | G174: 104.55 | H174: 105.95 | I174: 32384 | J174: 3449229.8 | K174: 2020-01-23 | L174: 754 | M174: INE213C01025
A175: BANDHANBNK | B175: EQ | C175: 476.8 | D175: 480.3 | E175: 474 | F175: 475.1 | G175: 474.05 | H175: 475.5 | I175: 1265094 | J175: 603465729.2 | K175: 2020-01-23 | L175: 31436 | M175: INE545U01014
A176: BANG | B176: EQ | C176: 23.35 | D176: 24.3 | E176: 23 | F176: 23.65 | G176: 23.55 | H176: 23.75 | I176: 2096 | J176: 49241.6 | K176: 2020-01-23 | L176: 67 | M176: INE863I01016
A177: BANKBARODA | B177: EQ | C177: 94.2 | D177: 96.25 | E177: 94 | F177: 94.9 | G177: 95.25 | H177: 94.3 | I177: 17790397 | J177: 1695614378 | K177: 2020-01-23 | L177: 39161 | M177: INE028A01039
A178: BANKBEES | B178: EQ | C178: 314.19 | D178: 317.6 | E178: 313.5 | F178: 317.09 | G178: 317.15 | H178: 313.85 | I178: 147834 | J178: 46652047.93 | K178: 2020-01-23 | L178: 1950 | M178: INF204KB15I9
A179: BANKINDIA | B179: EQ | C179: 67.25 | D179: 68.2 | E179: 67.05 | F179: 67.55 | G179: 67.3 | H179: 67.45 | I179: 1465295 | J179: 99157190.2 | K179: 2020-01-23 | L179: 7732 | M179: INE084A01016
A180: BANSWRAS | B180: BE | C180: 113 | D180: 119.9 | E180: 113 | F180: 117.45 | G180: 117.45 | H180: 117.65 | I180: 1412 | J180: 165245 | K180: 2020-01-23 | L180: 19 | M180: INE629D01012
A181: BARTRONICS | B181: BE | C181: 1.3 | D181: 1.3 | E181: 1.2 | F181: 1.3 | G181: 1.3 | H181: 1.25 | I181: 3247 | J181: 3945.95 | K181: 2020-01-23 | L181: 25 | M181: INE855F01034
A182: BASF | B182: EQ | C182: 1010 | D182: 1028 | E182: 1008 | F182: 1017.8 | G182: 1020.35 | H182: 1013.1 | I182: 19997 | J182: 20327091.25 | K182: 2020-01-23 | L182: 3052 | M182: INE373A01013
A183: BASML | B183: EQ | C183: 140 | D183: 142 | E183: 135.9 | F183: 139.6 | G183: 139.6 | H183: 142.5 | I183: 1546 | J183: 217453.25 | K183: 2020-01-23 | L183: 39 | M183: INE186H01014
A184: BATAINDIA | B184: EQ | C184: 1775.05 | D184: 1808 | E184: 1769.45 | F184: 1800.6 | G184: 1801.4 | H184: 1775.2 | I184: 348369 | J184: 624275820.8 | K184: 2020-01-23 | L184: 16191 | M184: INE176A01028
A185: BAYERCROP | B185: EQ | C185: 4050 | D185: 4100 | E185: 4023.95 | F185: 4088.55 | G185: 4055 | H185: 4102.35 | I185: 14630 | J185: 59383788.7 | K185: 2020-01-23 | L185: 3164 | M185: INE462A01022
A186: BBL | B186: EQ | C186: 851.1 | D186: 869.5 | E186: 848 | F186: 857.25 | G186: 855.1 | H186: 849.45 | I186: 3096 | J186: 2660671 | K186: 2020-01-23 | L186: 556 | M186: INE464A01028
A187: BBTC | B187: EQ | C187: 1126 | D187: 1147.65 | E187: 1125.1 | F187: 1140.4 | G187: 1137.5 | H187: 1130.25 | I187: 62110 | J187: 70789516.3 | K187: 2020-01-23 | L187: 4437 | M187: INE050A01025
A188: BCG | B188: BE | C188: 5.35 | D188: 5.65 | E188: 5.35 | F188: 5.45 | G188: 5.35 | H188: 5.6 | I188: 255570 | J188: 1385552.85 | K188: 2020-01-23 | L188: 256 | M188: INE425B01027
A189: BCP | B189: BE | C189: 20.5 | D189: 21.2 | E189: 19.8 | F189: 20.95 | G189: 20.75 | H189: 20.55 | I189: 7509 | J189: 155658.4 | K189: 2020-01-23 | L189: 75 | M189: INE905P01028
A190: BDL | B190: EQ | C190: 308.2 | D190: 309.65 | E190: 302 | F190: 303.2 | G190: 302.95 | H190: 307.75 | I190: 75331 | J190: 22981036.5 | K190: 2020-01-23 | L190: 4968 | M190: INE171Z01018
A191: BEARDSELL | B191: BE | C191: 9.7 | D191: 9.7 | E191: 9.5 | F191: 9.7 | G191: 9.7 | H191: 9.7 | I191: 633 | J191: 6120.1 | K191: 2020-01-23 | L191: 11 | M191: INE520H01022
A192: BEDMUTHA | B192: BE | C192: 15.85 | D192: 17.05 | E192: 15.85 | F192: 17.05 | G192: 17.05 | H192: 16.3 | I192: 447 | J192: 7132.55 | K192: 2020-01-23 | L192: 6 | M192: INE844K01012
A193: BEL | B193: EQ | C193: 101.1 | D193: 104.55 | E193: 100.15 | F193: 101.15 | G193: 101.55 | H193: 100.95 | I193: 21658446 | J193: 2209095130 | K193: 2020-01-23 | L193: 45691 | M193: INE263A01024
A194: BEML | B194: EQ | C194: 990 | D194: 1011.05 | E194: 990 | F194: 997.45 | G194: 991 | H194: 997.65 | I194: 263700 | J194: 263646943.2 | K194: 2020-01-23 | L194: 10182 | M194: INE258A01016
A195: BEPL | B195: EQ | C195: 52.5 | D195: 53.5 | E195: 52.1 | F195: 52.5 | G195: 52.5 | H195: 52.3 | I195: 440547 | J195: 23270318.7 | K195: 2020-01-23 | L195: 4597 | M195: INE922A01025
A196: BERGEPAINT | B196: EQ | C196: 540.55 | D196: 555.5 | E196: 538.5 | F196: 552.55 | G196: 554.3 | H196: 539.85 | I196: 804567 | J196: 439224479.8 | K196: 2020-01-23 | L196: 14175 | M196: INE463A01038
A197: BFINVEST | B197: EQ | C197: 321.5 | D197: 328 | E197: 321.5 | F197: 324.05 | G197: 323.6 | H197: 321.55 | I197: 38486 | J197: 12499346.15 | K197: 2020-01-23 | L197: 1596 | M197: INE878K01010
A198: BFUTILITIE | B198: EQ | C198: 338.5 | D198: 347 | E198: 338.1 | F198: 341.35 | G198: 340.3 | H198: 338.45 | I198: 162183 | J198: 55525871.9 | K198: 2020-01-23 | L198: 4262 | M198: INE243D01012
A199: BGLOBAL | B199: BE | C199: 1.35 | D199: 1.35 | E199: 1.25 | F199: 1.3 | G199: 1.35 | H199: 1.3 | I199: 1966 | J199: 2483.35 | K199: 2020-01-23 | L199: 13 | M199: INE224M01013
A200: BGRENERGY | B200: EQ | C200: 37.35 | D200: 39 | E200: 37.25 | F200: 38.05 | G200: 38 | H200: 37.35 | I200: 179178 | J200: 6846224.35 | K200: 2020-01-23 | L200: 1417 | M200: INE661I01014
... 1484 more rows

Sheet Sheet1 (hidden)

Sheet Sheet3 (hidden)

Sheet Sheet4 (hidden)

Sheet Sheet5 (hidden)
